﻿Supplier Code,Supplier Name,Transaction Ref/No,Their Ref,Date Paid,Gross Value (Detail),VAT Amount,7CCC - Level 7 Cost Centre Code,7CCN - Level 7 Cost Centre Name,9AC - Level 9 Account Code,9AN - Level 9 Account Name,4CCN - Level 4 Cost Centre Name
1074832,Rnib Enterprises Limited,504697,SEN031150,07/03/2019,686.76,114.46,CWAN,Children With Additional Needs,3008,Educational Equipment,Children'S Services
1007385,R S Components Ltd,506426,292581073,19/03/2019,21171.48,3528.59,FMAK,Acquisitions 9/10,1131,Electrical Equipment - Repairs,Places
1007385,R S Components Ltd,507044,292611699,19/03/2019,585.6,97.6,FMAK,Acquisitions 9/10,1131,Electrical Equipment - Repairs,Places
1007385,R S Components Ltd,507182,292696002,19/03/2019,4731.91,788.65,FMAK,Acquisitions 9/10,1131,Electrical Equipment - Repairs,Places
1009763,Curtins Consulting Limited,507479,0029071,14/03/2019,1800,300,CGIBAA,Land Release Fund,6506,Consultants Fees,Capital - Commnctn & Regen
1080563,Bay Media,507647,2238,01/03/2019,1744.8,290.8,PRL,Marketing,3401,General Services,Places
1081985,West March Systems Ltd,507703,1399,01/03/2019,2520,420,ALEARN,Adult Learning,1705,Business Support,Places
1117920,Multevo Ltd,507743,22353,01/03/2019,11513.64,1918.94,TRB,Maintenance & Works,4501,Private Contractors,Community & Env Services
1112198,Kkc Engineering Consultants Limited,507813,841/19,01/03/2019,6396,1066,CTAHHA,Tramway Emergency Works,6506,Consultants Fees,Capital - Commnctn & Regen
1093815,Raydar Safety Ltd,507814,SI-583,01/03/2019,690,115,TRA,Traffic Management,4501,Private Contractors,Community & Env Services
1110563,Rocksure Systems Ltd T/A Peoplesafe,507966,INV60392,01/03/2019,2624.4,437.4,LM0420,Adults Training,3522,Landline - Call Charges,Adult & Families
1022781,Moore Readymix Ltd,507977,96149,01/03/2019,624.18,104.03,ENGINE,Engineering,3041,Other Materials,Community & Env Services
1058846,Keysoft Solutions Limted,508001,ORD14478-Z9Y8B,01/03/2019,840,140,TRB,Maintenance & Works,4501,Private Contractors,Community & Env Services
1025240,Key Engineering Supplies Ltd,508017,12983,01/03/2019,280.42,46.74,HOMECA,Homecare,3101,Provisions,Adult & Families
1088694,Cmp Quantity Surveying Ltd,508019,10/2989,12/03/2019,11372.94,1895.49,CGTBBB,Conference Centre,6503,Capital Salaries (Pro Advance),Capital - Commnctn & Regen
1081985,West March Systems Ltd,508044,1400,01/03/2019,4176,696,ALEARN,Adult Learning,6273,Miscellaneous,Places
1024186,Solon Security,508049,SI190000848,01/03/2019,1323.72,220.62,PYEP,Environmental Protection,3001,Office Equipment Purchase,Community & Env Services
1049304,Insight Direct (Uk) Ltd,508050,4235840,01/03/2019,6677.59,1112.93,EDDIV,Education Diversity,3531,Computer-H'Ware Purchase,Children'S Services
1102403,Bs Support Services Limited,508056,JAN01,01/03/2019,1200,200,VA0010,Vah Management & Admin,3801,Other Expenses,Children'S Services
1086003,Ncfe,508061,SI00068059,01/03/2019,270,0,ALEARN,Adult Learning,3711,Subscriptions,Places
1024186,Solon Security,508062,SI190000686,01/03/2019,891.97,148.66,COMSAF,Community Safety,3401,General Services,Public Health
1025240,Key Engineering Supplies Ltd,508066,13081,01/03/2019,470.91,0,ZM0018,Highways & Engineering,9773,Orders Received Not Invoiced,Blackpool Services
1025240,Key Engineering Supplies Ltd,508066,13081,01/03/2019,565.09,94.18,ZM0018,Highways & Engineering,9511A,Stocks Efin,Blackpool Services
1117499,Kate Rodenurst Ltd,508071,2019 02 01,06/03/2019,2500,0,EC7011,Museum - Professional Fees,3413,Consultants,Places
1008105,Mercer & Sons Ltd,508072,915673,06/03/2019,526,0,ZM0018,Highways & Engineering,9773,Orders Received Not Invoiced,Blackpool Services
1008105,Mercer & Sons Ltd,508072,915673,06/03/2019,631.2,105.2,ZM0018,Highways & Engineering,9511A,Stocks Efin,Blackpool Services
1009610,Diversey Limited,508075,147197069,01/03/2019,689.04,0,ZM0018,Highways & Engineering,9773,Orders Received Not Invoiced,Blackpool Services
1009610,Diversey Limited,508075,147197069,01/03/2019,826.85,137.81,ZM0018,Highways & Engineering,9511A,Stocks Efin,Blackpool Services
1076264,Alliance Disposables Ltd,508078,I7448042,01/03/2019,280.5,0,ZM0018,Highways & Engineering,9773,Orders Received Not Invoiced,Blackpool Services
1076264,Alliance Disposables Ltd,508078,I7448042,01/03/2019,336.6,56.1,ZM0018,Highways & Engineering,9511A,Stocks Efin,Blackpool Services
1072627,Gb Sport And Leisure Uk Ltd,508079,2337,01/03/2019,456,76,PRKTEC,Parks Terchnician Manager,3041,Other Materials,Community & Env Services
1058510,Lifeline Language Services Ltd,508109,0419133,01/03/2019,282.48,47.08,JEA,Senior Management,5507,Personal,Children'S Services
1030119,Generation (Uk) Ltd,508110,H2118261,01/03/2019,3644.7,607.45,PJAA,"Erection, Operation & Dismantl",3041,Other Materials,Community & Env Services
1030119,Generation (Uk) Ltd,508114,H2118260,01/03/2019,277.72,46.29,PJAA,"Erection, Operation & Dismantl",3041,Other Materials,Community & Env Services
1110938,Cogniva Limited,508119,19/002,01/03/2019,3180,530,TRA,Traffic Management,4501,Private Contractors,Community & Env Services
1080418,Skv Communications Limited,508121,61900,01/03/2019,1980,330,CGTBBB,Conference Centre,6501,Contract Payments,Capital - Commnctn & Regen
1104666,Lfx,508122,00012,07/03/2019,510,85,LEISUR,Leisure Management,3801,Other Expenses,Community & Env Services
1009004,Bemrosebooth Paragon Limited T/A Paragon Id,508169,467743,12/03/2019,1560,260,PARADM,Parking Administration,3302,Stationery,Budgets Outside Cash Limits
1009004,Bemrosebooth Paragon Limited T/A Paragon Id,508170,467745,12/03/2019,2568,428,PARADM,Parking Administration,3302,Stationery,Budgets Outside Cash Limits
1094424,The Networking People,508220,SI105910,01/03/2019,5229.8,871.63,FGAA,Ict Corporate Services,3527,Communication Lines,Resources
1094424,The Networking People,508221,SI105912,01/03/2019,330,55,FGAA,Ict Corporate Services,3531,Computer-H'Ware Purchase,Resources
1058510,Lifeline Language Services Ltd,508226,0419094,01/03/2019,684,114,JEA,Senior Management,5507,Personal,Children'S Services
1006419,Tunstall Healthcare (Uk) Ltd,508253,3IN/20168296,01/03/2019,5807.88,967.98,APFBAB,Vitaline,4501,Private Contractors,Adult & Families
1006419,Tunstall Healthcare (Uk) Ltd,508254,3IN/20168297,01/03/2019,2000.52,333.42,APFBAB,Vitaline,4501,Private Contractors,Adult & Families
1006419,Tunstall Healthcare (Uk) Ltd,508255,3IN/20168298,01/03/2019,2369.76,394.96,APFBAB,Vitaline,4501,Private Contractors,Adult & Families
1006419,Tunstall Healthcare (Uk) Ltd,508256,3IN/20168299,01/03/2019,3605.16,600.86,FGAA,Ict Corporate Services,3533,Computer S/W Purchases,Resources
1088636,Tarmac Building Products Ltd,508258,SI01513306,01/03/2019,1598,0,ZM0018,Highways & Engineering,9773,Orders Received Not Invoiced,Blackpool Services
1088636,Tarmac Building Products Ltd,508258,SI01513306,01/03/2019,1917.6,319.6,ZM0018,Highways & Engineering,9511A,Stocks Efin,Blackpool Services
1031698,Facultatieve Technologies Ltd,508274,19100512,01/03/2019,44960,7493.34,CN2016,Carleton Crem Works 2018-20,6501,Contract Payments,Capital - Governance & Partner
1107445,REDACTED PERSONAL DATA,508283,JH195,01/03/2019,1081.2,0,JA0505,Children'S Training,0911,Training Expenses,Children'S Services
1031475,Jenx Ltd,508297,216918,01/03/2019,434.4,72.4,CWAN,Children With Additional Needs,3008,Educational Equipment,Children'S Services
1090874,Advanced Health And Care Limited,508327,ARBK/00013123,01/03/2019,1074,179,HOMECA,Homecare,0917,Other Exps,Adult & Families
1094424,The Networking People,508340,SI105942,01/03/2019,19984.94,3330.82,FGAA,Ict Corporate Services,3532,Comp-Running & License Costs,Resources
1008135,Marshalls,508347,Z000244741,06/03/2019,10077.2,1679.53,SCHEME,Highways Schemes,3041,Other Materials,Community & Env Services
1049304,Insight Direct (Uk) Ltd,508363,4241523,07/03/2019,54680.83,9113.47,CS0739,Ict Refresh,6525,I.T. Hardware Purchase,Capital - Resources
1080575,Eps Supplies Ltd,508368,INV-17590,08/03/2019,787.65,131.27,JBR,Lac - Placements,4812,Initial Loan Equipment,Children'S Services
1105548,Precise Media Monitoring Ltd,508388,502166,01/03/2019,2100,350,PRL,Marketing,3315,Marketing,Places
1057663,Wilde Recruitment Ltd,508404,34295,01/03/2019,517.86,86.31,CTAHHA,Tramway Emergency Works,6501,Contract Payments,Capital - Commnctn & Regen
1102823,Wilde Consultants Limited,508409,WPCON 17205,08/03/2019,2753.1,458.85,CTABWA,Ltp Scheme 17/18,6501,Contract Payments,Capital - Commnctn & Regen
1102823,Wilde Consultants Limited,508410,WPCON 17206,08/03/2019,6593.4,1098.9,CTBRAA,Bridges (Growth Fund),6501,Contract Payments,Capital - Comm & Environ
1102823,Wilde Consultants Limited,508411,WPCON 17207,08/03/2019,5659.74,943.29,TRB,Maintenance & Works,4501,Private Contractors,Community & Env Services
1114346,Icsa Services Limited,508435,28476,08/03/2019,294,49,BEA,Democratic Services & Admin,0915,Conferences,Governance & Partnerships
1114036,Odlings Ltd T/A The Columbaria Co,508439,INV0064925,07/03/2019,522,87,CEMCRE,Cems Crems Etc,3454,Remove And Refix Memorials,Governance & Partnerships
1022781,Moore Readymix Ltd,508440,96292,01/03/2019,585.04,97.51,ENGINE,Engineering,3041,Other Materials,Community & Env Services
1094424,The Networking People,508443,SI105943,01/03/2019,2182.16,363.69,FGAA,Ict Corporate Services,0791,Temp/Relief (Bureau Staff),Resources
1094424,The Networking People,508445,SI105944,01/03/2019,2461.26,410.21,FGAA,Ict Corporate Services,0791,Temp/Relief (Bureau Staff),Resources
1102823,Wilde Consultants Limited,508449,WPCON 17195,08/03/2019,17730,2955,CTBRAA,Bridges (Growth Fund),6501,Contract Payments,Capital - Comm & Environ
1102823,Wilde Consultants Limited,508450,WPCON 17194,08/03/2019,19558.8,3259.8,CTBRAA,Bridges (Growth Fund),6501,Contract Payments,Capital - Comm & Environ
1102823,Wilde Consultants Limited,508452,WPCON 17193,08/03/2019,1462.8,243.8,CTABXA,Ltp Scheme 18/19,6501,Contract Payments,Capital - Commnctn & Regen
1076264,Alliance Disposables Ltd,508453,I7458988,07/03/2019,822.3,137.05,SCLEAN,Street Cleaning,1601,Consumable Supplies,Community & Env Services
1006425,Turnock Ltd,508455,46125,08/03/2019,1584,264,PJOA,Commercial & Marketing,3041,Other Materials,Community & Env Services
1115311,Darrren Clare Ltd T/A Portfolio,508461,P7693,08/03/2019,7680,1280,PBF,Communications,3801,Other Expenses,Chief Executive
1011730,Metric Group Limited,508463,161292,08/03/2019,467.47,77.91,PARADM,Parking Administration,3801,Other Expenses,Budgets Outside Cash Limits
1116707,Quartz Project Services,508657,INV4053B,01/03/2019,1500,250,FH0003,Bpb Ocean Boulevard3,3413,Consultants,Budgets Outside Cash Limits
1044756,Northgate Public Services (Uk) Ltd,508664,91417059,01/03/2019,1506.96,251.16,FC1404,Blue Badge Reform,3401,General Services,Resources
1116707,Quartz Project Services,508665,INV4053A,01/03/2019,1500,250,PV7009,Coolsilk Loan,3413,Consultants,Budgets Outside Cash Limits
1009819,Crelling Harnesses Limited,508684,146609,07/03/2019,254.4,42.4,TRCHIL,Integrated Transport Children,3010,Safety Equipment,Community & Env Services
1013705,Stadia Sports/ Broxap Limited,508706,INV242581,07/03/2019,1303.68,217.28,PRKOP1,Parks Operational Manager  1,3041,Other Materials,Community & Env Services
1006586,H Jenkinson & Co Ltd,508707,SINV00834743,07/03/2019,504,84,AEB,Buildings,3302,Stationery,Resources
1010114,C N Unwin Ltd,508711,0000079696,08/03/2019,456,76,INTRAD,Integrated Transport Admin,3010,Safety Equipment,Community & Env Services
1115071,Tec Quality Ltd,508712,176,01/03/2019,2154,359,APFBAB,Vitaline,4501,Private Contractors,Adult & Families
1088636,Tarmac Building Products Ltd,508715,SI01515778,07/03/2019,485.16,0,ZM0018,Highways & Engineering,9773,Orders Received Not Invoiced,Blackpool Services
1088636,Tarmac Building Products Ltd,508715,SI01515778,07/03/2019,582.19,97.03,ZM0018,Highways & Engineering,9511A,Stocks Efin,Blackpool Services
1011702,J & J Decorating Services,508719,7839,05/03/2019,720,120,PRKOP1,Parks Operational Manager  1,3041,Other Materials,Community & Env Services
1006232,Smith Of Derby Ltd,508726,0000108221,01/03/2019,300,50,PRKOP1,Parks Operational Manager  1,1012,Premises Maint-Priv.Contractor,Community & Env Services
1116473,Smart Distribution Solutions,508727,54312,13/03/2019,6876,1146,PBF,Communications,3801,Other Expenses,Chief Executive
1025240,Key Engineering Supplies Ltd,508729,13271,08/03/2019,343.2,57.2,APDBBB,Arc,3066,Personal Needs Of Clients,Adult & Families
1071181,Ian Farmer Associates (1998) Ltd,508732,W19 73045,01/03/2019,9229.08,1538.18,CXC11,Site Development,6515,Bldg Regs / Planning Fees,Capital - Chief Executive
1076264,Alliance Disposables Ltd,508768,I7472419,13/03/2019,749,0,ZM0018,Highways & Engineering,9773,Orders Received Not Invoiced,Blackpool Services
1076264,Alliance Disposables Ltd,508768,I7472419,13/03/2019,898.8,149.8,ZM0018,Highways & Engineering,9511A,Stocks Efin,Blackpool Services
1076264,Alliance Disposables Ltd,508769,I7469140,08/03/2019,262.8,43.8,ZM0018,Highways & Engineering,9511A,Stocks Efin,Blackpool Services
1008105,Mercer & Sons Ltd,508784,916275,08/03/2019,556.92,0,ZM0018,Highways & Engineering,9773,Orders Received Not Invoiced,Blackpool Services
1008105,Mercer & Sons Ltd,508784,916275,08/03/2019,668.3,111.38,ZM0018,Highways & Engineering,9511A,Stocks Efin,Blackpool Services
1008871,Irrv Services,508790,A126251,08/03/2019,720,120,FBBEA,"Income, Recovery & Debtors",3711,Subscriptions,Resources
1008871,Irrv Services,508790,A126251,08/03/2019,525.6,87.6,FCACA,Benefits - Admin,3711,Subscriptions,Resources
1117841,Spanset Ltd,508792,OP/I330190,08/03/2019,1428,238,FMAK,Acquisitions 9/10,3426,Course Fees,Places
1022781,Moore Readymix Ltd,508794,96419,11/03/2019,821.94,136.99,ENGINE,Engineering,3041,Other Materials,Community & Env Services
1027733,William Smith & Sons (Barnard Castle) Ltd,508796,494350,13/03/2019,1508.4,251.4,SCHEME,Highways Schemes,3041,Other Materials,Community & Env Services
1102132,Redstor Limited,508798,INV-34605,08/03/2019,9108,1518,TSICT,Transforming Schools Ict,3532,Comp-Running & License Costs,Resources
1030119,Generation (Uk) Ltd,508813,S0221240,01/03/2019,2730,455,PJAA,"Erection, Operation & Dismantl",1012,Premises Maint-Priv.Contractor,Community & Env Services
1071925,Groundwork Cheshire Lancs And Merseyside,508827,0000001981,13/03/2019,8062.2,1343.7,AEB,Buildings,3801,Other Expenses,Resources
1022781,Moore Readymix Ltd,508835,96381,08/03/2019,497.4,82.9,ENGINE,Engineering,3041,Other Materials,Community & Env Services
1093327,Soundbitelearning Uk Ltd,508836,5325,01/03/2019,774,129,EDDIV,Education Diversity,3711,Subscriptions,Children'S Services
1007206,Road Safety Services Ltd,508839,84628,04/03/2019,2356.8,392.8,SCHEME,Highways Schemes,1012,Premises Maint-Priv.Contractor,Community & Env Services
1026118,A.P.E.A.,508856,14347,05/03/2019,1224,204,PYCA,Public Protection - Food,3605,Confs & Short Courses,Community & Env Services
1086003,Ncfe,508859,SI00065722,04/03/2019,468,78,ALEARN,Adult Learning,3711,Subscriptions,Places
1118046,Tagster 2005 Ltd,508860,31959,07/03/2019,1791.12,298.52,AEE,Estates,3001,Office Equipment Purchase,Resources
1098134,Towrite Electric Vehicles (Harborough) Ltd,508866,22154,08/03/2019,615,102.5,SCLEAN,Street Cleaning,3401,General Services,Community & Env Services
1022845,Preservation Equipment Ltd,508868,0000387018,25/03/2019,569.37,94.89,AHHBA,Blackpool Museum,3801,Other Expenses,Places
1049304,Insight Direct (Uk) Ltd,508871,4249782,13/03/2019,423.78,70.63,POA,Office Services,3533,Computer S/W Purchases,Places
1118007,Fcfm Grp Investments V11 Ltd,508879,29204030219,05/03/2019,408.87,0,APDBBB,Arc,3101,Provisions,Adult & Families
1057663,Wilde Recruitment Ltd,508889,34323,08/03/2019,609.92,101.65,CTAHHA,Tramway Emergency Works,6501,Contract Payments,Capital - Commnctn & Regen
1007960,Mott Macdonald Ltd,508894,IN00407548,08/03/2019,11743.03,1957.17,CTAHHA,Tramway Emergency Works,6506,Consultants Fees,Capital - Commnctn & Regen
1007960,Mott Macdonald Ltd,508895,IN00407545,08/03/2019,28110.4,4685.07,CTAHHA,Tramway Emergency Works,6506,Consultants Fees,Capital - Commnctn & Regen
1115995,REDACTED PERSONAL DATA,508898,HST006,01/03/2019,520,0,HS0001,Headstart Central Expenditure,3605,Confs & Short Courses,Children'S Services
1115995,REDACTED PERSONAL DATA,508898,HST006,01/03/2019,1660,0,HS0003,Headstart Commissioning,3401,General Services,Children'S Services
1115995,REDACTED PERSONAL DATA,508898,HST006,01/03/2019,1920,0,HS0005,Whole School Approach,0911,Training Expenses,Children'S Services
1025240,Key Engineering Supplies Ltd,508900,13339,08/03/2019,317.66,52.94,APEBBA,Whitegate Cil,3201,Clothing & Uniforms,Adult & Families
1093815,Raydar Safety Ltd,508907,SI-599,15/03/2019,1800,300,TRB,Maintenance & Works,4501,Private Contractors,Community & Env Services
1006962,Shaw & Sons Ltd,508917,0000268096,08/03/2019,1489.98,248.33,BGA,Electoral Services,3302,Stationery,Governance & Partnerships
1031475,Jenx Ltd,509115,217053,13/03/2019,499.2,83.2,MTE,Undefined Age Group,5401,Aids To Daily Living,Adult & Families
1094424,The Networking People,509139,SI105970,14/03/2019,1980,330,FGAA,Ict Corporate Services,3532,Comp-Running & License Costs,Resources
1059670,Advanced Secure Technologies,509164,13985,08/03/2019,1242,207,FBBEA,"Income, Recovery & Debtors",3401,General Services,Resources
1059670,Advanced Secure Technologies,509164,13985,08/03/2019,1242,207,FCACA,Benefits - Admin,3401,General Services,Resources
1094424,The Networking People,509174,SI105975,15/03/2019,7590,1265,FGAA,Ict Corporate Services,3532,Comp-Running & License Costs,Resources
1019773,"Bradshaw Electric Vehs, John Bradshaw Ltd",509182,112350,06/03/2019,493.19,82.2,SCLEAN,Street Cleaning,4501,Private Contractors,Community & Env Services
1006586,H Jenkinson & Co Ltd,509183,SINV00835648,15/03/2019,504,84,AEB,Buildings,3302,Stationery,Resources
1019678,G & S Smirthwaite Ltd,509187,165988,13/03/2019,534,89,CWAN,Children With Additional Needs,3008,Educational Equipment,Children'S Services
1080157,Achievable Training Limited,509195,190007,08/03/2019,600,0,JA0505,Children'S Training,0911,Training Expenses,Children'S Services
1013064,Tarmac Lafarge Trading Limited,509204,9039547557,01/03/2019,1333.02,222.17,ENGINE,Engineering,3041,Other Materials,Community & Env Services
1013064,Tarmac Lafarge Trading Limited,509205,9039547561,01/03/2019,783.5,130.58,ENGINE,Engineering,3041,Other Materials,Community & Env Services
1012071,Bethell Construction Limited,509209,15835,01/03/2019,11632.32,1938.72,SCHEME,Highways Schemes,1012,Premises Maint-Priv.Contractor,Community & Env Services
1012071,Bethell Construction Limited,509210,15825,01/03/2019,18833.28,3138.88,ENGINE,Engineering,1012,Premises Maint-Priv.Contractor,Community & Env Services
1116688,In Touch Limited,509214,107581,14/03/2019,59400,9900,TRB,Maintenance & Works,4501,Private Contractors,Community & Env Services
1078657,4tech Training Ltd,509215,275,07/03/2019,986.47,164.41,EDDIV,Education Diversity,4101,Other Local Authorities,Children'S Services
1105208,222 Sports Limited,509216,1440,08/03/2019,1440,240,LEISUR,Leisure Management,3801,Other Expenses,Community & Env Services
1094355,Les Mills Fitness Uk Ltd,509220,SIV300067,08/03/2019,327.82,54.64,LEISUR,Leisure Management,2008,Running Costs-Licences,Community & Env Services
1085161,Lg Futures Ltd,509227,6002912,15/03/2019,3300,550,FBBCA,Accountancy,3711,Subscriptions,Resources
1102823,Wilde Consultants Limited,509235,WPCON 17282,15/03/2019,1169.8,194.97,CTBRAA,Bridges (Growth Fund),6501,Contract Payments,Capital - Comm & Environ
1025240,Key Engineering Supplies Ltd,509244,13491,15/03/2019,326.04,54.34,HOMECA,Homecare,3066,Personal Needs Of Clients,Adult & Families
1018184,Blackpool Skip Hire,509251,6066,06/03/2019,2457,409.5,DOMPFI,Domestic Waste & Waste Pfi,4514,Contract 'E',Community & Env Services
1117499,Kate Rodenurst Ltd,509253,2019 02 02,08/03/2019,400,0,EC7015,Museum - Pr And Promotion,3413,Consultants,Places
1006586,H Jenkinson & Co Ltd,509264,SINV00835436,14/03/2019,467.52,77.92,AEB,Buildings,3041,Other Materials,Resources
1086156,Water Saving Techniques Limited,509270,4164,13/03/2019,5788.8,964.8,PARADE,Parades & Seawall,1012,Premises Maint-Priv.Contractor,Community & Env Services
1058510,Lifeline Language Services Ltd,509271,0419119,01/03/2019,252,42,BEA,Democratic Services & Admin,3801,Other Expenses,Governance & Partnerships
1081600,Pshe Association,509272,INV_25256,14/03/2019,280,0,HS0015,Headstart Pshe,3801,Other Expenses,Children'S Services
1031983,Olympic Lock & Safeguards Ltd,509278,7294,07/03/2019,1024.51,170.74,GATE,Alleygates,3041,Other Materials,Community & Env Services
1010667,Argos Business Solutions Ltd,509281,01738815,11/03/2019,261.87,43.65,APDBBB,Arc,3012,Other Equipment,Adult & Families
1117078,Thynne Creative Ltd,509282,TCI000641,15/03/2019,24000,4000,TRB,Maintenance & Works,4501,Private Contractors,Community & Env Services
1117078,Thynne Creative Ltd,509284,TCI000640,15/03/2019,2400,400,TRB,Maintenance & Works,4501,Private Contractors,Community & Env Services
1008947,Iccm,509287,10765,06/03/2019,810,135,CN2016,Carleton Crem Works 2018-20,6501,Contract Payments,Capital - Governance & Partner
1107681,Myzone Group Ltd,509345,B2B:INV-9201,04/03/2019,1440,240,LEISUR,Leisure Management,3801,Other Expenses,Community & Env Services
1006419,Tunstall Healthcare (Uk) Ltd,509347,3IN/10332353,14/03/2019,283.32,47.22,APFBAB,Vitaline,4501,Private Contractors,Adult & Families
1094424,The Networking People,509348,SI105969,14/03/2019,1973.35,328.89,APEBBA,Whitegate Cil,3531,Computer-H'Ware Purchase,Adult & Families
1094424,The Networking People,509349,SI105962,13/03/2019,9162.42,1527.07,FGAA,Ict Corporate Services,3527,Communication Lines,Resources
1022781,Moore Readymix Ltd,509363,96563,15/03/2019,291,48.5,ENGINE,Engineering,3041,Other Materials,Community & Env Services
1022781,Moore Readymix Ltd,509364,96530,15/03/2019,654.24,109.04,ENGINE,Engineering,3041,Other Materials,Community & Env Services
1006292,Vodafone Corporate Ltd,509369,LU10707,06/03/2019,290.4,48.4,TRB,Maintenance & Works,3531,Computer-H'Ware Purchase,Community & Env Services
1006292,Vodafone Corporate Ltd,509371,LU10706,06/03/2019,290.4,48.4,AMHC,Primary Care,3531,Computer-H'Ware Purchase,Adult & Families
1018211,C & W Berry Ltd,509376,5221188,13/03/2019,275.82,45.97,PJOA,Commercial & Marketing,3041,Other Materials,Community & Env Services
1018211,C & W Berry Ltd,509377,5221653,13/03/2019,1076.03,179.34,PJAA,"Erection, Operation & Dismantl",3041,Other Materials,Community & Env Services
1056554,Indigo Promotions Limited,509382,8525,15/03/2019,1518,253,EYT,Early Years Team,3806,Advertising-General,Children'S Services
1025240,Key Engineering Supplies Ltd,509399,13494,19/03/2019,269.94,44.98,ZM0018,Highways & Engineering,9511A,Stocks Efin,Blackpool Services
1014996,Peters Ltd T/A Peters Bookselling Svces,509402,0650486,15/03/2019,768,128,LBB,Central Library,3020,Furniture - Purchase,Places
1027733,William Smith & Sons (Barnard Castle) Ltd,509403,495171,13/03/2019,602.9,100.48,SCHEME,Highways Schemes,3041,Other Materials,Community & Env Services
1010619,Askews And Holts Library Services Ltd,509419,5963673,08/03/2019,565.74,0,LBB,Central Library,3304,Books And Periodicals,Places
1010619,Askews And Holts Library Services Ltd,509420,5963743,08/03/2019,709.63,0,LBB,Central Library,3304,Books And Periodicals,Places
1006292,Vodafone Corporate Ltd,509421,LU23672,07/03/2019,3484.8,580.8,FGAA,Ict Corporate Services,3531,Computer-H'Ware Purchase,Resources
1006292,Vodafone Corporate Ltd,509422,LT94644,01/03/2019,1452,242,JA1531,Independent Reviewing Officers,3531,Computer-H'Ware Purchase,Children'S Services
1006292,Vodafone Corporate Ltd,509423,LU23673,07/03/2019,580.8,96.8,FGAA,Ict Corporate Services,3531,Computer-H'Ware Purchase,Resources
1006292,Vodafone Corporate Ltd,509427,LU23674,07/03/2019,3484.8,580.8,VA0010,Vah Management & Admin,3531,Computer-H'Ware Purchase,Children'S Services
1104657,Hanson Cleaning Equipment Ltd,509435,24036,08/03/2019,636.36,0,ZM0018,Highways & Engineering,9773,Orders Received Not Invoiced,Blackpool Services
1104657,Hanson Cleaning Equipment Ltd,509435,24036,08/03/2019,763.64,127.28,ZM0018,Highways & Engineering,9511A,Stocks Efin,Blackpool Services
1110952,Mereside Primary Academy,509440,0000000113,15/03/2019,1667,0,OPAREA,Opportunity Areas,4515,Contract Services,Places
1099262,Nhs Blackpool Ccg,509442,7011212206,01/03/2019,650971,0,LM9027,Bcf Control,5101,Transfer Payments - General,Bcf General And Control
1011730,Metric Group Limited,509447,161357,14/03/2019,464.68,77.45,PARADM,Parking Administration,2002,Repairs And Maintenance,Budgets Outside Cash Limits
1006292,Vodafone Corporate Ltd,509448,LU33244,08/03/2019,290.4,48.4,FGAA,Ict Corporate Services,3531,Computer-H'Ware Purchase,Resources
1014999,Machine Mart,509513,1033332,21/03/2019,347.98,58,CWASTE,Commercial Waste,3041,Other Materials,Community & Env Services
1005071,Blackpool Transport Services Limited,509517,I0001209,01/03/2019,835.5,0,VA0010,Vah Management & Admin,2301,Bus & Tram Fares,Children'S Services
1006292,Vodafone Corporate Ltd,509521,LU33245,08/03/2019,1161.6,193.6,FGAA,Ict Corporate Services,3531,Computer-H'Ware Purchase,Resources
1118133,REDACTED PERSONAL DATA,509523,3,13/03/2019,8029.75,0,VA0010,Vah Management & Admin,3801,Other Expenses,Children'S Services
1058510,Lifeline Language Services Ltd,509527,0519075,20/03/2019,388.2,64.7,JEA,Senior Management,3419,Interpreters Fees,Children'S Services
1080575,Eps Supplies Ltd,509552,INV-17615,20/03/2019,302.95,50.49,JBR,Lac - Placements,4812,Initial Loan Equipment,Children'S Services
1078988,Welfare Call (Lac) Ltd,509570,19LAC-044,06/03/2019,6000,1000,CWAN,Children With Additional Needs,3533,Computer S/W Purchases,Children'S Services
1060504,Express Cutting And Welding Services Ltd,509571,504023,08/03/2019,901.61,150.27,ENGINE,Engineering,3041,Other Materials,Community & Env Services
1044756,Northgate Public Services (Uk) Ltd,509574,91418293,18/03/2019,1632.97,272.16,EM1032,Client Finances,3532,Comp-Running & License Costs,Resources
1044756,Northgate Public Services (Uk) Ltd,509574,91418293,18/03/2019,1020.6,170.1,FBBBA,Audit & Investigations,3532,Comp-Running & License Costs,Resources
1044756,Northgate Public Services (Uk) Ltd,509574,91418293,18/03/2019,7552.46,1258.74,FBBEA,"Income, Recovery & Debtors",3532,Comp-Running & License Costs,Resources
1044756,Northgate Public Services (Uk) Ltd,509574,91418293,18/03/2019,816.48,136.08,FC0411,Advice Services,3532,Comp-Running & License Costs,Resources
1044756,Northgate Public Services (Uk) Ltd,509574,91418293,18/03/2019,1020.6,170.1,FC1801,Social Fund - Admin,3532,Comp-Running & License Costs,Resources
1044756,Northgate Public Services (Uk) Ltd,509574,91418293,18/03/2019,19391.51,3231.93,FCACA,Benefits - Admin,3532,Comp-Running & License Costs,Resources
1044756,Northgate Public Services (Uk) Ltd,509574,91418293,18/03/2019,5715.39,952.56,FCADA,Customer Services,3532,Comp-Running & License Costs,Resources
1007063,Compass Minerals Uk Limited,509587,477022,01/03/2019,1300.3,216.72,WINTMA,Winter Maintenance,3041,Other Materials,Community & Env Services
1007063,Compass Minerals Uk Limited,509589,477140,08/03/2019,2633.19,438.87,WINTMA,Winter Maintenance,3041,Other Materials,Community & Env Services
1007063,Compass Minerals Uk Limited,509590,476905,07/03/2019,1370.15,228.36,WINTMA,Winter Maintenance,3041,Other Materials,Community & Env Services
1098854,Nhs Supply Chain (Use New Supplier 1118568),509599,1019215950,19/03/2019,371,61.83,PUBH24,Miscellaneous,4501,Private Contractors,Public Health
1008135,Marshalls,509600,Z000218333,12/03/2019,4873.09,812.18,SCHEME,Highways Schemes,3041,Other Materials,Community & Env Services
1099753,Nimble Group It Ltd,509601,INV-11199,15/03/2019,3469.51,578.25,FGAA,Ict Corporate Services,3532,Comp-Running & License Costs,Resources
1071928,Civica Uk Limited,509604,M/PY058452,15/03/2019,1534.48,255.75,PYLA,Licencing,3532,Comp-Running & License Costs,Community & Env Services
1053453,Brenntag Uk Ltd,509606,32SI 3283296,29/03/2019,352.64,58.77,LEISUR,Leisure Management,3060,Chemicals,Community & Env Services
1071928,Civica Uk Limited,509607,M/PY058453,15/03/2019,574.13,95.69,FC1211,Cashiers,3532,Comp-Running & License Costs,Resources
1116785,Core Assets Childrens Services Limited,509612,9697,01/03/2019,12000,2000,JA2021,Sexual Health,4501,Private Contractors,Children'S Services
1088694,Cmp Quantity Surveying Ltd,509614,10/3008,22/03/2019,5400,900,CGTBBB,Conference Centre,6503,Capital Salaries (Pro Advance),Capital - Commnctn & Regen
1114400,Worlifts Ltd,509617,080859,21/03/2019,578.4,96.4,ENGINE,Engineering,3041,Other Materials,Community & Env Services
1117351,Open Text,509620,9001006794,21/03/2019,746.22,124.37,CTAHHA,Tramway Emergency Works,6506,Consultants Fees,Capital - Commnctn & Regen
1057663,Wilde Recruitment Ltd,509621,34353,15/03/2019,517.86,86.31,CTAHHA,Tramway Emergency Works,6501,Contract Payments,Capital - Commnctn & Regen
1114118,Medequip Assistive Technology Limited,509699,43544,01/03/2019,11182.44,1863.74,MTE,Undefined Age Group,5401,Aids To Daily Living,Adult & Families
1094424,The Networking People,509708,SI05991,21/03/2019,2665.18,444.2,FGAA,Ict Corporate Services,3527,Communication Lines,Resources
1094424,The Networking People,509711,SI105986,15/03/2019,2352.01,392,TRB,Maintenance & Works,4501,Private Contractors,Community & Env Services
1058510,Lifeline Language Services Ltd,509712,0519105,22/03/2019,277.2,46.2,JEA,Senior Management,5507,Personal,Children'S Services
1059178,Quality Essential Distribution Ltd,509720,435910,15/03/2019,699.62,116.6,CCTV,Cctv,3003,Equipt-Mtce Repairs,Public Health
1006292,Vodafone Corporate Ltd,509724,LU71292,14/03/2019,290.4,48.4,MNGMT,Central Management,3531,Computer-H'Ware Purchase,Children'S Services
1083128,Kirklees Council,509725,8604498146,08/03/2019,260,0,CWAN,Children With Additional Needs,0911,Training Expenses,Children'S Services
1006292,Vodafone Corporate Ltd,509727,LU71293,14/03/2019,2726.4,454.4,FGAA,Ict Corporate Services,3531,Computer-H'Ware Purchase,Resources
1096607,Cutlers Property Consultancy (Services),509741,0070448,14/03/2019,4420,0,AEE,Estates,0781,Contracted,Resources
1010114,C N Unwin Ltd,509743,0000080044,22/03/2019,798,133,INTRAD,Integrated Transport Admin,3010,Safety Equipment,Community & Env Services
1018041,Tom Lucas Partnership Limited,509746,L18027,20/03/2019,1200,200,CORSAA,Remodelling Clc Gr Park,6506,Consultants Fees,Capital - Resources
1116447,W J Sanderson & Sons Ltd,509748,66647005,21/03/2019,864,144,PRKOP1,Parks Operational Manager  1,1012,Premises Maint-Priv.Contractor,Community & Env Services
1011970,A1 Streamline Road Markings Ltd,509757,3928,01/03/2019,315.45,52.57,TRA,Traffic Management,4501,Private Contractors,Community & Env Services
1076636,Chicken Joes Ltd,509804,530596,04/03/2019,340.02,0,CATERG,Catering Services,3101,Provisions,Community & Env Services
1088636,Tarmac Building Products Ltd,509810,SI01520793,15/03/2019,1561.16,0,ZM0018,Highways & Engineering,9773,Orders Received Not Invoiced,Blackpool Services
1088636,Tarmac Building Products Ltd,509810,SI01520793,15/03/2019,1873.39,312.23,ZM0018,Highways & Engineering,9511A,Stocks Efin,Blackpool Services
1071928,Civica Uk Limited,509815,M/HB058103,15/03/2019,4956.91,826.15,HOPB,Housing Options,4004,Management Fees,Chief Executive
1053592,Tfs Training Consultants Ltd,509824,156,01/03/2019,660,110,FK0071,Corporate Training,0911,Training Expenses,Chief Executive
1006944,Siemens Financial Services Ltd,509835,244/19/0108614,12/03/2019,3301.2,550.19,APFBAB,Vitaline,4501,Private Contractors,Adult & Families
1082317,Company Cards Ltd,509836,184799,20/03/2019,2948.4,491.4,ZX0501,"Tourism,Promotions & Conferen.",968B,Resort Pass,Place Directorate
1049304,Insight Direct (Uk) Ltd,509838,4253694,15/03/2019,1586.2,264.37,FGAA,Ict Corporate Services,3532,Comp-Running & License Costs,Resources
1010619,Askews And Holts Library Services Ltd,509839,5963801,15/03/2019,343.68,0,LBB,Central Library,3304,Books And Periodicals,Places
1010619,Askews And Holts Library Services Ltd,509840,5963915,15/03/2019,644.08,0,LBB,Central Library,3304,Books And Periodicals,Places
1010619,Askews And Holts Library Services Ltd,509841,5963832,15/03/2019,439.94,0,LBB,Central Library,3304,Books And Periodicals,Places
1101740,Ken Taylor Supplies Limited,509848,0288239,22/03/2019,400,0,ZM0018,Highways & Engineering,9773,Orders Received Not Invoiced,Blackpool Services
1101740,Ken Taylor Supplies Limited,509848,0288239,22/03/2019,480,80,ZM0018,Highways & Engineering,9511A,Stocks Efin,Blackpool Services
1017832,Dick Leigh Chainsaw Specialist,509849,201450,18/03/2019,283.5,47.25,PRKOP1,Parks Operational Manager  1,3012,Other Equipment,Community & Env Services
1085660,Bisset Adams Ltd,509855,07515,04/03/2019,34562.4,5760.4,FMAK,Acquisitions 9/10,3801,Other Expenses,Places
1071551,Business In The Community,509868,SIN055657,04/03/2019,6000,0,CGTBBB,Conference Centre,6501,Contract Payments,Capital - Commnctn & Regen
1030487,Redline Travel Limited,509903,33940,06/03/2019,1965,0,ET0509,Year 9 Event,2301,Bus & Tram Fares,Children'S Services
1118146,Landtech Soils Ltd,509914,1486,15/03/2019,2160,360,PRKOP1,Parks Operational Manager  1,3041,Other Materials,Community & Env Services
1098105,Brightprint Ltd(Non Factor Payments Only),509915,28160,07/03/2019,270,45,TRC,Travel & Safety,4501,Private Contractors,Community & Env Services
1116774,Greenway Associates Ltd,509918,1529,22/03/2019,18000,3000,EC7011,Museum - Professional Fees,3413,Consultants,Places
1010104,Canon (Uk ) Ltd,509919,9244390,01/03/2019,259.37,43.23,POA,Office Services,3401,General Services,Places
1007101,Safetykleen Uk Ltd,509923,PI314255,22/03/2019,3657.6,609.6,PJHA,"Depot, Management & Admin",4501,Private Contractors,Community & Env Services
1086788,Idox Software Ltd,509924,112380,22/03/2019,19572.4,3262.07,PYLA,Licencing,3532,Comp-Running & License Costs,Community & Env Services
1068282,Virgin Media Ltd,509933,50158916,13/03/2019,792.99,0,CGOAAA,Quality Corridor,6501,Contract Payments,Capital - Commnctn & Regen
1014996,Peters Ltd T/A Peters Bookselling Svces,509935,0650511,22/03/2019,564,94,LBB,Central Library,3020,Furniture - Purchase,Places
1021686,North West Tree Services,509938,B556,01/03/2019,774,129,PRKOP1,Parks Operational Manager  1,3455,Memorials Trees And Benches,Community & Env Services
1021686,North West Tree Services,509938,B556,01/03/2019,3016.8,502.8,PRKOP1,Parks Operational Manager  1,3041,Other Materials,Community & Env Services
1013705,Stadia Sports/ Broxap Limited,509939,INV243381,22/03/2019,1485,0,ZM0018,Highways & Engineering,9773,Orders Received Not Invoiced,Blackpool Services
1013705,Stadia Sports/ Broxap Limited,509939,INV243381,22/03/2019,1782,297,ZM0018,Highways & Engineering,9511A,Stocks Efin,Blackpool Services
1006425,Turnock Ltd,509944,46180,22/03/2019,1584,264,PJOA,Commercial & Marketing,3041,Other Materials,Community & Env Services
1009004,Bemrosebooth Paragon Limited T/A Paragon Id,509945,468893,12/03/2019,2568,428,PARADM,Parking Administration,3302,Stationery,Budgets Outside Cash Limits
1018184,Blackpool Skip Hire,509947,012188,06/03/2019,966.24,161.04,PJHA,"Depot, Management & Admin",3006,Hire Of Equipment,Community & Env Services
1006576,The Helping Hand Company Ltd,509949,338665,27/03/2019,595.2,0,ZM0018,Highways & Engineering,9773,Orders Received Not Invoiced,Blackpool Services
1006576,The Helping Hand Company Ltd,509949,338665,27/03/2019,714.24,119.04,ZM0018,Highways & Engineering,9511A,Stocks Efin,Blackpool Services
1009070,Hearing Products Int. Ltd,509955,0000051159,29/03/2019,804,134,CWAN,Children With Additional Needs,3008,Educational Equipment,Children'S Services
1088781,Public Policy Exchange Ltd,509957,PPX-25696,05/03/2019,318,53,HS0001,Headstart Central Expenditure,3605,Confs & Short Courses,Children'S Services
1097502,Honey Brothers Limited,509959,IN194426,28/03/2019,1565.82,260.97,PRKOP1,Parks Operational Manager  1,3041,Other Materials,Community & Env Services
1012669,Swim England Trading Limited,509964,SWINV019698,22/03/2019,338.4,56.4,LEISUR,Leisure Management,3048,Cost Of Goods Sold,Community & Env Services
1068172,Northern Print Distribution Ltd,509966,10633,28/03/2019,684,114,AHH,Heritage,3819,Events Support,Places
1091675,Rtpi,509967,12268,28/03/2019,1020,170,PLBAAA,Development Control,0915,Conferences,Places
1088034,Mrhmc,509968,315,22/03/2019,750,0,ALEARN,Adult Learning,3413,Consultants,Places
1088034,Mrhmc,509969,316,22/03/2019,750,0,ALEARN,Adult Learning,3413,Consultants,Places
1099266,Yesss Electrical Ltd,509970,078IN79838,04/03/2019,968.4,161.4,CCTV,Cctv,3003,Equipt-Mtce Repairs,Public Health
1094424,The Networking People,509972,SI106004,22/03/2019,2752.93,458.82,FGAA,Ict Corporate Services,3521,Landline - Line Rental,Resources
1061970,Caretower Limited (Fac005 Payment),509975,162093,15/03/2019,5869.2,978.2,TSICT,Transforming Schools Ict,3532,Comp-Running & License Costs,Resources
1094424,The Networking People,509976,SI106006,27/03/2019,2312.5,385.42,FGAA,Ict Corporate Services,3527,Communication Lines,Resources
1087034,Cool Milk Limited,509986,CML00023789,06/03/2019,20273.68,0,SCHBRK,Free School Breakfasts,3107,Milk For Drinking,Community & Env Services
1118007,Fcfm Grp Investments V11 Ltd,509987,BLACKPOOL310119,06/03/2019,536.56,0,CATERG,Catering Services,3101,Provisions,Community & Env Services
1049304,Insight Direct (Uk) Ltd,509988,4259431,19/03/2019,2995.71,499.29,FGAA,Ict Corporate Services,3532,Comp-Running & License Costs,Resources
1006196,Prism Medical Uk,509993,5317098,21/03/2019,1415,0,CXAAA,Local Authority Dwellings,6501,Contract Payments,Capital - Chief Executive
1112303,Access-Able (Uk) Limited (Fac001),509997,3160,15/03/2019,2343,0,CX4002,Disabled Facilities Grants,6501,Contract Payments,Capital - Adult Social Care
1006196,Prism Medical Uk,509999,5315565,14/03/2019,1335,0,CX4002,Disabled Facilities Grants,6501,Contract Payments,Capital - Adult Social Care
1006196,Prism Medical Uk,510001,5315567,14/03/2019,1275,0,CX4002,Disabled Facilities Grants,6501,Contract Payments,Capital - Adult Social Care
1006196,Prism Medical Uk,510002,5315430,14/03/2019,12796.45,0,CX4002,Disabled Facilities Grants,6501,Contract Payments,Capital - Adult Social Care
1026738,Cassidy + Ashton,510010,17090,18/03/2019,458.4,76.4,CXC11,Site Development,6503,Capital Salaries (Pro Advance),Capital - Chief Executive
1026738,Cassidy + Ashton,510011,17091,18/03/2019,26329,0,CXC11,Site Development,6515,Bldg Regs / Planning Fees,Capital - Chief Executive
1103450,Blackpool Entertainment Company Limited,510012,INV004165,04/03/2019,672,112,JA0505,Children'S Training,0911,Training Expenses,Children'S Services
1074968,P N Grundy Ltd,510013,731,15/03/2019,300,0,FK0071,Corporate Training,0911,Training Expenses,Chief Executive
1112388,Fragance Uk - Blackpool Ltd T/A Imperialhotel,510017,0000019861,08/03/2019,1204.2,0,APCBEA,Shared Lives,0911,Training Expenses,Adult & Families
1049200,R82 Uk Ltd,510019,244146,08/03/2019,939.6,156.6,JEA,Senior Management,3008,Educational Equipment,Children'S Services
1009004,Bemrosebooth Paragon Limited T/A Paragon Id,510021,469009,12/03/2019,1560,260,PARADM,Parking Administration,3302,Stationery,Budgets Outside Cash Limits
1053453,Brenntag Uk Ltd,510026,32SI 3283706,12/03/2019,352.64,58.77,LEISUR,Leisure Management,3060,Chemicals,Community & Env Services
1006292,Vodafone Corporate Ltd,510093,LV12254,21/03/2019,290.4,48.4,VA0010,Vah Management & Admin,3531,Computer-H'Ware Purchase,Children'S Services
1098899,Browne Jacobson Llp,510097,IN-000005174,13/03/2019,849.6,141.6,FL1259,Pfi Management Costs,4501,Private Contractors,Community & Env Services
1118154,Ghd Livigunn Ltd,510098,440-001953,11/03/2019,4288.8,714.8,CP0511,Anchorsholme Seawall Scheme,6506,Consultants Fees,Capital - Comm & Environ
1057663,Wilde Recruitment Ltd,510101,34384,22/03/2019,517.86,86.31,CTAHHA,Tramway Emergency Works,6501,Contract Payments,Capital - Commnctn & Regen
1006292,Vodafone Corporate Ltd,510103,LV01470,20/03/2019,3775.2,629.2,FGAA,Ict Corporate Services,3531,Computer-H'Ware Purchase,Resources
1098105,Brightprint Ltd(Non Factor Payments Only),510115,28130,05/03/2019,474,79,TRC,Travel & Safety,4501,Private Contractors,Community & Env Services
1072848,Peter Rhodes,510117,01/001JAN19,05/03/2019,1616.4,0,TRCHIL,Integrated Transport Children,2201,Contract Hire,Community & Env Services
1072848,Peter Rhodes,510118,01/017JAN19,05/03/2019,1602,0,TRCHIL,Integrated Transport Children,2201,Contract Hire,Community & Env Services
1007228,Rigby Taylor Ltd,510123,RSIN0288906,28/03/2019,1020,170,PRKOP1,Parks Operational Manager  1,3041,Other Materials,Community & Env Services
1046723,Brightprint (Fac008 Payment Only),510127,28195,12/03/2019,315,0,PRG,Tourism General,3301,Printing,Places
1058631,Tara Signs Ltd (Fac008),510128,INV10488,28/03/2019,3293.35,548.89,BEACHP,Beach Patrol,3010,Safety Equipment,Places
1046723,Brightprint (Fac008 Payment Only),510129,28196,12/03/2019,685,0,PRG,Tourism General,3301,Printing,Places
1116929,Pilar Corrias Gallery,510130,PC09339,29/03/2019,420,70,AHG,Art Gallery Summary,3801,Other Expenses,Places
1074052,Brent Stevenson Memorials Ltd,510131,19804,08/03/2019,291.6,48.6,CEMCRE,Cems Crems Etc,3454,Remove And Refix Memorials,Governance & Partnerships
1006385,University Of Central Lancashire,510132,TUI228200010,01/03/2019,350,0,JA0506,Ayse Training,0911,Training Expenses,Children'S Services
1049304,Insight Direct (Uk) Ltd,510190,4271710,28/03/2019,1010.28,168.38,FGAA,Ict Corporate Services,3531,Computer-H'Ware Purchase,Resources
1103692,Calico Enterprise Limited,510192,SINV20/00000987,29/03/2019,3000,500,CWASTE,Commercial Waste,4501,Private Contractors,Community & Env Services
1114727,Elliott Wood Partnership Ltd,510194,INV007837,07/03/2019,20880,3480,FMAK,Acquisitions 9/10,3801,Other Expenses,Places
1114727,Elliott Wood Partnership Ltd,510195,INV008618,07/03/2019,6897.6,1149.6,FMAK,Acquisitions 9/10,3801,Other Expenses,Places
1110202,Preston Bus Ltd,510201,104089,05/03/2019,1620,270,TRCHIL,Integrated Transport Children,2201,Contract Hire,Community & Env Services
1110202,Preston Bus Ltd,510202,104088,05/03/2019,1620,270,TRCHIL,Integrated Transport Children,2201,Contract Hire,Community & Env Services
1066729,Equis Associates Limited,510203,12-48-PG-BC,14/03/2019,16200,2700,CTAHHI,Tramway Extention,6506,Consultants Fees,Capital - Commnctn & Regen
1114704,Morson Human Resources Ltd,510204,HS221004,06/03/2019,2772,462,CTAHHA,Tramway Emergency Works,6506,Consultants Fees,Capital - Commnctn & Regen
1099749,Devonshire Primary Academy,510208,DEV139,04/03/2019,1667,0,OPAREA,Opportunity Areas,4515,Contract Services,Places
1040364,Conlon Construction Ltd,510209,10533,01/03/2019,59086.1,9847.68,CGTABA,Spanish Hall & Cs Façade,6501,Contract Payments,Capital - Commnctn & Regen
1040364,Conlon Construction Ltd,510209,10533,01/03/2019,1522.84,0,ZF0001,"Insurance,Dso,Banking",97B6,Retention Monies - Cap Trsfr,Total Reconciliations
1006196,Prism Medical Uk,510295,5266941A,04/03/2019,3799.01,0,CX4002,Disabled Facilities Grants,6501,Contract Payments,Capital - Adult Social Care
1006196,Prism Medical Uk,510296,5317946,26/03/2019,4165.75,0,CX4002,Disabled Facilities Grants,6501,Contract Payments,Capital - Adult Social Care
1006196,Prism Medical Uk,510297,5318038,26/03/2019,1427,0,CX4002,Disabled Facilities Grants,6501,Contract Payments,Capital - Adult Social Care
1006196,Prism Medical Uk,510298,5318041,26/03/2019,1195,0,CX4002,Disabled Facilities Grants,6501,Contract Payments,Capital - Adult Social Care
1112303,Access-Able (Uk) Limited (Fac001),510299,3120,22/03/2019,5830,0,CX4002,Disabled Facilities Grants,6501,Contract Payments,Capital - Adult Social Care
1006196,Prism Medical Uk,510300,5316079,18/03/2019,1769.38,0,CXAAA,Local Authority Dwellings,6501,Contract Payments,Capital - Chief Executive
1101206,Groundwork And Leisure Services Ltd,510324,G2207,27/03/2019,480,80,SCLEAN,Street Cleaning,4501,Private Contractors,Community & Env Services
1006944,Siemens Financial Services Ltd,510325,212/19/0072341,06/03/2019,5070,845,CWASTE,Commercial Waste,4514,Contract 'E',Community & Env Services
1114832,Able 2 Occupational Therapy Services Ltd,510326,19166,13/03/2019,333.48,0,FC1404,Blue Badge Reform,3401,General Services,Resources
1010423,Child Action Northwest,510335,3654/YJ,05/03/2019,13345,0,VA0010,Vah Management & Admin,3401,General Services,Children'S Services
1010423,Child Action Northwest,510336,3664/YJ,05/03/2019,6672.5,0,VA0010,Vah Management & Admin,3401,General Services,Children'S Services
1090587,M E S Marine Ltd,510337,539,28/03/2019,11758.2,1959.7,BEACHP,Beach Patrol,3010,Safety Equipment,Places
1007801,North West Employers Organisation,510340,12241,15/03/2019,630,105,BEA,Democratic Services & Admin,0911,Training Expenses,Governance & Partnerships
1026738,Cassidy + Ashton,510341,17106,29/03/2019,3480,580,CGICAD,Enterprise Zone,6506,Consultants Fees,Capital - Commnctn & Regen
1082067,Squire Patton Boggs (Uk) Llp,510343,2642975,27/03/2019,75242.86,12540.48,CTAHHA,Tramway Emergency Works,6506,Consultants Fees,Capital - Commnctn & Regen
1071702,Links Signs & Graphics Ltd,510344,LSGI26323,05/03/2019,1512,252,PU2051,Ph Pcc Funding,4501,Private Contractors,Public Health
1118070,Fridge Freezer Direct,510348,INV-034975,13/03/2019,2480.94,413.49,AHHBA,Blackpool Museum,3012,Other Equipment,Places
1021840,Systemslink 2000 Ltd,510365,18414,05/03/2019,4794,799,FB0004,Energy & Sustainability,3532,Comp-Running & License Costs,Resources
1082240,E-On Uk Sustainable Energy Services Ltd,510383,033176,12/03/2019,418.19,69.7,CXC11,Site Development,6515,Bldg Regs / Planning Fees,Capital - Chief Executive
1110952,Mereside Primary Academy,510385,0000000116,06/03/2019,7951,0,OPAREA,Opportunity Areas,4515,Contract Services,Places
1094002,Waterloo Primary Academy,510386,WPSI 14,06/03/2019,1667,0,OPAREA,Opportunity Areas,4515,Contract Services,Places
1102319,Langdale Free School,510387,LFSTRANS001,06/03/2019,1667,0,OPAREA,Opportunity Areas,4515,Contract Services,Places
1012902,Bramblethorpe Ltd,510388,644,06/03/2019,780,130,OPAREA,Opportunity Areas,4515,Contract Services,Places
1116288,Amas Ltd - Common Receipts Account,510389,0751-1380685,11/03/2019,172500,0,HJI,Growth Investments,1301,Rent & Hire Of Premises,Places
1090774,Richardson Traction Limited,510390,20784,06/03/2019,960,160,PJAA,"Erection, Operation & Dismantl",3006,Hire Of Equipment,Community & Env Services
1006419,Tunstall Healthcare (Uk) Ltd,510394,3IN/10332936,22/03/2019,303.6,50.6,APFBAB,Vitaline,4501,Private Contractors,Adult & Families
1006419,Tunstall Healthcare (Uk) Ltd,510395,3IN/10332247,13/03/2019,1872,312,APFBAB,Vitaline,4501,Private Contractors,Adult & Families
1006944,Siemens Financial Services Ltd,510396,244/19/0111320,15/03/2019,793.75,132.29,APFBAB,Vitaline,4501,Private Contractors,Adult & Families
1082721,Duxburys Property Consultants Ltd,510401,22223,06/03/2019,3600,600,CGICAD,Enterprise Zone,6506,Consultants Fees,Capital - Commnctn & Regen
1058510,Lifeline Language Services Ltd,510402,0519130,29/03/2019,328.56,54.76,JEA,Senior Management,3419,Interpreters Fees,Children'S Services
1006292,Vodafone Corporate Ltd,510404,LU58293,13/03/2019,7550.4,1258.4,SBOARD,Springboard,3531,Computer-H'Ware Purchase,Children'S Services
1006944,Siemens Financial Services Ltd,510405,244/19/0114371,19/03/2019,2971.08,495.17,APFBAB,Vitaline,4501,Private Contractors,Adult & Families
1006944,Siemens Financial Services Ltd,510406,244/19/0110338,14/03/2019,1614.68,269.11,APFBAB,Vitaline,4501,Private Contractors,Adult & Families
1006944,Siemens Financial Services Ltd,510407,244/19/0116225,18/03/2019,3088.86,514.81,APFBAB,Vitaline,4501,Private Contractors,Adult & Families
1114541,Integrity Print Ltd,510409,1249386,29/03/2019,860.4,143.4,PARADM,Parking Administration,3302,Stationery,Budgets Outside Cash Limits
1116186,Tcs Media (P&B) Limited,510410,716102,28/03/2019,32594.4,5432.4,BSTPRJ,Better Start Projects,3401,General Services,Better Start Projects
1102434,Inform Cpi Limited,510412,AL58569,13/03/2019,720,120,FC2011,Nndr Collection Costs,3401,General Services,Budgets Outside Cash Limits
1118111,Oversolve Ltd,510413,183959,15/03/2019,779.4,129.9,PRC,Visitor Services,3808,Souvenirs & Gifts,Places
1009980,Choices Furniture Ltd,510416,10385,11/03/2019,399,66.5,JBR,Lac - Placements,4812,Initial Loan Equipment,Children'S Services
1094277,Aitkens Sportsturf Ltd,510417,8140,27/03/2019,790.02,131.67,PRKOP1,Parks Operational Manager  1,3041,Other Materials,Community & Env Services
1117348,Huws Gray Ltd,510419,IO688981,29/03/2019,563.83,93.97,PRKDEV,Parks Development,3041,Other Materials,Community & Env Services
1091050,Howard Palmer T/A Trojan Travel,510420,006,11/03/2019,1500,0,TRCHIL,Integrated Transport Children,2201,Contract Hire,Community & Env Services
1051299,Leisure Travel,510421,INV00413,11/03/2019,1020,0,TRCHIL,Integrated Transport Children,2201,Contract Hire,Community & Env Services
1006449,Tmp (Uk) Ltd,510422,100001202674,29/03/2019,354.96,59.16,TRA,Traffic Management,4501,Private Contractors,Community & Env Services
1100542,Caroline Horn T/A Bentley Training,510424,BEN/396,06/03/2019,520,0,LEISUR,Leisure Management,0911,Training Expenses,Community & Env Services
1100542,Caroline Horn T/A Bentley Training,510425,BEN/403,06/03/2019,1787,0,LEISUR,Leisure Management,0911,Training Expenses,Community & Env Services
1087234,Aitch Tools & Fasteners Ltd,510426,038091,29/03/2019,300,50,PJLA,Maintenance,4501,Private Contractors,Community & Env Services
1049304,Insight Direct (Uk) Ltd,510432,4276273,29/03/2019,3758.03,626.34,FGAA,Ict Corporate Services,3531,Computer-H'Ware Purchase,Resources
1019678,G & S Smirthwaite Ltd,510436,166579,28/03/2019,601.2,100.2,CWAN,Children With Additional Needs,3008,Educational Equipment,Children'S Services
1006586,H Jenkinson & Co Ltd,510437,SINV00836883,28/03/2019,1863.67,310.61,AER,Dual Use Properties,3041,Other Materials,Resources
1006586,H Jenkinson & Co Ltd,510438,SINV00836882,28/03/2019,4473.56,745.59,AER,Dual Use Properties,3041,Other Materials,Resources
1110996,Philip Holmes T/A Dragon Creative,510439,BC0018,11/03/2019,1593.89,0,PJW,Management - Places - Illumina,3413,Consultants,Places
1100542,Caroline Horn T/A Bentley Training,510441,BEN/402,06/03/2019,776.5,0,LEISUR,Leisure Management,0911,Training Expenses,Community & Env Services
1112621,Lk2 Sport & Leisure Ltd,510445,1554,14/03/2019,2400,400,PRKDEV,Parks Development,1012,Premises Maint-Priv.Contractor,Community & Env Services
1112621,Lk2 Sport & Leisure Ltd,510446,1555,14/03/2019,9000,1500,PRKDEV,Parks Development,1012,Premises Maint-Priv.Contractor,Community & Env Services
1051299,Leisure Travel,510447,INV00414,11/03/2019,1500,0,TRCHIL,Integrated Transport Children,2201,Contract Hire,Community & Env Services
1051299,Leisure Travel,510448,INV00415,11/03/2019,1500,0,TRCHIL,Integrated Transport Children,2201,Contract Hire,Community & Env Services
1051299,Leisure Travel,510449,INV00416,11/03/2019,1500,0,TRCHIL,Integrated Transport Children,2201,Contract Hire,Community & Env Services
1108289,Quinyx Ab,510450,INV00005969,11/03/2019,6300,0,LEISUR,Leisure Management,3801,Other Expenses,Community & Env Services
1111999,Simon Critchley Photography,510454,120,29/03/2019,2000,0,AHHBA,Blackpool Museum,3413,Consultants,Places
1106094,Casson Mann Ltd,510455,2369,08/03/2019,49628.7,8271.45,EC7011,Museum - Professional Fees,3413,Consultants,Places
1037025,Meaco Measurement & Control Ltd,510456,4070,29/03/2019,2340,390,AHHBA,Blackpool Museum,3012,Other Equipment,Places
1006940,Smiths Equipment Hire Ltd,510457,V07-689441,21/03/2019,792,132,PJLA,Maintenance,3041,Other Materials,Community & Env Services
1027764,Colins Travel,510462,COL-15,11/03/2019,1185,0,TRCHIL,Integrated Transport Children,2201,Contract Hire,Community & Env Services
1027764,Colins Travel,510463,COL-16,11/03/2019,1230,0,TRCHIL,Integrated Transport Children,2201,Contract Hire,Community & Env Services
1027764,Colins Travel,510464,COL-14,11/03/2019,1185,0,TRCHIL,Integrated Transport Children,2201,Contract Hire,Community & Env Services
1013905,Waltons Coach Hire Limited,510465,16154,21/03/2019,340,0,MUSIC,Music & Cultural Education,2201,Contract Hire,Children'S Services
1099449,Uk Training (Worldwide) Limited,510466,14286/82295,07/03/2019,394.8,65.8,BEA,Democratic Services & Admin,0911,Training Expenses,Governance & Partnerships
1007491,Posturite (Uk) Ltd,510467,INV0637851,29/03/2019,415.8,69.3,HS0001,Headstart Central Expenditure,3801,Other Expenses,Children'S Services
1110499,Desiree Khan T/A Honey Bees Childcare,510473,EM05,06/03/2019,432,0,ALEARN,Adult Learning,0917,Other Exps,Places
1013891,Crosby Associates Ltd,510474,"2,820",07/03/2019,600,100,PRA,Conferences,3315,Marketing,Places
1049304,Insight Direct (Uk) Ltd,510477,4278028,29/03/2019,632.74,105.46,FGAA,Ict Corporate Services,3531,Computer-H'Ware Purchase,Resources
1118213,Certsure Llp,510485,86452753,29/03/2019,4248,708,PJHA,"Depot, Management & Admin",0911,Training Expenses,Community & Env Services
1014996,Peters Ltd T/A Peters Bookselling Svces,510490,0650529,27/03/2019,630,105,LBB,Central Library,3020,Furniture - Purchase,Places
1117328,Northwest Radio Communications Ltd,510493,57484,27/03/2019,1908,318,LEISUR,Leisure Management,3010,Safety Equipment,Community & Env Services
1115721,Tower Learning Centre Exams Ltd,510498,EXAM-053,07/03/2019,300,0,EDDIV,Education Diversity,4101,Other Local Authorities,Children'S Services
1008969,Holdex Plywood Ltd,510499,104378,22/03/2019,1617,269.5,PJOA,Commercial & Marketing,3041,Other Materials,Community & Env Services
1107790,Taylek Ltd,510504,INV-11317,22/03/2019,331.2,55.2,PJLA,Maintenance,3041,Other Materials,Community & Env Services
1009234,Gary Roy Kirkham,510511,GK12,11/03/2019,360,0,TRCHIL,Integrated Transport Children,2201,Contract Hire,Community & Env Services
1009234,Gary Roy Kirkham,510512,GK11,11/03/2019,288,0,TRCHIL,Integrated Transport Children,2201,Contract Hire,Community & Env Services
1006586,H Jenkinson & Co Ltd,510553,SINV00837321,29/03/2019,6407.83,1067.97,AER,Dual Use Properties,3041,Other Materials,Resources
1008817,Radio J  Cabs,510558,515771,07/03/2019,1839.38,0,EDDIV,Education Diversity,2201,Contract Hire,Children'S Services
1107681,Myzone Group Ltd,510559,B2B:INV-9202,07/03/2019,1440,240,LEISUR,Leisure Management,2008,Running Costs-Licences,Community & Env Services
1095165,Tower Learning Centre Ltd,510561,290-804,08/03/2019,3261.6,543.6,EDDIV,Education Diversity,4101,Other Local Authorities,Children'S Services
1007980,Myerscough College,510562,044739,18/03/2019,324,0,EDDIV,Education Diversity,4101,Other Local Authorities,Children'S Services
1035896,Lisson Grove Benefits Program Ltd,510563,59779,22/03/2019,882,147,FC0411,Advice Services,3711,Subscriptions,Resources
1006586,H Jenkinson & Co Ltd,510564,SINV00836884,28/03/2019,504,84,AER,Dual Use Properties,3302,Stationery,Resources
1085092,Lancashire Mind Ltd,510567,599,19/03/2019,27886.78,0,HS0003,Headstart Commissioning,3401,General Services,Children'S Services
1117322,Maccalin Associates Ltd,510569,BOWD25022019,27/03/2019,1000,0,JA0505,Children'S Training,0911,Training Expenses,Children'S Services
1103450,Blackpool Entertainment Company Limited,510570,INV004182,07/03/2019,487.2,81.2,JA0505,Children'S Training,0911,Training Expenses,Children'S Services
1117002,Redraw Travel Ltd T/A Blackpool Minibuses,510575,INV-2635,11/03/2019,1200,0,TRCHIL,Integrated Transport Children,2201,Contract Hire,Community & Env Services
1078235,Springboard Research Limited,510576,2015-22339,07/03/2019,2173.5,362.25,PPA,Head Of Tourism Services,3401,General Services,Places
1117002,Redraw Travel Ltd T/A Blackpool Minibuses,510577,INV-2634,11/03/2019,975,0,TRCHIL,Integrated Transport Children,2201,Contract Hire,Community & Env Services
1117002,Redraw Travel Ltd T/A Blackpool Minibuses,510578,INV-2636,11/03/2019,1710,0,TRCHIL,Integrated Transport Children,2201,Contract Hire,Community & Env Services
1117002,Redraw Travel Ltd T/A Blackpool Minibuses,510579,INV-2633,11/03/2019,1170,195,TRCHIL,Integrated Transport Children,2201,Contract Hire,Community & Env Services
1090661,Genecon Limited,510580,GEN989J,11/03/2019,300,50,MPB,Edc - Economic Dev Company,3413,Consultants,Places
1005071,Blackpool Transport Services Limited,510582,I001238,11/03/2019,1130,0,PVA,Other External Funding,2301,Bus & Tram Fares,Places
1117961,REDACTED PERSONAL DATA,510584,BC/1,07/03/2019,3000,0,DIRCTR,Directorate,3801,Other Expenses,Community & Env Services
1006435,Keep Britain Tidy,510586,INV_S004469,29/03/2019,2496,416,FL1141,Coastal & Envrnmntl Pship Invs,3801,Other Expenses,Community & Env Services
1011121,Fylde Coast Gate Ltd,510588,28273,14/03/2019,1594.35,265.72,GATE,Alleygates,1012,Premises Maint-Priv.Contractor,Community & Env Services
1011121,Fylde Coast Gate Ltd,510589,28272,14/03/2019,456,76,GATE,Alleygates,1012,Premises Maint-Priv.Contractor,Community & Env Services
1053261,Ad Systems (Uk) Limited,510590,5320,11/03/2019,4212,702,CCTV,Cctv,4501,Private Contractors,Public Health
1114857,University Of Brighton,510605,U0135807,29/03/2019,986,0,HS0005,Whole School Approach,0911,Training Expenses,Children'S Services
1072848,Peter Rhodes,510606,01/001FEB19,11/03/2019,987.8,0,TRCHIL,Integrated Transport Children,2201,Contract Hire,Community & Env Services
1072848,Peter Rhodes,510607,01/017FEB19,11/03/2019,979,0,TRCHIL,Integrated Transport Children,2201,Contract Hire,Community & Env Services
1022845,Preservation Equipment Ltd,510609,0000387914,28/03/2019,1258.8,209.8,AHHBA,Blackpool Museum,3012,Other Equipment,Places
1017722,Terrys Carpets,510612,158,07/03/2019,399.6,66.6,FC1802,Social Fund - Client,5210,Community Care Support,Resources
1006912,Sign Post Solutions Ltd T/A Signfix,510615,251045,25/03/2019,6255,0,ZM0018,Highways & Engineering,9773,Orders Received Not Invoiced,Blackpool Services
1006912,Sign Post Solutions Ltd T/A Signfix,510615,251045,25/03/2019,7506,1251,ZM0018,Highways & Engineering,9511A,Stocks Efin,Blackpool Services
1013064,Tarmac Lafarge Trading Limited,510618,9039623874,15/03/2019,441.46,73.57,ENGINE,Engineering,3041,Other Materials,Community & Env Services
1013064,Tarmac Lafarge Trading Limited,510619,9039607172,13/03/2019,796.36,132.72,ENGINE,Engineering,3041,Other Materials,Community & Env Services
1013064,Tarmac Lafarge Trading Limited,510620,9039615812,13/03/2019,680.24,113.37,ENGINE,Engineering,3041,Other Materials,Community & Env Services
1013064,Tarmac Lafarge Trading Limited,510621,9039607168,13/03/2019,617.71,102.95,ENGINE,Engineering,3041,Other Materials,Community & Env Services
1008039,Woodswaste Ltd,510629,029695,20/03/2019,334.56,55.76,CEMCRE,Cems Crems Etc,3801,Other Expenses,Governance & Partnerships
1005071,Blackpool Transport Services Limited,510631,JANFEB19,14/03/2019,1909.5,0,OTHL,Other Learning,2301,Bus & Tram Fares,Children'S Services
1008817,Radio J  Cabs,510633,515801,07/03/2019,3869.28,0,EDDIV,Education Diversity,2201,Contract Hire,Children'S Services
1006292,Vodafone Corporate Ltd,510634,90663878,25/03/2019,37151.68,6016.01,FGAA,Ict Corporate Services,3523,Mobile Phones - Line Rental,Resources
1103655,Artistic Licence Engineering Limited,510636,S-8209,11/03/2019,6292.8,1048.8,FMAK,Acquisitions 9/10,1131,Electrical Equipment - Repairs,Places
1044218,Apcoa Parking Uk Ltd,510637,272686,11/03/2019,12431.29,2071.88,AEV,Vacant & Under Used,3413,Consultants,Resources
1117707,Ravenscroft And Co Surveyors Ltd,510638,478,11/03/2019,672,0,AEE,Estates,0781,Contracted,Resources
1087549,Merlin Entertainments (Blackpool) Ltd,510639,BC-S06124,07/03/2019,3111.66,518.61,PRD,Switch On,3401,General Services,Places
1109762,One Direct,510640,PG19030127,07/03/2019,364.75,60.79,FGAA,Ict Corporate Services,3531,Computer-H'Ware Purchase,Resources
1109762,One Direct,510641,PG19030126,07/03/2019,455.94,75.99,FGAA,Ict Corporate Services,3531,Computer-H'Ware Purchase,Resources
1011714,Michael Hope Haulage Limited,510642,001389,07/03/2019,1814.4,302.4,SCHEME,Highways Schemes,1012,Premises Maint-Priv.Contractor,Community & Env Services
1010314,Blackpool Grand Theatre,510644,AE 480,07/03/2019,4500,750,PTC,"A.C.E. Regen, Tourism & Cultur",1301,Rent & Hire Of Premises,Places
1118322,Westminster Higher Education Forum,510647,HE156429-1508,15/03/2019,276,46,HJA,Growth,0915,Conferences,Places
1110112,REDACTED PERSONAL DATA,510648,BMP 25,15/03/2019,7200,0,EC7011,Museum - Professional Fees,0917,Other Exps,Places
1084591,Social Enterprise Solutions (Uk) Cic,510653,GS009/LOT1,19/03/2019,1280,0,PTA,Economic Development,3401,General Services,Places
1112198,Kkc Engineering Consultants Limited,510654,842/19,29/03/2019,9840,1640,CTAHHA,Tramway Emergency Works,6506,Consultants Fees,Capital - Commnctn & Regen
1114574,Richard Wilson Conservation,510659,1006/2019,22/03/2019,1767,0,AEH,Built Heritage,0981,Professional Fees,Places
1010300,Blacktax Radio Taxis T/A Blackpool Courier,510662,12845,11/03/2019,990,0,TRCHIL,Integrated Transport Children,2201,Contract Hire,Community & Env Services
1057663,Wilde Recruitment Ltd,510665,34423,29/03/2019,517.86,86.31,CTAHHA,Tramway Emergency Works,6501,Contract Payments,Capital - Commnctn & Regen
1008817,Radio J  Cabs,510668,515789,11/03/2019,638.25,0,TRCHIL,Integrated Transport Children,2201,Contract Hire,Community & Env Services
1008817,Radio J  Cabs,510669,515805,11/03/2019,393.07,0,TRCHIL,Integrated Transport Children,2201,Contract Hire,Community & Env Services
1008817,Radio J  Cabs,510670,515787,11/03/2019,907.8,0,TRCHIL,Integrated Transport Children,2201,Contract Hire,Community & Env Services
1008817,Radio J  Cabs,510676,515790,11/03/2019,2957.33,0,TRCHIL,Integrated Transport Children,2201,Contract Hire,Community & Env Services
1012096,St Mary'S Catholic Academy,510677,0000000144,11/03/2019,4858,0,OPAREA,Opportunity Areas,4515,Contract Services,Places
1008817,Radio J  Cabs,510679,515788,11/03/2019,2701.8,0,TRCHIL,Integrated Transport Children,2201,Contract Hire,Community & Env Services
1007960,Mott Macdonald Ltd,510680,IN00408098,28/03/2019,13037.82,2172.97,CTAHHA,Tramway Emergency Works,6506,Consultants Fees,Capital - Commnctn & Regen
1010300,Blacktax Radio Taxis T/A Blackpool Courier,510681,12846,11/03/2019,960,0,TRCHIL,Integrated Transport Children,2201,Contract Hire,Community & Env Services
1117001,Wright Landscapes Ltd,510732,6661,08/03/2019,32883.79,5480.63,CXC11,Site Development,6501,Contract Payments,Capital - Chief Executive
1090774,Richardson Traction Limited,510735,20834,22/03/2019,960,160,PJAA,"Erection, Operation & Dismantl",2211,Casual Hire,Community & Env Services
1113560,Iese Transformation Limited,510737,995,11/03/2019,3284.7,547.45,DOMPFI,Domestic Waste & Waste Pfi,3711,Subscriptions,Community & Env Services
1070036,Gaist Solutions Ltd,510739,10637,11/03/2019,6000,1000,TRB,Maintenance & Works,4501,Private Contractors,Community & Env Services
1070036,Gaist Solutions Ltd,510740,10636,11/03/2019,32640,5440,TRB,Maintenance & Works,4501,Private Contractors,Community & Env Services
1070036,Gaist Solutions Ltd,510741,10635,11/03/2019,28560,4760,TRB,Maintenance & Works,4501,Private Contractors,Community & Env Services
1053261,Ad Systems (Uk) Limited,510743,5337,12/03/2019,264,44,CCTV,Cctv,3003,Equipt-Mtce Repairs,Public Health
1011369,Lancashire County Council,510745,5200182290,11/03/2019,258874,0,FR5001,Concessionary Fares,3401,General Services,Budgets Outside Cash Limits
1011369,Lancashire County Council,510746,5200181208,11/03/2019,293013,0,FR5001,Concessionary Fares,3401,General Services,Budgets Outside Cash Limits
1011369,Lancashire County Council,510747,5200182293,11/03/2019,2160,0,FR5001,Concessionary Fares,3401,General Services,Budgets Outside Cash Limits
1011369,Lancashire County Council,510748,5200181211,11/03/2019,2170,0,FR5001,Concessionary Fares,3401,General Services,Budgets Outside Cash Limits
1105990,Fylde Environmental Services Ltd,510749,BC/102/2019,15/03/2019,2508,0,SCLEAN,Street Cleaning,4501,Private Contractors,Community & Env Services
1088781,Public Policy Exchange Ltd,510752,PPX-25599,11/03/2019,508.8,84.8,HS0001,Headstart Central Expenditure,3605,Confs & Short Courses,Children'S Services
1009050,Harry B Litherland & Co Ltd,510754,674404,15/03/2019,2484,414,FMAK,Acquisitions 9/10,1131,Electrical Equipment - Repairs,Places
1009050,Harry B Litherland & Co Ltd,510755,674414,15/03/2019,1320,220,FMAK,Acquisitions 9/10,1131,Electrical Equipment - Repairs,Places
1008947,Iccm,510756,10797,27/03/2019,1080,180,CN2016,Carleton Crem Works 2018-20,6501,Contract Payments,Capital - Governance & Partner
1060135,Happy Creative Ltd,510758,H4841,15/03/2019,252,42,PU2051,Ph Pcc Funding,4501,Private Contractors,Public Health
1102434,Inform Cpi Limited,510759,AL58590,13/03/2019,636,106,FC2011,Nndr Collection Costs,3401,General Services,Budgets Outside Cash Limits
1006292,Vodafone Corporate Ltd,510762,LV43898,27/03/2019,290.4,48.4,FGAA,Ict Corporate Services,3531,Computer-H'Ware Purchase,Resources
1006292,Vodafone Corporate Ltd,510763,LV43900,27/03/2019,290.4,48.4,FGAA,Ict Corporate Services,3531,Computer-H'Ware Purchase,Resources
1006292,Vodafone Corporate Ltd,510764,LV43902,27/03/2019,290.4,48.4,FGAA,Ict Corporate Services,3531,Computer-H'Ware Purchase,Resources
1006292,Vodafone Corporate Ltd,510765,LV43901,27/03/2019,290.4,48.4,FGAA,Ict Corporate Services,3531,Computer-H'Ware Purchase,Resources
1006292,Vodafone Corporate Ltd,510766,LV43903,27/03/2019,290.4,48.4,FGAA,Ict Corporate Services,3531,Computer-H'Ware Purchase,Resources
1006292,Vodafone Corporate Ltd,510767,LV43904,27/03/2019,290.4,48.4,FGAA,Ict Corporate Services,3531,Computer-H'Ware Purchase,Resources
1006292,Vodafone Corporate Ltd,510768,LV43905,27/03/2019,290.4,48.4,FGAA,Ict Corporate Services,3531,Computer-H'Ware Purchase,Resources
1006292,Vodafone Corporate Ltd,510769,LV43906,27/03/2019,290.4,48.4,FGAA,Ict Corporate Services,3531,Computer-H'Ware Purchase,Resources
1006292,Vodafone Corporate Ltd,510770,LV43907,27/03/2019,290.4,48.4,FGAA,Ict Corporate Services,3531,Computer-H'Ware Purchase,Resources
1006292,Vodafone Corporate Ltd,510771,LV43908,27/03/2019,290.4,48.4,FGAA,Ict Corporate Services,3531,Computer-H'Ware Purchase,Resources
1006292,Vodafone Corporate Ltd,510772,LV54646,28/03/2019,290.4,48.4,FGAA,Ict Corporate Services,3531,Computer-H'Ware Purchase,Resources
1042339,Mash Media Group Ltd,510779,1902179,08/03/2019,1080,180,PRA,Conferences,3315,Marketing,Places
1059205,Safeplace Security Limited,510780,2651,22/03/2019,7950,1325,CCTV,Cctv,3003,Equipt-Mtce Repairs,Public Health
1059205,Safeplace Security Limited,510781,2652,22/03/2019,2780.88,463.48,CCTV,Cctv,3003,Equipt-Mtce Repairs,Public Health
1116762,Dt Electrical (Uk) Ltd,510784,1348,29/03/2019,5191.2,865.2,PJRA,Electrical Infra - Places,4501,Private Contractors,Community & Env Services
1116762,Dt Electrical (Uk) Ltd,510785,1341,22/03/2019,1368,228,PJNA,New Features / Schemes - C & E,1012,Premises Maint-Priv.Contractor,Community & Env Services
1101124,South Shore Academy,510845,SSSI 270,11/03/2019,4858,0,OPAREA,Opportunity Areas,4515,Contract Services,Places
1115226,Baker Lomax & Shackley Ltd,510847,B1444,14/03/2019,2502,417,BCA,Corp And Member Services,3413,Consultants,Governance & Partnerships
1006740,Symology Limited,510849,180585,21/03/2019,38420.23,6403.37,TRA,Traffic Management,4501,Private Contractors,Community & Env Services
1008276,Lock Services,510850,12372,15/03/2019,834.24,0,GATE,Alleygates,1061,Locks And Security,Community & Env Services
1118225,Rae Models Ltd,510853,103008,14/03/2019,2400,400,AHHBA,Blackpool Museum,3801,Other Expenses,Places
1065232,Back Care Solutions Ltd,510857,69317,29/03/2019,550.8,91.8,SSDA,Social Services Direct,3001,Office Equipment Purchase,Adult & Families
1093763,Shapemaster Global Ltd,510858,SI-1142,29/03/2019,1626.11,271.02,LEISUR,Leisure Management,3801,Other Expenses,Community & Env Services
1019622,Stephen  Floweth,510861,HT0018,13/03/2019,660,0,TRCHIL,Integrated Transport Children,2201,Contract Hire,Community & Env Services
1019622,Stephen  Floweth,510862,HT0017,13/03/2019,660,0,TRCHIL,Integrated Transport Children,2201,Contract Hire,Community & Env Services
1019622,Stephen  Floweth,510863,HT0016,13/03/2019,660,0,TRCHIL,Integrated Transport Children,2201,Contract Hire,Community & Env Services
1009763,Curtins Consulting Limited,510867,0029693,22/03/2019,3144,524,CGIBAA,Land Release Fund,6506,Consultants Fees,Capital - Commnctn & Regen
1116431,REDACTED PERSONAL DATA,510871,17,21/03/2019,500,0,JEA,Senior Management,5554,Personal Needs (Lca Only),Children'S Services
1118229,Sunshine Events Uk Ltd,510872,INV-8045,12/03/2019,2508,418,JBT,Looked After Children,3417,Entertainment,Children'S Services
1096607,Cutlers Property Consultancy (Services),510879,0070450,29/03/2019,4420,0,AEE,Estates,0781,Contracted,Resources
1006292,Vodafone Corporate Ltd,510882,LV43899,18/03/2019,1452,242,FGAA,Ict Corporate Services,3531,Computer-H'Ware Purchase,Resources
1010619,Askews And Holts Library Services Ltd,510884,5976077,29/03/2019,391.4,0,LBB,Central Library,3304,Books And Periodicals,Places
1010619,Askews And Holts Library Services Ltd,510885,5976190,29/03/2019,385.87,0,LBB,Central Library,3304,Books And Periodicals,Places
1014996,Peters Ltd T/A Peters Bookselling Svces,510886,1738079,25/03/2019,442.09,0,LBB,Central Library,3304,Books And Periodicals,Places
1088658,D-Tech International Ltd,510887,6929,12/03/2019,2394,399,LBF,Library Management,3532,Comp-Running & License Costs,Places
1053191,Veolia Es (Uk) Limited,510888,OP/I541486,12/03/2019,392221.85,65370.31,DOMPFI,Domestic Waste & Waste Pfi,4501,Private Contractors,Community & Env Services
1044218,Apcoa Parking Uk Ltd,510930,273265,12/03/2019,12431.29,2071.88,AEV,Vacant & Under Used,3413,Consultants,Resources
1009751,Bt Business Direct Limited,510931,IN04406583,13/03/2019,360.62,60.1,CCTV,Cctv,3003,Equipt-Mtce Repairs,Public Health
1080418,Skv Communications Limited,510933,61929,29/03/2019,1980,330,CGTBBB,Conference Centre,6501,Contract Payments,Capital - Commnctn & Regen
1053894,Scl - Society Of Chief Librarians,510935,19-54,13/03/2019,385,0,LBF,Library Management,3605,Confs & Short Courses,Places
1109682,Entertainment Concepts Ltd,510937,169,14/03/2019,799.99,133.33,FMAK,Acquisitions 9/10,1131,Electrical Equipment - Repairs,Places
1006633,Technology Services Ltd T/A The Lock Shop,510940,30025,13/03/2019,684,114,GATE,Alleygates,1061,Locks And Security,Community & Env Services
1053261,Ad Systems (Uk) Limited,510941,5339,13/03/2019,936,156,CCTV,Cctv,3003,Equipt-Mtce Repairs,Public Health
1010423,Child Action Northwest,510942,3703/YJ,28/03/2019,14436.67,0,VA0010,Vah Management & Admin,3401,General Services,Children'S Services
1082240,E-On Uk Sustainable Energy Services Ltd,510943,033191,20/03/2019,1163.01,0,DOMPFI,Domestic Waste & Waste Pfi,3041,Other Materials,Community & Env Services
1034011,Zychem Ltd,510946,14518,14/03/2019,853.2,142.2,CWAN,Children With Additional Needs,3008,Educational Equipment,Children'S Services
1116447,W J Sanderson & Sons Ltd,510948,66647034,29/03/2019,2023.2,337.2,PRKOP1,Parks Operational Manager  1,1012,Premises Maint-Priv.Contractor,Community & Env Services
1008026,Metal Express (Fac083),510949,7025,22/03/2019,1344,224,PJNA,New Features / Schemes - C & E,3041,Other Materials,Community & Env Services
1085660,Bisset Adams Ltd,510974,07550,29/03/2019,34562.4,5760.4,FMAK,Acquisitions 9/10,3801,Other Expenses,Places
1116707,Quartz Project Services,510977,INV4139A,29/03/2019,1500,250,PV7009,Coolsilk Loan,3413,Consultants,Budgets Outside Cash Limits
1116707,Quartz Project Services,510978,INV4139B,29/03/2019,1500,250,FH0003,Bpb Ocean Boulevard3,3413,Consultants,Budgets Outside Cash Limits
1011952,Empowerment,510985,522,14/03/2019,360.74,0,MHE,Undefined Age Group,4512,Other Care Block Payments,Adult & Families
1098569,The Card Network,510987,INV-7064,13/03/2019,314.28,52.38,AER,Dual Use Properties,3012,Other Equipment,Resources
1114704,Morson Human Resources Ltd,510989,HS222689,13/03/2019,1980,330,CTAHHA,Tramway Emergency Works,6506,Consultants Fees,Capital - Commnctn & Regen
1013326,Dsg Retail Ltd,510990,16343678,29/03/2019,1899.96,316.66,HS0009,Digital Mentoring,3531,Computer-H'Ware Purchase,Children'S Services
1090902,Anderson & Sons Contracting & Turf Care,510996,218,12/03/2019,3300,0,TRB,Maintenance & Works,4501,Private Contractors,Community & Env Services
1022781,Moore Readymix Ltd,511000,96887,29/03/2019,1665,277.5,ENGINE,Engineering,3041,Other Materials,Community & Env Services
1022781,Moore Readymix Ltd,511001,96745,22/03/2019,848.7,141.45,ENGINE,Engineering,3041,Other Materials,Community & Env Services
1107205,Newcastle Gateshead Initiative Ltd,511043,10091,13/03/2019,600,100,AHM,Arts Miscellaneous,3701,Grants,Places
1012839,George Cox & Sons Ltd,511050,10327,13/03/2019,1833.36,305.56,CGOAAA,Quality Corridor,6501,Contract Payments,Capital - Commnctn & Regen
1109682,Entertainment Concepts Ltd,511051,130,13/03/2019,799.99,133.33,FMAK,Acquisitions 9/10,1012,Premises Maint-Priv.Contractor,Places
1073045,Bradley Environmental Consultants Ltd (Fac042,511052,30808,15/03/2019,264,44,HJA,Growth,0915,Conferences,Places
1099280,Bowland Farm Experience Ltd (Mobile Farm),511056,55,13/03/2019,624,104,NAB,Sure Start,6287,Education Functions,Children'S Services
1010423,Child Action Northwest,511058,YJ/3271,28/03/2019,1225.59,0,VA0010,Vah Management & Admin,3408,Services To Clients,Children'S Services
1010830,Ace Radio Cabs Limited,511060,0010,14/03/2019,1116,0,TRCHIL,Integrated Transport Children,2201,Contract Hire,Community & Env Services
1010830,Ace Radio Cabs Limited,511061,0009,14/03/2019,1050,0,TRCHIL,Integrated Transport Children,2201,Contract Hire,Community & Env Services
1005071,Blackpool Transport Services Limited,511062,I0001246,19/03/2019,1084.8,0,JEA,Senior Management,5552,Bus Pass / Travel,Children'S Services
1005071,Blackpool Transport Services Limited,511064,I0001245,28/03/2019,830,0,VA0010,Vah Management & Admin,2301,Bus & Tram Fares,Children'S Services
1109814,Nickelodeon Uk Limited,511066,1800000439,22/03/2019,181708.8,30284.8,PRB,Events,3401,General Services,Places
1021686,North West Tree Services,511067,B562,15/03/2019,460.8,76.8,PRKDEV,Parks Development,1021,Growing,Community & Env Services
1109814,Nickelodeon Uk Limited,511068,1800000438,22/03/2019,159168,26528,PRD,Switch On,3401,General Services,Places
1033190,Apse,511071,1819/1399,13/03/2019,420,70,LEISUR,Leisure Management,0914,Training Exp-Seminars,Community & Env Services
1106798,Cd Chauffeur Hire,511078,292,14/03/2019,1134,0,BCA,Corp And Member Services,2211,Casual Hire,Governance & Partnerships
1052237,Elite Cleaning & Environmental Svcs Ltd,511083,53926,14/03/2019,7022.18,1170.37,EDDIV,Education Diversity,1601,Consumable Supplies,Children'S Services
1052237,Elite Cleaning & Environmental Svcs Ltd,511084,53904,14/03/2019,501.26,83.54,EDDIV,Education Diversity,1601,Consumable Supplies,Children'S Services
1012839,George Cox & Sons Ltd,511088,10414,29/03/2019,14826,2471,PRKOP1,Parks Operational Manager  1,1012,Premises Maint-Priv.Contractor,Community & Env Services
1115537,Strange Corporation,511097,H231,29/03/2019,5700,950,PRL,Marketing,3315,Marketing,Places
1018184,Blackpool Skip Hire,511099,6140,22/03/2019,16873.5,2812.25,CWASTE,Commercial Waste,4514,Contract 'E',Community & Env Services
1018184,Blackpool Skip Hire,511100,6141,22/03/2019,1220.16,203.36,CWASTE,Commercial Waste,4514,Contract 'E',Community & Env Services
1018184,Blackpool Skip Hire,511101,6142,19/03/2019,2173.5,362.25,DOMPFI,Domestic Waste & Waste Pfi,4514,Contract 'E',Community & Env Services
1112477,Big Wave Media (Fac060),511107,60462,14/03/2019,7018,1169.67,LEISUR,Leisure Management,3801,Other Expenses,Community & Env Services
1044156,Pell Frischmann,511117,W19 0009,14/03/2019,1465.92,244.32,CTAHHA,Tramway Emergency Works,6506,Consultants Fees,Capital - Commnctn & Regen
1112477,Big Wave Media (Fac060),511119,60432,22/03/2019,3658.79,609.8,LEISUR,Leisure Management,3801,Other Expenses,Community & Env Services
1093421,Effective Pedagogy Solutions Cic,511125,90219,14/03/2019,2070,0,EDDIV,Education Diversity,4101,Other Local Authorities,Children'S Services
1093421,Effective Pedagogy Solutions Cic,511126,80219,14/03/2019,12420,0,EDDIV,Education Diversity,4101,Other Local Authorities,Children'S Services
1078418,Lisclare Limited,511127,SINV03088826,13/03/2019,3596.94,599.49,MTE,Undefined Age Group,5401,Aids To Daily Living,Adult & Families
1086714,Liveasy Ltd,511129,BK0441A,18/03/2019,21730.25,3621.71,MTE,Undefined Age Group,5401,Aids To Daily Living,Adult & Families
1094424,The Networking People,511130,SI106066,29/03/2019,21253.85,3542.31,FGAA,Ict Corporate Services,3532,Comp-Running & License Costs,Resources
1086714,Liveasy Ltd,511131,BK0441B,18/03/2019,10710.98,1785.16,MTE,Undefined Age Group,5401,Aids To Daily Living,Adult & Families
1086714,Liveasy Ltd,511133,BK0441C,18/03/2019,6890.39,1148.4,MTE,Undefined Age Group,5401,Aids To Daily Living,Adult & Families
1086714,Liveasy Ltd,511134,BK00441D,18/03/2019,9463.06,1577.18,MTE,Undefined Age Group,5401,Aids To Daily Living,Adult & Families
1086714,Liveasy Ltd,511135,BK0441E,18/03/2019,9503.81,1583.97,MTE,Undefined Age Group,5401,Aids To Daily Living,Adult & Families
1086714,Liveasy Ltd,511136,BK0441F,18/03/2019,5828.48,971.41,MTE,Undefined Age Group,5401,Aids To Daily Living,Adult & Families
1086714,Liveasy Ltd,511138,BK0441G,18/03/2019,6600.6,1100.1,MTE,Undefined Age Group,5401,Aids To Daily Living,Adult & Families
1086714,Liveasy Ltd,511139,BK0441H,18/03/2019,4914,819,MTE,Undefined Age Group,5401,Aids To Daily Living,Adult & Families
1086714,Liveasy Ltd,511140,BK0441I,18/03/2019,7320.18,1220.03,MTE,Undefined Age Group,5401,Aids To Daily Living,Adult & Families
1006196,Prism Medical Uk,511142,5318837,28/03/2019,6840,1140,MTE,Undefined Age Group,3006,Hire Of Equipment,Adult & Families
1006196,Prism Medical Uk,511144,1142563,28/03/2019,4002.22,667.04,MTE,Undefined Age Group,5401,Aids To Daily Living,Adult & Families
1010619,Askews And Holts Library Services Ltd,511145,5976056,29/03/2019,321.61,0,LBB,Central Library,3304,Books And Periodicals,Places
1006196,Prism Medical Uk,511146,1142564,28/03/2019,270,45,MTE,Undefined Age Group,5401,Aids To Daily Living,Adult & Families
1014996,Peters Ltd T/A Peters Bookselling Svces,511148,1738089,25/03/2019,427.5,0,LBB,Central Library,3304,Books And Periodicals,Places
1014996,Peters Ltd T/A Peters Bookselling Svces,511149,1738080,25/03/2019,397.35,0,LBB,Central Library,3304,Books And Periodicals,Places
1015228,Virgin Media Payments Limited,511150,806981-194,15/03/2019,253.18,42.2,FGAA,Ict Corporate Services,3521,Landline - Line Rental,Resources
1006292,Vodafone Corporate Ltd,511151,LV43897,18/03/2019,3194.4,532.4,FGAA,Ict Corporate Services,3531,Computer-H'Ware Purchase,Resources
1017867,British Telecommunications Plc,511152,VP21330270Q069,14/03/2019,20785.41,3464.23,FGAA,Ict Corporate Services,3521,Landline - Line Rental,Resources
1006576,The Helping Hand Company Ltd,511161,335679,13/03/2019,1008,168,MTE,Undefined Age Group,5401,Aids To Daily Living,Adult & Families
1008756,Sunrise Medical Ltd,511164,19UI037376,13/03/2019,424.8,70.8,MTE,Undefined Age Group,5401,Aids To Daily Living,Adult & Families
1006196,Prism Medical Uk,511165,5297835,13/03/2019,360,60,MVB,65-74,5401,Aids To Daily Living,Adult & Families
1006196,Prism Medical Uk,511166,5311814,13/03/2019,300,50,MVB,65-74,5401,Aids To Daily Living,Adult & Families
1019678,G & S Smirthwaite Ltd,511167,166391,22/03/2019,598.8,99.8,MTE,Undefined Age Group,5401,Aids To Daily Living,Adult & Families
1006196,Prism Medical Uk,511168,5297836,13/03/2019,540,90,MVB,65-74,5401,Aids To Daily Living,Adult & Families
1006196,Prism Medical Uk,511169,5311822,13/03/2019,300,50,MVA,18-64,5401,Aids To Daily Living,Adult & Families
1006196,Prism Medical Uk,511171,5316494,20/03/2019,1278,213,MVA,18-64,5401,Aids To Daily Living,Adult & Families
1106606,Senses Web Solutions Ltd,511197,0001927,14/03/2019,432,72,LEISUR,Leisure Management,3801,Other Expenses,Community & Env Services
1112477,Big Wave Media (Fac060),511203,60659,15/03/2019,304.8,50.8,LEISUR,Leisure Management,3801,Other Expenses,Community & Env Services
1112477,Big Wave Media (Fac060),511204,60630,14/03/2019,1703.64,283.94,LEISUR,Leisure Management,3801,Other Expenses,Community & Env Services
1113243,Mclaughlin & Harvey Ltd,511207,22297,13/03/2019,599034.94,99839.16,CGTBBB,Conference Centre,6501,Contract Payments,Capital - Commnctn & Regen
1113243,Mclaughlin & Harvey Ltd,511207,22297,13/03/2019,15439.04,0,ZF0001,"Insurance,Dso,Banking",97B6,Retention Monies - Cap Trsfr,Total Reconciliations
1089627,C & C Supplies Collinson Ltd,511210,IN590644,29/03/2019,442,73.67,PRKDEV,Parks Development,3041,Other Materials,Community & Env Services
1080269,Iirp Uk & Ireland,511213,1482,20/03/2019,432,72,VA0010,Vah Management & Admin,0911,Training Expenses,Children'S Services
1042292,Warden Construction Limited,511214,W12975,20/03/2019,1041.67,173.61,SCLEAN,Street Cleaning,1012,Premises Maint-Priv.Contractor,Community & Env Services
1010138,C Cabs,511219,03943,15/03/2019,720,0,TRCHIL,Integrated Transport Children,2201,Contract Hire,Community & Env Services
1005071,Blackpool Transport Services Limited,511221,MARCH 2019,26/03/2019,1211.82,0,OTHL,Other Learning,2201,Contract Hire,Children'S Services
1010138,C Cabs,511222,03935,15/03/2019,450,0,TRCHIL,Integrated Transport Children,2201,Contract Hire,Community & Env Services
1010138,C Cabs,511223,03945,15/03/2019,432,0,TRCHIL,Integrated Transport Children,2201,Contract Hire,Community & Env Services
1010138,C Cabs,511225,03954,15/03/2019,805,0,TRCHIL,Integrated Transport Children,2201,Contract Hire,Community & Env Services
1010138,C Cabs,511226,03944,15/03/2019,700,0,TRCHIL,Integrated Transport Children,2201,Contract Hire,Community & Env Services
1112477,Big Wave Media (Fac060),511227,60513,14/03/2019,2377.2,396.2,LEISUR,Leisure Management,3801,Other Expenses,Community & Env Services
1010138,C Cabs,511233,03955,15/03/2019,567,0,TRCHIL,Integrated Transport Children,2201,Contract Hire,Community & Env Services
1010138,C Cabs,511234,03951,15/03/2019,750,0,TRCHIL,Integrated Transport Children,2201,Contract Hire,Community & Env Services
1010138,C Cabs,511235,03949,15/03/2019,690,0,TRCHIL,Integrated Transport Children,2201,Contract Hire,Community & Env Services
1026181,Blackpool Sixth Form College,511286,5100713,15/03/2019,30000,0,OPAREA,Opportunity Areas,4515,Contract Services,Places
1103450,Blackpool Entertainment Company Limited,511297,INV004209,14/03/2019,1242.6,207.1,JA0505,Children'S Training,0911,Training Expenses,Children'S Services
1103450,Blackpool Entertainment Company Limited,511301,INV004204,14/03/2019,1826.4,304.4,JA0505,Children'S Training,0911,Training Expenses,Children'S Services
1103450,Blackpool Entertainment Company Limited,511303,INV004210,14/03/2019,1296,216,FK0071,Corporate Training,0911,Training Expenses,Chief Executive
1101740,Ken Taylor Supplies Limited,511314,0288466,29/03/2019,551.3,0,ZM0018,Highways & Engineering,9773,Orders Received Not Invoiced,Blackpool Services
1101740,Ken Taylor Supplies Limited,511314,0288466,29/03/2019,661.56,110.26,ZM0018,Highways & Engineering,9511A,Stocks Efin,Blackpool Services
1000009,Blackpool & The Fylde College,511323,S0020676,22/03/2019,1300.6,0,AHH,Heritage,3413,Consultants,Places
1107790,Taylek Ltd,511332,INV-11298,29/03/2019,593.74,98.96,PJLA,Maintenance,3041,Other Materials,Community & Env Services
1010138,C Cabs,511335,03952,15/03/2019,720,0,TRCHIL,Integrated Transport Children,2201,Contract Hire,Community & Env Services
1010138,C Cabs,511336,03941,15/03/2019,690,0,TRCHIL,Integrated Transport Children,2201,Contract Hire,Community & Env Services
1010138,C Cabs,511337,03947,15/03/2019,672,0,TRCHIL,Integrated Transport Children,2201,Contract Hire,Community & Env Services
1010138,C Cabs,511338,03953,15/03/2019,1103.6,0,TRCHIL,Integrated Transport Children,2201,Contract Hire,Community & Env Services
1010138,C Cabs,511339,03946,15/03/2019,704,0,TRCHIL,Integrated Transport Children,2201,Contract Hire,Community & Env Services
1010138,C Cabs,511340,03940,15/03/2019,675,0,TRCHIL,Integrated Transport Children,2201,Contract Hire,Community & Env Services
1010138,C Cabs,511341,03939,15/03/2019,750,0,TRCHIL,Integrated Transport Children,2201,Contract Hire,Community & Env Services
1010138,C Cabs,511342,03950,15/03/2019,690,0,TRCHIL,Integrated Transport Children,2201,Contract Hire,Community & Env Services
1010138,C Cabs,511343,03938,15/03/2019,690,0,TRCHIL,Integrated Transport Children,2201,Contract Hire,Community & Env Services
1010138,C Cabs,511344,03936,15/03/2019,1125,0,TRCHIL,Integrated Transport Children,2201,Contract Hire,Community & Env Services
1010138,C Cabs,511346,03937,14/03/2019,720,0,TRCHIL,Integrated Transport Children,2201,Contract Hire,Community & Env Services
1010138,C Cabs,511347,03948,15/03/2019,336,0,TRCHIL,Integrated Transport Children,2201,Contract Hire,Community & Env Services
1026869,Kpmg Llp Fees Account,511348,5501840800,26/03/2019,3654,609,BCA,Corp And Member Services,6101,Audit Fees,Governance & Partnerships
1058510,Lifeline Language Services Ltd,511359,0519096,29/03/2019,335.16,55.86,JEA,Senior Management,5507,Personal,Children'S Services
1005071,Blackpool Transport Services Limited,511360,I0001162,26/03/2019,1698.63,0,FRAEA,Public Transport Contracts,2211,Casual Hire,Community & Env Services
1103450,Blackpool Entertainment Company Limited,511362,INV004200,15/03/2019,36000,6000,PRA,Conferences,3701,Grants,Places
1011970,A1 Streamline Road Markings Ltd,511363,3962,18/03/2019,293.85,48.97,ENGINE,Engineering,3041,Other Materials,Community & Env Services
1055691,Norbain Sd Ltd,511364,I2770844,15/03/2019,698.94,116.49,CCTV,Cctv,3003,Equipt-Mtce Repairs,Public Health
1026869,Kpmg Llp Fees Account,511365,5501840801,15/03/2019,4800,800,BCA,Corp And Member Services,6101,Audit Fees,Governance & Partnerships
1009300,Fylde Coast Women'S Aid,511368,15/18-19,14/03/2019,300,0,JA0505,Children'S Training,0911,Training Expenses,Children'S Services
1011121,Fylde Coast Gate Ltd,511375,28288,22/03/2019,5376,896,SCHEME,Highways Schemes,4501,Private Contractors,Community & Env Services
1064236,Lifestyle Media Group Ltd,511376,100385,14/03/2019,1118.88,186.48,PRM,Publications,3301,Printing,Places
1058751,Emo Oil Ltd,511380,1906163,14/03/2019,579.81,27.61,ZF0001,"Insurance,Dso,Banking",9511A,Stocks Efin,Total Reconciliations
1046723,Brightprint (Fac008 Payment Only),511383,28299,27/03/2019,265,0,PRC,Visitor Services,3301,Printing,Places
1046723,Brightprint (Fac008 Payment Only),511384,28298,22/03/2019,432,72,PRG,Tourism General,3301,Printing,Places
1000009,Blackpool & The Fylde College,511385,S0020501,18/03/2019,6600,0,OPAREA,Opportunity Areas,4515,Contract Services,Places
1012071,Bethell Construction Limited,511407,15883,29/03/2019,3000,500,SCHEME,Highways Schemes,1012,Premises Maint-Priv.Contractor,Community & Env Services
1011714,Michael Hope Haulage Limited,511409,001391,18/03/2019,1965.6,327.6,SCHEME,Highways Schemes,1012,Premises Maint-Priv.Contractor,Community & Env Services
1006940,Smiths Equipment Hire Ltd,511414,V01-690166,15/03/2019,510.24,85.04,ENGINE,Engineering,4501,Private Contractors,Community & Env Services
1013064,Tarmac Lafarge Trading Limited,511416,9039631606,18/03/2019,346.6,57.76,ENGINE,Engineering,3041,Other Materials,Community & Env Services
1077941,Association Of Yot Managers Ltd,511418,128/2018,25/03/2019,4600,0,VA0010,Vah Management & Admin,0911,Training Expenses,Children'S Services
1013064,Tarmac Lafarge Trading Limited,511421,9039700348,27/03/2019,389.18,64.86,ENGINE,Engineering,3041,Other Materials,Community & Env Services
1013064,Tarmac Lafarge Trading Limited,511424,9039631607,18/03/2019,405.62,67.6,ENGINE,Engineering,3041,Other Materials,Community & Env Services
1013064,Tarmac Lafarge Trading Limited,511431,9039670060,22/03/2019,270.12,45.02,ENGINE,Engineering,3041,Other Materials,Community & Env Services
1013064,Tarmac Lafarge Trading Limited,511432,9039659195,22/03/2019,741.25,123.54,ENGINE,Engineering,3041,Other Materials,Community & Env Services
1058510,Lifeline Language Services Ltd,511441,0519091,29/03/2019,325.54,54.26,JBR,Lac - Placements,5507,Personal,Children'S Services
1009300,Fylde Coast Women'S Aid,511447,30/18-19,15/03/2019,300,0,JA0505,Children'S Training,0911,Training Expenses,Children'S Services
1105889,3d Environmental Limited,511451,BBC-0091,25/03/2019,456,76,PYEP,Environmental Protection,4501,Private Contractors,Community & Env Services
1114704,Morson Human Resources Ltd,511454,HS223881,20/03/2019,1980,330,CTAHHA,Tramway Emergency Works,6506,Consultants Fees,Capital - Commnctn & Regen
1087118,Ps & P Limited,511467,106071,29/03/2019,842.59,140.43,FC3001,Housing Benefits,3401,General Services,Budgets Outside Cash Limits
1087118,Ps & P Limited,511468,105526,15/03/2019,1165.8,194.3,FC3001,Housing Benefits,3401,General Services,Budgets Outside Cash Limits
1115995,REDACTED PERSONAL DATA,511469,HST007,29/03/2019,680,0,HS0001,Headstart Central Expenditure,3605,Confs & Short Courses,Children'S Services
1115995,REDACTED PERSONAL DATA,511469,HST007,29/03/2019,1150,0,HS0005,Whole School Approach,0911,Training Expenses,Children'S Services
1010138,C Cabs,511473,03983,21/03/2019,493,0,TRCHIL,Integrated Transport Children,2201,Contract Hire,Community & Env Services
1044156,Pell Frischmann,511475,W19 0008,15/03/2019,1104.44,184.07,CGOAAA,Quality Corridor,6501,Contract Payments,Capital - Commnctn & Regen
1008817,Radio J  Cabs,511476,515831,21/03/2019,882.8,0,TRADUL,Intergrated Transport Adults,2201,Contract Hire,Community & Env Services
1008817,Radio J  Cabs,511477,515835,21/03/2019,840,0,TRCHIL,Integrated Transport Children,2201,Contract Hire,Community & Env Services
1008817,Radio J  Cabs,511478,515834,21/03/2019,1485,0,TRCHIL,Integrated Transport Children,2201,Contract Hire,Community & Env Services
1008817,Radio J  Cabs,511479,515833,21/03/2019,360,0,TRCHIL,Integrated Transport Children,2201,Contract Hire,Community & Env Services
1008817,Radio J  Cabs,511480,515832,21/03/2019,1440,0,TRCHIL,Integrated Transport Children,2201,Contract Hire,Community & Env Services
1009079,Pearson Education Ltd,511548,076236-E1906,19/03/2019,1572.5,0,EDDIV,Education Diversity,3404,Exam Fees & Exps (Sch),Children'S Services
1009079,Pearson Education Ltd,511549,IYC195_VOC,19/03/2019,379.5,0,EDDIV,Education Diversity,3404,Exam Fees & Exps (Sch),Children'S Services
1117174,Ppl Prs Ltd,511561,SIN800240,15/03/2019,14831.99,2472,LEISUR,Leisure Management,3801,Other Expenses,Community & Env Services
1011970,A1 Streamline Road Markings Ltd,511562,3948,18/03/2019,3594.88,599.16,ENGINE,Engineering,1012,Premises Maint-Priv.Contractor,Community & Env Services
1054167,Phf Training,511565,66,15/03/2019,950,0,WELLAT,Pupil Welfare & Attendance,0911,Training Expenses,Children'S Services
1050492,Dods Parliamentary Communications Ltd,511567,PK0132860,15/03/2019,264.6,44.1,JA0505,Children'S Training,0911,Training Expenses,Children'S Services
1114810,Marten Walsh Cherer Ltd,511645,100958,18/03/2019,9123,1520.5,LIFEVE,Life Events Reg & Care,3801,Other Expenses,Governance & Partnerships
1114810,Marten Walsh Cherer Ltd,511646,101566,18/03/2019,3423,570.5,LIFEVE,Life Events Reg & Care,3801,Other Expenses,Governance & Partnerships
1098193,Westminster Primary Academy,511647,6000000027,19/03/2019,15672,0,OPAREA,Opportunity Areas,4515,Contract Services,Places
1011868,W H Tarmacadam Limited,511648,8856,18/03/2019,4608,768,SCHEME,Highways Schemes,1012,Premises Maint-Priv.Contractor,Community & Env Services
1006385,University Of Central Lancashire,511660,TUI228600033,19/03/2019,2175,0,LM0420,Adults Training,0911,Training Expenses,Adult & Families
1006385,University Of Central Lancashire,511661,TUI228600032,19/03/2019,2175,0,LM0420,Adults Training,0911,Training Expenses,Adult & Families
1006385,University Of Central Lancashire,511662,TUI228600034,19/03/2019,2175,0,LM0420,Adults Training,0911,Training Expenses,Adult & Families
1109185,Welfare Call (Cfu) Ltd,511664,19CFU-026,29/03/2019,386.4,64.4,ALEARN,Adult Learning,3711,Subscriptions,Places
1089076,Preston It Ltd,511669,00135,21/03/2019,600,0,EDDIV,Education Diversity,3606,Incidental Expenses,Children'S Services
1082146,Ascentis,511671,63864,27/03/2019,504,0,ALEARN,Adult Learning,3711,Subscriptions,Places
1005071,Blackpool Transport Services Limited,511688,I0001236,19/03/2019,1534.25,0,FRAEA,Public Transport Contracts,2201,Contract Hire,Community & Env Services
1010138,C Cabs,511695,03867,19/03/2019,277.2,0,TRCHIL,Integrated Transport Children,2201,Contract Hire,Community & Env Services
1010138,C Cabs,511698,03879,27/03/2019,270.48,0,TRCHIL,Integrated Transport Children,2201,Contract Hire,Community & Env Services
1006633,Technology Services Ltd T/A The Lock Shop,511727,30088,21/03/2019,627,104.5,GATE,Alleygates,1061,Locks And Security,Community & Env Services
1086156,Water Saving Techniques Limited,511728,4207,25/03/2019,384,64,PARADE,Parades & Seawall,1012,Premises Maint-Priv.Contractor,Community & Env Services
1086156,Water Saving Techniques Limited,511729,4206,25/03/2019,1536,256,PARADE,Parades & Seawall,1012,Premises Maint-Priv.Contractor,Community & Env Services
1024604,The Dartington Hall Trust,511730,R 02542,28/03/2019,11016.6,341.6,JA0505,Children'S Training,3711,Subscriptions,Children'S Services
1077963,Electricity Northwest Ltd,511731,DCA8914,29/03/2019,703.63,117.27,SCHEME,Highways Schemes,1012,Premises Maint-Priv.Contractor,Community & Env Services
1103450,Blackpool Entertainment Company Limited,511732,INV004236,21/03/2019,267,44.5,JA0505,Children'S Training,0911,Training Expenses,Children'S Services
1067110,Thames Card Technology Ltd,511733,024837,22/03/2019,2829.96,471.66,LEISUR,Leisure Management,3801,Other Expenses,Community & Env Services
1112477,Big Wave Media (Fac060),511740,60685,27/03/2019,7018,1169.67,LEISUR,Leisure Management,3801,Other Expenses,Community & Env Services
1085463,Pivotal Education Ltd,511741,PEUK03415,25/03/2019,2370,395,MNGMT,Central Management,5555,Educational Support,Children'S Services
1006944,Siemens Financial Services Ltd,511743,244/19/0121095,27/03/2019,3225.68,537.61,APFBAB,Vitaline,4501,Private Contractors,Adult & Families
1006944,Siemens Financial Services Ltd,511745,244/19/0119417,25/03/2019,2453.03,408.83,APFBAB,Vitaline,4501,Private Contractors,Adult & Families
1006944,Siemens Financial Services Ltd,511746,244/19/0124377,29/03/2019,2275.32,379.22,APFBAB,Vitaline,4501,Private Contractors,Adult & Families
1006944,Siemens Financial Services Ltd,511748,244/19/0124376,29/03/2019,4417.82,736.3,APFBAB,Vitaline,4501,Private Contractors,Adult & Families
1006944,Siemens Financial Services Ltd,511749,244/19/0123114,29/03/2019,4899.24,816.53,APFBAB,Vitaline,4501,Private Contractors,Adult & Families
1112477,Big Wave Media (Fac060),511752,60658,19/03/2019,445.2,74.2,LEISUR,Leisure Management,3801,Other Expenses,Community & Env Services
1017261,De Vere Village Trading No1 Limited,511756,VBL01/HA7191/2,26/03/2019,5520,920,HS0007,Young People & Comm'Y Engagemt,3401,General Services,Children'S Services
1117372,F J Fabrication Ltd,511757,00004596,29/03/2019,498.84,83.14,PRKOP1,Parks Operational Manager  1,1012,Premises Maint-Priv.Contractor,Community & Env Services
1027246,Active Lancashire Ltd,511758,772,19/03/2019,450,0,PESPRT,Pe And Sport Team,3801,Other Expenses,Community & Env Services
1117707,Ravenscroft And Co Surveyors Ltd,511762,479,21/03/2019,672,0,AEE,Estates,0781,Contracted,Resources
1028228,Danfo (Uk) Ltd,511763,0000004388,19/03/2019,55000,9166.67,PUBCON,Public Conveniences,4501,Private Contractors,Community & Env Services
1118294,Glanville House Ltd,511766,INV-202844,22/03/2019,348,58,PRC,Visitor Services,3808,Souvenirs & Gifts,Places
1099266,Yesss Electrical Ltd,511770,078IN80706,22/03/2019,968.4,161.4,CCTV,Cctv,3003,Equipt-Mtce Repairs,Public Health
1006292,Vodafone Corporate Ltd,511772,LV61698,20/03/2019,77599.39,12933.23,CS0739,Ict Refresh,6525,I.T. Hardware Purchase,Capital - Resources
1006292,Vodafone Corporate Ltd,511773,LV61699,20/03/2019,77599.39,12933.23,CS0739,Ict Refresh,6525,I.T. Hardware Purchase,Capital - Resources
1081205,The Excellent Ramp System Ltd,511776,1744,21/03/2019,1585,0,CX4002,Disabled Facilities Grants,6501,Contract Payments,Capital - Adult Social Care
1006196,Prism Medical Uk,511777,5302990,21/03/2019,3677.7,0,CX4002,Disabled Facilities Grants,6501,Contract Payments,Capital - Adult Social Care
1006196,Prism Medical Uk,511779,5317535,25/03/2019,1305,0,CX4002,Disabled Facilities Grants,6501,Contract Payments,Capital - Adult Social Care
1006944,Siemens Financial Services Ltd,511780,244/19/0121096,27/03/2019,3622.09,603.68,APFBAB,Vitaline,4501,Private Contractors,Adult & Families
1006944,Siemens Financial Services Ltd,511781,244/19/0124378,29/03/2019,2328.4,388.06,APFBAB,Vitaline,4501,Private Contractors,Adult & Families
1006196,Prism Medical Uk,511782,5317536,25/03/2019,1305,0,CX4002,Disabled Facilities Grants,6501,Contract Payments,Capital - Adult Social Care
1006944,Siemens Financial Services Ltd,511783,244/19/0122051,28/03/2019,2658.16,443.02,APFBAB,Vitaline,4501,Private Contractors,Adult & Families
1006196,Prism Medical Uk,511784,5316504,21/03/2019,12781.79,0,CX4002,Disabled Facilities Grants,6501,Contract Payments,Capital - Adult Social Care
1006196,Prism Medical Uk,511786,5318611,28/03/2019,1440,0,CXAAA,Local Authority Dwellings,6501,Contract Payments,Capital - Chief Executive
1006196,Prism Medical Uk,511787,5309440,21/03/2019,4420,0,CX4002,Disabled Facilities Grants,6501,Contract Payments,Capital - Adult Social Care
1099749,Devonshire Primary Academy,511790,DEV142,19/03/2019,16958,0,OPAREA,Opportunity Areas,4515,Contract Services,Places
1097195,Fylde Coast Academy Trust,511793,JM201819-02,19/03/2019,1500,0,OPAREA,Opportunity Areas,4515,Contract Services,Places
1118267,Jupiter Play And Leisure Ltd,511799,2484,22/03/2019,95150.4,15858.4,CLBNAA,Anchorsholme Park Playground,6501,Contract Payments,Capital - Comm & Environ
1011719,Allcool (Nw) Ltd,511803,66864,20/03/2019,1623.6,270.6,FGAA,Ict Corporate Services,1121,Heating & Ventilation,Resources
1023362,Jewson Limited,511805,0181/00190693,28/03/2019,366.1,0,ZM0018,Highways & Engineering,9773,Orders Received Not Invoiced,Blackpool Services
1023362,Jewson Limited,511805,0181/00190693,28/03/2019,439.32,73.22,ZM0018,Highways & Engineering,9511A,Stocks Efin,Blackpool Services
1059837,Gensler Europe Ltd,511807,17164,29/03/2019,18000,3000,HJA,Growth,3413,Consultants,Places
1092245,Connor Specialist Paving,511815,TACGRID02,20/03/2019,60288,10048,TRB,Maintenance & Works,4501,Private Contractors,Community & Env Services
1009166,Glasdon Uk Ltd,511816,SI770666,22/03/2019,2818.9,469.82,SCLEAN,Street Cleaning,3041,Other Materials,Community & Env Services
1023362,Jewson Limited,511820,0181/00190315,19/03/2019,366.1,0,ZM0018,Highways & Engineering,9773,Orders Received Not Invoiced,Blackpool Services
1023362,Jewson Limited,511820,0181/00190315,19/03/2019,439.32,73.22,ZM0018,Highways & Engineering,9511A,Stocks Efin,Blackpool Services
1023362,Jewson Limited,511822,0181/00190583,22/03/2019,295.2,49.2,ZM0018,Highways & Engineering,9511A,Stocks Efin,Blackpool Services
1088787,Timberplay Limited,511828,7333,29/03/2019,93696,15616,PRKDEV,Parks Development,4501,Private Contractors,Community & Env Services
1035017,Newauto Ltd T/A Mogo Uk,511831,T29055,22/03/2019,1199.18,199.86,PYLA,Licencing,3041,Other Materials,Community & Env Services
1103450,Blackpool Entertainment Company Limited,511837,EPK2504/38-5849,19/03/2019,916.5,152.75,EDDIV,Education Diversity,3606,Incidental Expenses,Children'S Services
1013064,Tarmac Lafarge Trading Limited,511845,9039700355,29/03/2019,1673,278.83,ENGINE,Engineering,3041,Other Materials,Community & Env Services
1006292,Vodafone Corporate Ltd,511847,LV81844,25/03/2019,580.8,96.8,FGAA,Ict Corporate Services,3531,Computer-H'Ware Purchase,Resources
1006292,Vodafone Corporate Ltd,511848,LV81846,25/03/2019,290.4,48.4,FGAA,Ict Corporate Services,3531,Computer-H'Ware Purchase,Resources
1006292,Vodafone Corporate Ltd,511853,LV61700,20/03/2019,75889,12648.16,CS0739,Ict Refresh,6525,I.T. Hardware Purchase,Capital - Resources
1011868,W H Tarmacadam Limited,511857,8897,21/03/2019,133380,22230,SCHEME,Highways Schemes,1012,Premises Maint-Priv.Contractor,Community & Env Services
1112571,Footprint Solutions Limited,511864,3963,29/03/2019,1068,178,BAAA,Legal Services,3533,Computer S/W Purchases,Governance & Partnerships
1058510,Lifeline Language Services Ltd,511865,0319051,20/03/2019,684,114,JEA,Senior Management,5507,Personal,Children'S Services
1006099,Blackpool Teaching Hospitals Nhs Ft,511882,1110045628,20/03/2019,13987.8,0,HS0003,Headstart Commissioning,3401,General Services,Children'S Services
1006924,Singleton Lodge Country House,511883,1394,20/03/2019,480,80,HS0001,Headstart Central Expenditure,3605,Confs & Short Courses,Children'S Services
1104656,Launch Events North West Ltd,511886,1461,26/03/2019,299,0,PTA,Economic Development,3315,Marketing,Places
1005071,Blackpool Transport Services Limited,511889,I0001277,28/03/2019,7680,0,OTHL,Other Learning,2301,Bus & Tram Fares,Children'S Services
1004963,F Parkinson Ltd,511899,9398,19/03/2019,66214.62,11035.77,CN2016,Carleton Crem Works 2018-20,6501,Contract Payments,Capital - Governance & Partner
1004963,F Parkinson Ltd,511899,9398,19/03/2019,2904.15,0,ZF0001,"Insurance,Dso,Banking",97B6,Retention Monies - Cap Trsfr,Total Reconciliations
1008581,Key Industrial Equipment Ltd,511943,I0896915,20/03/2019,728.99,121.5,AHHBA,Blackpool Museum,3012,Other Equipment,Places
1114421,Football Foundation Trading Limited,511944,0971,20/03/2019,5278.5,879.75,HS0002,Headstart Evaluation,3401,General Services,Children'S Services
1042794,Carlton Fuels Limited,511946,2197836,21/03/2019,21608.26,3601.38,ZF0001,"Insurance,Dso,Banking",9511A,Stocks Efin,Total Reconciliations
1076636,Chicken Joes Ltd,511959,534124,25/03/2019,301.48,0,CATERG,Catering Services,3101,Provisions,Community & Env Services
1023362,Jewson Limited,511965,0181/00190298,25/03/2019,304.2,0,ZM0018,Highways & Engineering,9511A,Stocks Efin,Blackpool Services
1023362,Jewson Limited,511967,0181/00302963,21/03/2019,396.8,0,ZM0018,Highways & Engineering,9773,Orders Received Not Invoiced,Blackpool Services
1023362,Jewson Limited,511967,0181/00302963,21/03/2019,476.16,79.36,ZM0018,Highways & Engineering,9511A,Stocks Efin,Blackpool Services
1009751,Bt Business Direct Limited,511968,IN04424556,20/03/2019,1099.39,183.23,CCTV,Cctv,3003,Equipt-Mtce Repairs,Public Health
1006143,Yorkshire Purchasing Organisation,511971,231817061,25/03/2019,623.84,103.98,MNGMT,Central Management,5555,Educational Support,Children'S Services
1006143,Yorkshire Purchasing Organisation,511972,231817060,25/03/2019,1184.04,197.34,EDDIV,Education Diversity,3020,Furniture - Purchase,Children'S Services
1006292,Vodafone Corporate Ltd,511980,L V67844,21/03/2019,9995.4,1665.9,CS0739,Ict Refresh,6525,I.T. Hardware Purchase,Capital - Resources
1087316,Lovell Partnership Ltd,511983,INTERIM 39,20/03/2019,179528.03,0,CXC11,Site Development,6501,Contract Payments,Capital - Chief Executive
1087316,Lovell Partnership Ltd,511983,INTERIM 39,20/03/2019,5552.41,0,ZH0001,Housing Revenue Account,97B6,Retention Monies - Cap Trsfr,Housing Revenue Account
1031803,Berry'S Beds Ltd,511986,4042,27/03/2019,299,49.83,APCBBE,Extra Support,3020,Furniture - Purchase,Adult & Families
1030730,Springfield Methodist Church,511987,03/19,20/03/2019,666.66,0,FC1802,Social Fund - Client,5209,Crisis/Emergency Support,Resources
1023362,Jewson Limited,511990,0181/00190284,25/03/2019,670.3,0,ZM0018,Highways & Engineering,9773,Orders Received Not Invoiced,Blackpool Services
1023362,Jewson Limited,511990,0181/00190284,25/03/2019,804.36,134.06,ZM0018,Highways & Engineering,9511A,Stocks Efin,Blackpool Services
1023362,Jewson Limited,511991,0181/00190287,20/03/2019,285,0,ZM0018,Highways & Engineering,9773,Orders Received Not Invoiced,Blackpool Services
1023362,Jewson Limited,511991,0181/00190287,20/03/2019,342,57,ZM0018,Highways & Engineering,9511A,Stocks Efin,Blackpool Services
1004963,F Parkinson Ltd,511992,9405,20/03/2019,15879.42,2646.57,COBAAA,Town Hall & Municl Buildings,6501,Contract Payments,Capital - Resources
1004963,F Parkinson Ltd,511992,9405,20/03/2019,13232.85,0,ZF0001,"Insurance,Dso,Banking",97A6,Retention Monies - Capital,Total Reconciliations
1004963,F Parkinson Ltd,511995,9406,20/03/2019,23958,3993,COBAAA,Town Hall & Municl Buildings,6501,Contract Payments,Capital - Resources
1004963,F Parkinson Ltd,511995,9406,20/03/2019,19965,0,ZF0001,"Insurance,Dso,Banking",97A6,Retention Monies - Capital,Total Reconciliations
1053021,Wesley Media/The Yaboo Company Ltd,512018,INV89,20/03/2019,1006.8,167.8,CEMCRE,Cems Crems Etc,1111,Cremators,Governance & Partnerships
1114118,Medequip Assistive Technology Limited,512029,43754,29/03/2019,535.25,89.21,MTE,Undefined Age Group,3006,Hire Of Equipment,Adult & Families
1114118,Medequip Assistive Technology Limited,512030,43740,29/03/2019,9615.67,1602.61,MTE,Undefined Age Group,3006,Hire Of Equipment,Adult & Families
1114118,Medequip Assistive Technology Limited,512031,43494,21/03/2019,556.6,92.77,MTE,Undefined Age Group,3006,Hire Of Equipment,Adult & Families
1008743,James Leckey Design Ltd T/A Vida Global,512032,OP/I143474,21/03/2019,2643.6,440.6,MTE,Undefined Age Group,5401,Aids To Daily Living,Adult & Families
1078418,Lisclare Limited,512036,SINV03089248,21/03/2019,1128.3,188.05,MTE,Undefined Age Group,5401,Aids To Daily Living,Adult & Families
1067733,West Lancs Roofing,512045,0724,22/03/2019,1056,176,ZM0003,Planning,9624,Rechargeable Works Account,Place Directorate
1117608,Pts Ltd,512047,PTS/0010/19,21/03/2019,6556.27,1092.71,CTABWA,Ltp Scheme 17/18,6501,Contract Payments,Capital - Commnctn & Regen
1075026,Henco International Ltd,512048,9681,21/03/2019,11972.4,1995.4,AEB,Buildings,1301,Rent & Hire Of Premises,Resources
1117252,Cookson & Son Moving,512049,1124,25/03/2019,6240,1040,AEB,Buildings,3321,Porterage,Resources
1044156,Pell Frischmann,512055,W19 0068,26/03/2019,7470.72,1245.12,CTAHHA,Tramway Emergency Works,6506,Consultants Fees,Capital - Commnctn & Regen
1118007,Fcfm Grp Investments V11 Ltd,512061,BLACKPOOL280219,29/03/2019,385.76,0,CATERG,Catering Services,3101,Provisions,Community & Env Services
1055691,Norbain Sd Ltd,512065,I2774966,25/03/2019,432.43,72.07,CCTV,Cctv,3003,Equipt-Mtce Repairs,Public Health
1101639,Aardvark Art Services Limited,512066,INV-5750,27/03/2019,269.92,44.99,AHG,Art Gallery Summary,2211,Casual Hire,Places
1053592,Tfs Training Consultants Ltd,512067,158,25/03/2019,660,110,FK0071,Corporate Training,0911,Training Expenses,Chief Executive
1117757,Abeona Consulting Limited,512069,201902AFA(195I),22/03/2019,3500,0,EP8007,Tic Maternity Pathway,3413,Consultants,Tic Maternity Pathway
1041219,Abelglass Trade Supplies Ltd,512071,INV-2542,28/03/2019,1257.6,0,CX4002,Disabled Facilities Grants,6501,Contract Payments,Capital - Adult Social Care
1041219,Abelglass Trade Supplies Ltd,512073,INV-2543,25/03/2019,2616,0,CX4002,Disabled Facilities Grants,6501,Contract Payments,Capital - Adult Social Care
1114664,REDACTED PERSONAL DATA,512078,015,21/03/2019,1940,0,HS0005,Whole School Approach,0911,Training Expenses,Children'S Services
1105362,Engie Regeneration Ltd T/A Keepmoat,512091,CSCT001303-011,21/03/2019,18232.64,3038.77,CORSAA,Remodelling Clc Gr Park,6501,Contract Payments,Capital - Resources
1105362,Engie Regeneration Ltd T/A Keepmoat,512091,CSCT001303-011,21/03/2019,15193.87,0,ZF0001,"Insurance,Dso,Banking",97A6,Retention Monies - Capital,Total Reconciliations
1011868,W H Tarmacadam Limited,512095,8894,21/03/2019,22968,3828,SCHEME,Highways Schemes,1012,Premises Maint-Priv.Contractor,Community & Env Services
1011868,W H Tarmacadam Limited,512097,8887,21/03/2019,25356,4226,SCHEME,Highways Schemes,1012,Premises Maint-Priv.Contractor,Community & Env Services
1010830,Ace Radio Cabs Limited,512098,0011,21/03/2019,650,0,TRCHIL,Integrated Transport Children,2201,Contract Hire,Community & Env Services
1055691,Norbain Sd Ltd,512099,I2774968,25/03/2019,8245.28,1374.21,CCTV,Cctv,3003,Equipt-Mtce Repairs,Public Health
1114727,Elliott Wood Partnership Ltd,512101,INV008827,21/03/2019,6486,1081,FMAK,Acquisitions 9/10,3801,Other Expenses,Places
1114931,Rc Sound And Technical,512102,INV-000072,25/03/2019,4266.6,0,FMAK,Acquisitions 9/10,1131,Electrical Equipment - Repairs,Places
1111234,Cbre Ltd,512151,50CP100004197,29/03/2019,18000,3000,HJA,Growth,3413,Consultants,Places
1111234,Cbre Ltd,512152,50BCD00052295,29/03/2019,4200,700,HJA,Growth,3413,Consultants,Places
1009009,Hermolle Associates Ltd,512153,9669,21/03/2019,456,76,HJA,Growth,3413,Consultants,Places
1009009,Hermolle Associates Ltd,512154,9670,21/03/2019,456,76,HJA,Growth,3413,Consultants,Places
1054611,Cd Gifts And Awards T/A The Trophy Den,512155,278,21/03/2019,299,0,MUSIC,Music & Cultural Education,3801,Other Expenses,Children'S Services
1087953,Blackpool Local Education Partnership Ltd,512162,SI10036,21/03/2019,10404.76,1734.12,EM1028,St Marys,4515,Contract Services,Children'S Services
1105284,Altrincham Girls Grammar School,512163,AGSI 2168,25/03/2019,2957,0,OPAREA,Opportunity Areas,4515,Contract Services,Places
1012071,Bethell Construction Limited,512168,15904,29/03/2019,9416.64,1569.44,ENGINE,Engineering,1012,Premises Maint-Priv.Contractor,Community & Env Services
1023362,Jewson Limited,512171,0181/00189904,21/03/2019,366.1,0,ZM0018,Highways & Engineering,9773,Orders Received Not Invoiced,Blackpool Services
1023362,Jewson Limited,512171,0181/00189904,21/03/2019,439.32,73.22,ZM0018,Highways & Engineering,9511A,Stocks Efin,Blackpool Services
1011970,A1 Streamline Road Markings Ltd,512173,3969,22/03/2019,252,42,ENGINE,Engineering,3041,Other Materials,Community & Env Services
1011714,Michael Hope Haulage Limited,512174,001393,22/03/2019,806.4,134.4,SCHEME,Highways Schemes,1012,Premises Maint-Priv.Contractor,Community & Env Services
1087579,Ur Potential Cic,512179,01819/281URP-BC,28/03/2019,1400,0,ALEARN,Adult Learning,0781,Contracted,Places
1075026,Henco International Ltd,512183,9713,21/03/2019,1547.83,257.97,AEB,Buildings,1801,Premises Insurance,Resources
1114704,Morson Human Resources Ltd,512189,HS224956,27/03/2019,1980,330,CTAHHA,Tramway Emergency Works,6506,Consultants Fees,Capital - Commnctn & Regen
1087034,Cool Milk Limited,512190,CML00023790,27/03/2019,15917.35,0,SCHBRK,Free School Breakfasts,3107,Milk For Drinking,Community & Env Services
1118014,Fordingbridge Plc,512192,132559,29/03/2019,1800,300,CN2016,Carleton Crem Works 2018-20,6501,Contract Payments,Capital - Governance & Partner
1118165,Pendrich Height Services Ltd,512193,0000010823,29/03/2019,10752,1792,FMAK,Acquisitions 9/10,1131,Electrical Equipment - Repairs,Places
1011712,Na Robson Ltd,512194,9811,29/03/2019,1404,234,FMAK,Acquisitions 9/10,1131,Electrical Equipment - Repairs,Places
1096150,Norbreck Primary Academy,512195,20190319-01,22/03/2019,500,0,MUSIC,Music & Cultural Education,3801,Other Expenses,Children'S Services
1033420,Steel Appeal,512196,4424,22/03/2019,5316,886,AHHBA,Blackpool Museum,3012,Other Equipment,Places
1091329,Pentagull Limited,512197,10190,22/03/2019,7195.5,1199.25,FGAA,Ict Corporate Services,3532,Comp-Running & License Costs,Resources
1071918,St Cuthberts Catholic Academy,512200,0000000037,22/03/2019,340,0,MNGMT,Central Management,5555,Educational Support,Children'S Services
1008817,Radio J  Cabs,512206,515830,22/03/2019,1310.33,0,EDDIV,Education Diversity,2201,Contract Hire,Children'S Services
1008817,Radio J  Cabs,512207,515848,22/03/2019,2884.5,0,TRCHIL,Integrated Transport Children,2201,Contract Hire,Community & Env Services
1008817,Radio J  Cabs,512208,515847,22/03/2019,1795.05,0,TRCHIL,Integrated Transport Children,2201,Contract Hire,Community & Env Services
1008817,Radio J  Cabs,512209,515845,22/03/2019,824.1,0,TRCHIL,Integrated Transport Children,2201,Contract Hire,Community & Env Services
1008817,Radio J  Cabs,512210,515846,22/03/2019,2268.22,0,TRCHIL,Integrated Transport Children,2201,Contract Hire,Community & Env Services
1008817,Radio J  Cabs,512211,515867,22/03/2019,396.23,0,TRCHIL,Integrated Transport Children,2201,Contract Hire,Community & Env Services
1008817,Radio J  Cabs,512212,515863,22/03/2019,3096.38,0,EDDIV,Education Diversity,2201,Contract Hire,Children'S Services
1100201,D & A Scrivens And Son,512283,6926,29/03/2019,1528.8,254.8,CWASTE,Commercial Waste,1012,Premises Maint-Priv.Contractor,Community & Env Services
1079488,Recycling Lives Ltd,512292,222539,28/03/2019,2016,336,CWASTE,Commercial Waste,4514,Contract 'E',Community & Env Services
1079488,Recycling Lives Ltd,512294,221189,22/03/2019,2304,384,CWASTE,Commercial Waste,4514,Contract 'E',Community & Env Services
1079488,Recycling Lives Ltd,512298,219847,22/03/2019,1152,192,CWASTE,Commercial Waste,4514,Contract 'E',Community & Env Services
1063638,Pristine Hygiene,512314,4643,22/03/2019,383.1,63.85,APCBAA,Coopers Way,3408,Services To Clients,Adult & Families
1083256,Community Lighting Partnership (Bpool) Ltd,512315,111,25/03/2019,497400.89,82900.15,FL1259,Pfi Management Costs,4501,Private Contractors,Community & Env Services
1035614,Marton Academy,512317,MASI 44,25/03/2019,1667,0,OPAREA,Opportunity Areas,4515,Contract Services,Places
1040364,Conlon Construction Ltd,512318,10549,22/03/2019,98127.77,16354.63,CGTABA,Spanish Hall & Cs Façade,6501,Contract Payments,Capital - Commnctn & Regen
1040364,Conlon Construction Ltd,512318,10549,22/03/2019,2335.99,0,ZF0001,"Insurance,Dso,Banking",97B6,Retention Monies - Cap Trsfr,Total Reconciliations
1010311,Boc Limited,512412,3051676315,25/03/2019,306.08,51.01,LEISUR,Leisure Management,3060,Chemicals,Community & Env Services
1105558,Westminster Forum Projects T/A Westminster,512454,W157582-1528,26/03/2019,276,46,CGICAD,Enterprise Zone,6527,Marketing,Capital - Commnctn & Regen
1008141,Martin Brown Paints Ltd,512455,HCO025525,26/03/2019,271.49,0,ZM0018,Highways & Engineering,9773,Orders Received Not Invoiced,Blackpool Services
1008141,Martin Brown Paints Ltd,512455,HCO025525,26/03/2019,325.79,54.3,ZM0018,Highways & Engineering,9511A,Stocks Efin,Blackpool Services
1060135,Happy Creative Ltd,512464,H4825,28/03/2019,2712,452,PTA,Economic Development,3315,Marketing,Places
1084591,Social Enterprise Solutions (Uk) Cic,512470,GS010/LOT1,29/03/2019,1280,0,PTA,Economic Development,3401,General Services,Places
1008878,Cipfa Business Limited,512481,3140602,26/03/2019,900,150,AEF,Facilities,3605,Confs & Short Courses,Resources
1107681,Myzone Group Ltd,512483,B2B:88257,26/03/2019,720,120,LEISUR,Leisure Management,3101,Provisions,Community & Env Services
1011896,Capita Business Services Ltd,512484,6003880420,26/03/2019,8445.6,1407.6,FBBEA,"Income, Recovery & Debtors",3532,Comp-Running & License Costs,Resources
1011896,Capita Business Services Ltd,512484,6003880420,26/03/2019,4471.2,745.2,FCACA,Benefits - Admin,3532,Comp-Running & License Costs,Resources
1011896,Capita Business Services Ltd,512485,6003880419,26/03/2019,1490.4,248.4,FBBEA,"Income, Recovery & Debtors",3532,Comp-Running & License Costs,Resources
1011896,Capita Business Services Ltd,512485,6003880419,26/03/2019,1490.4,248.4,FCACA,Benefits - Admin,3532,Comp-Running & License Costs,Resources
1006644,Telewest/Virgin Media Payments Ltd,512511,078850001547,26/03/2019,284.4,47.4,FGAA,Ict Corporate Services,3521,Landline - Line Rental,Resources
1006644,Telewest/Virgin Media Payments Ltd,512512,067437901506,26/03/2019,3264.75,544.11,FGAA,Ict Corporate Services,3521,Landline - Line Rental,Resources
1006644,Telewest/Virgin Media Payments Ltd,512513,067437901003,26/03/2019,3545.71,590.95,FGAA,Ict Corporate Services,3521,Landline - Line Rental,Resources
1006644,Telewest/Virgin Media Payments Ltd,512514,081127901504,26/03/2019,612,102,FGAA,Ict Corporate Services,3521,Landline - Line Rental,Resources
1041219,Abelglass Trade Supplies Ltd,512516,INV-2506,26/03/2019,1136.4,189.4,CX4002,Disabled Facilities Grants,6501,Contract Payments,Capital - Adult Social Care
1028228,Danfo (Uk) Ltd,512520,0000004413,26/03/2019,55000,9166.67,PUBCON,Public Conveniences,4501,Private Contractors,Community & Env Services
1096460,Mwuk Limited T/A Alexandra,512527,OLSINV/04791338,27/03/2019,309.7,51.62,FCADA,Customer Services,3201,Clothing & Uniforms,Resources
1118393,Phil Chambers Consultancy,512532,PCC1,27/03/2019,1680,0,EC7011,Museum - Professional Fees,3413,Consultants,Places
1088636,Tarmac Building Products Ltd,512537,SI01529297,29/03/2019,1076,0,ZM0018,Highways & Engineering,9773,Orders Received Not Invoiced,Blackpool Services
1088636,Tarmac Building Products Ltd,512537,SI01529297,29/03/2019,1291.2,215.2,ZM0018,Highways & Engineering,9511A,Stocks Efin,Blackpool Services
1023161,Suez Recycling And Recovery Uk Ltd,512582,80133908,27/03/2019,52773.61,8795.6,DOMPFI,Domestic Waste & Waste Pfi,4501,Private Contractors,Community & Env Services
1080175,Sanders Polyfilms Ltd,512583,INS006023,27/03/2019,1637.17,272.86,PARADM,Parking Administration,3801,Other Expenses,Budgets Outside Cash Limits
1118491,School-Home Support Service (Uk),512589,584,27/03/2019,83668.82,0,OPAREA,Opportunity Areas,4515,Contract Services,Places
1112575,Bcc Eiffel Ltd,512597,9000/9156,29/03/2019,36000,6000,HJA,Growth,3413,Consultants,Places
1006385,University Of Central Lancashire,512601,TUI228900009,27/03/2019,650,0,LM0420,Adults Training,0911,Training Expenses,Adult & Families
1112388,Fragance Uk - Blackpool Ltd T/A Imperialhotel,512602,4246,29/03/2019,252,42,AHHBA,Blackpool Museum,1704,Bed & Breakfast Accomm.,Places
1049385,Fylde Coast Ymca,512607,10307,29/03/2019,756,126,FK0071,Corporate Training,0911,Training Expenses,Chief Executive
1049385,Fylde Coast Ymca,512608,10309,29/03/2019,2376,396,FK0071,Corporate Training,0911,Training Expenses,Chief Executive
1049385,Fylde Coast Ymca,512609,10308,29/03/2019,756,126,FK0071,Corporate Training,0911,Training Expenses,Chief Executive
1049385,Fylde Coast Ymca,512610,10306,29/03/2019,840,140,FK0071,Corporate Training,0911,Training Expenses,Chief Executive
1115723,Dfn Charitable Foundation,512616,DFN-1002,28/03/2019,1200,200,PSEARC,Project Search,3532,Comp-Running & License Costs,Places
1080418,Skv Communications Limited,512620,61926,29/03/2019,3000,500,HS0001,Headstart Central Expenditure,3806,Advertising-General,Children'S Services
1026676,Redman Smith Ltd ( Plastics Blackpool),512623,1000,29/03/2019,500,0,ZM0018,Highways & Engineering,9773,Orders Received Not Invoiced,Blackpool Services
1026676,Redman Smith Ltd ( Plastics Blackpool),512623,1000,29/03/2019,500,0,ZM0018,Highways & Engineering,9511A,Stocks Efin,Blackpool Services
1009755,D Kirkham,512625,006,29/03/2019,1725,0,TRCHIL,Integrated Transport Children,2201,Contract Hire,Community & Env Services
1009844,Community Transport Association Uk,512629,126073,28/03/2019,400,0,INTRAD,Integrated Transport Admin,2001,Purchases,Community & Env Services
1101740,Ken Taylor Supplies Limited,512634,CR08187,29/03/2019,272.3,0,ZM0018,Highways & Engineering,9511A,Stocks Efin,Blackpool Services
1088636,Tarmac Building Products Ltd,512647,SI01524767,28/03/2019,485.16,0,ZM0018,Highways & Engineering,9773,Orders Received Not Invoiced,Blackpool Services
1088636,Tarmac Building Products Ltd,512647,SI01524767,28/03/2019,582.19,97.03,ZM0018,Highways & Engineering,9511A,Stocks Efin,Blackpool Services
1019175,Guardian News & Media Ltd,512662,1173698,29/03/2019,5040,840,PBF,Communications,0921,Advertising (Staff Vac.),Chief Executive
1010667,Argos Business Solutions Ltd,512663,01749170,28/03/2019,358.99,59.82,FC1802,Social Fund - Client,5210,Community Care Support,Resources
1111329,Cabinet Office,512664,3742761,28/03/2019,350,0,FBBBA,Audit & Investigations,3711,Subscriptions,Resources
1066517,Wsp Uk  Ltd,512665,64396928,28/03/2019,30300,5050,PARADM,Parking Administration,3531,Computer-H'Ware Purchase,Budgets Outside Cash Limits
1087234,Aitch Tools & Fasteners Ltd,512668,037998,29/03/2019,512.34,0,ZM0018,Highways & Engineering,9773,Orders Received Not Invoiced,Blackpool Services
1087234,Aitch Tools & Fasteners Ltd,512668,037998,29/03/2019,614.81,102.47,ZM0018,Highways & Engineering,9511A,Stocks Efin,Blackpool Services
1011923,Rp Tyson Construction Ltd,512697,IN2587,27/03/2019,145042.72,0,CXC11,Site Development,6501,Contract Payments,Capital - Chief Executive
1011923,Rp Tyson Construction Ltd,512697,IN2587,27/03/2019,4485.86,0,ZH0001,Housing Revenue Account,97B6,Retention Monies - Cap Trsfr,Housing Revenue Account
1115493,Kennet Equipment Leasing Ltd,512698,MI/0079200,29/03/2019,282.37,47.06,CATERG,Catering Services,3401,General Services,Community & Env Services
1103450,Blackpool Entertainment Company Limited,512699,INV004022,29/03/2019,1000,166.67,PESPRT,Pe And Sport Team,3801,Other Expenses,Community & Env Services
1052237,Elite Cleaning & Environmental Svcs Ltd,512701,53603,29/03/2019,6771.54,1128.59,EDDIV,Education Diversity,1601,Consumable Supplies,Children'S Services
1099703,Anchorsholme Academy,512744,ANCTRANS/1819,28/03/2019,1667,0,OPAREA,Opportunity Areas,4515,Contract Services,Places
1117821,U-Explore Limited,512745,101774,29/03/2019,17619.6,2936.6,OPAREA,Opportunity Areas,4515,Contract Services,Places
1021388,Cidari Education Ltd T/A St Georges School,512746,SGSI 68,28/03/2019,4858,0,OPAREA,Opportunity Areas,4515,Contract Services,Places
1095986,Hawes Side Academy,512749,HSAI0041,28/03/2019,1667,0,OPAREA,Opportunity Areas,4515,Contract Services,Places
1011714,Michael Hope Haulage Limited,512753,001394,28/03/2019,1411.2,235.2,SCHEME,Highways Schemes,1012,Premises Maint-Priv.Contractor,Community & Env Services
1018184,Blackpool Skip Hire,512754,012634,28/03/2019,359.28,59.88,SCHEME,Highways Schemes,1012,Premises Maint-Priv.Contractor,Community & Env Services
1012071,Bethell Construction Limited,512758,15925,29/03/2019,9416.64,1569.44,SCHEME,Highways Schemes,1012,Premises Maint-Priv.Contractor,Community & Env Services
1052237,Elite Cleaning & Environmental Svcs Ltd,512759,53350,28/03/2019,6771.54,1128.59,EDDIV,Education Diversity,1601,Consumable Supplies,Children'S Services
1066073,Blackpool Coastal Housing,512771,30001463,28/03/2019,6178.32,1029.72,AEF,Facilities,1011,Premises Maint - Dso,Resources
1066073,Blackpool Coastal Housing,512772,30001464,28/03/2019,10612.34,1768.72,AEF,Facilities,1011,Premises Maint - Dso,Resources
1066073,Blackpool Coastal Housing,512773,30001465,28/03/2019,11135.52,1855.92,AEF,Facilities,1011,Premises Maint - Dso,Resources
1066073,Blackpool Coastal Housing,512774,30001466,28/03/2019,8159.66,1359.94,AEF,Facilities,1011,Premises Maint - Dso,Resources
1066073,Blackpool Coastal Housing,512775,30001468,28/03/2019,23283.91,3880.65,AEF,Facilities,1011,Premises Maint - Dso,Resources
1066073,Blackpool Coastal Housing,512776,30001469,28/03/2019,6903.42,1150.57,AEF,Facilities,1011,Premises Maint - Dso,Resources
1066073,Blackpool Coastal Housing,512777,30001470,28/03/2019,5825.69,970.95,AEF,Facilities,1011,Premises Maint - Dso,Resources
1066073,Blackpool Coastal Housing,512778,30001472,28/03/2019,18891.02,3148.5,AEF,Facilities,1011,Premises Maint - Dso,Resources
1066073,Blackpool Coastal Housing,512779,30001453,28/03/2019,10989.6,1831.6,AEF,Facilities,1011,Premises Maint - Dso,Resources
1066073,Blackpool Coastal Housing,512780,30001462,28/03/2019,5571.56,928.59,AEF,Facilities,1011,Premises Maint - Dso,Resources
1066073,Blackpool Coastal Housing,512793,30001467,28/03/2019,134696.47,22449.41,AEF,Facilities,1011,Premises Maint - Dso,Resources
1066073,Blackpool Coastal Housing,512795,30001487,28/03/2019,13819.2,2303.2,AEF,Facilities,1011,Premises Maint - Dso,Resources
1066073,Blackpool Coastal Housing,512796,30001555,28/03/2019,1746,291,AEF,Facilities,1011,Premises Maint - Dso,Resources
1066073,Blackpool Coastal Housing,512799,30001556,28/03/2019,3441.6,573.6,AEF,Facilities,1011,Premises Maint - Dso,Resources
1066073,Blackpool Coastal Housing,512800,30001557,28/03/2019,2428.8,404.8,AEF,Facilities,1011,Premises Maint - Dso,Resources
1066073,Blackpool Coastal Housing,512801,30001558,28/03/2019,2913.6,485.6,AEF,Facilities,1011,Premises Maint - Dso,Resources
1066073,Blackpool Coastal Housing,512802,30001561,28/03/2019,3867,644.5,AEF,Facilities,1011,Premises Maint - Dso,Resources
1066073,Blackpool Coastal Housing,512804,30001562,28/03/2019,1533.6,255.6,AEF,Facilities,1011,Premises Maint - Dso,Resources
1066073,Blackpool Coastal Housing,512805,30001563,28/03/2019,1474.2,245.7,AEF,Facilities,1011,Premises Maint - Dso,Resources
1066073,Blackpool Coastal Housing,512806,30001564,28/03/2019,4764.3,794.05,AEF,Facilities,1011,Premises Maint - Dso,Resources
1066073,Blackpool Coastal Housing,512808,30001559,28/03/2019,1684.8,280.8,AEF,Facilities,1011,Premises Maint - Dso,Resources
1066073,Blackpool Coastal Housing,512809,30001560,28/03/2019,3726,621,AEF,Facilities,1011,Premises Maint - Dso,Resources
1066073,Blackpool Coastal Housing,512810,30001565,28/03/2019,2002.8,333.8,AEF,Facilities,1011,Premises Maint - Dso,Resources
1066073,Blackpool Coastal Housing,512811,30001566,28/03/2019,1578,263,AEF,Facilities,1011,Premises Maint - Dso,Resources
1066073,Blackpool Coastal Housing,512813,30001567,28/03/2019,2988,498,AEF,Facilities,1011,Premises Maint - Dso,Resources
1066073,Blackpool Coastal Housing,512814,30001568,28/03/2019,4901.82,816.97,AEF,Facilities,1011,Premises Maint - Dso,Resources
1080418,Skv Communications Limited,512818,61922,28/03/2019,9210,1535,HS0001,Headstart Central Expenditure,3806,Advertising-General,Children'S Services
1101124,South Shore Academy,512822,SSSI 274,28/03/2019,25000,0,OPAREA,Opportunity Areas,4515,Contract Services,Places
1094002,Waterloo Primary Academy,512826,WPSI 16,28/03/2019,19968,0,OPAREA,Opportunity Areas,4515,Contract Services,Places
1016258,M J Teale Plant Hire Ltd,512833,B8731,29/03/2019,294.34,49.06,SCHEME,Highways Schemes,3041,Other Materials,Community & Env Services
1077963,Electricity Northwest Ltd,512936,DCA8735,29/03/2019,389.03,64.84,SCHEME,Highways Schemes,1012,Premises Maint-Priv.Contractor,Community & Env Services
1012071,Bethell Construction Limited,512944,15897,29/03/2019,1224.07,204.01,ENGINE,Engineering,1012,Premises Maint-Priv.Contractor,Community & Env Services
1012071,Bethell Construction Limited,512945,15900,29/03/2019,1394.24,232.37,ENGINE,Engineering,1012,Premises Maint-Priv.Contractor,Community & Env Services
1012071,Bethell Construction Limited,512946,15901,29/03/2019,1612.52,268.75,ENGINE,Engineering,1012,Premises Maint-Priv.Contractor,Community & Env Services
1012071,Bethell Construction Limited,512947,15902,29/03/2019,2471.12,411.85,ENGINE,Engineering,1012,Premises Maint-Priv.Contractor,Community & Env Services
1012071,Bethell Construction Limited,512948,15896,29/03/2019,1581.08,263.51,ENGINE,Engineering,1012,Premises Maint-Priv.Contractor,Community & Env Services
1012071,Bethell Construction Limited,512949,15899,29/03/2019,1020.25,170.04,ENGINE,Engineering,1012,Premises Maint-Priv.Contractor,Community & Env Services
1012071,Bethell Construction Limited,512950,15898,29/03/2019,3907.32,651.22,ENGINE,Engineering,1012,Premises Maint-Priv.Contractor,Community & Env Services
1012071,Bethell Construction Limited,512951,15895,29/03/2019,2030.3,338.38,ENGINE,Engineering,1012,Premises Maint-Priv.Contractor,Community & Env Services
1012071,Bethell Construction Limited,512952,15903,29/03/2019,14445.64,2407.61,ENGINE,Engineering,1012,Premises Maint-Priv.Contractor,Community & Env Services
1023478,Highfield Leadership Academy,512955,HLSI 272,29/03/2019,27525,0,OPAREA,Opportunity Areas,4515,Contract Services,Places
1023478,Highfield Leadership Academy,512956,HLSI 273,29/03/2019,595.5,0,OPAREA,Opportunity Areas,4515,Contract Services,Places
1010386,Montgomery Academy,512957,3000000125,29/03/2019,6400,0,OPAREA,Opportunity Areas,4515,Contract Services,Places
1096486,Roseacre Primary Academy,512958,RPA/1118JW,29/03/2019,1667,0,OPAREA,Opportunity Areas,4515,Contract Services,Places
1066073,Blackpool Coastal Housing,512959,30001574,29/03/2019,41133.59,6855.6,AEF,Facilities,1011,Premises Maint - Dso,Resources
1066073,Blackpool Coastal Housing,512960,30001569,29/03/2019,10154.57,1692.43,AEF,Facilities,1011,Premises Maint - Dso,Resources
1066073,Blackpool Coastal Housing,512961,30001570,29/03/2019,64126.76,10687.79,AEF,Facilities,1011,Premises Maint - Dso,Resources
1066073,Blackpool Coastal Housing,512962,30001571,29/03/2019,1356,226,AEF,Facilities,1011,Premises Maint - Dso,Resources
1066073,Blackpool Coastal Housing,512963,30001572,29/03/2019,1185.6,197.6,AEF,Facilities,1011,Premises Maint - Dso,Resources
1066073,Blackpool Coastal Housing,512964,30001573,29/03/2019,9324.49,1554.08,AEF,Facilities,1011,Premises Maint - Dso,Resources
1023478,Highfield Leadership Academy,512966,HLSI 271,29/03/2019,4456.3,0,OPAREA,Opportunity Areas,4515,Contract Services,Places
1110202,Preston Bus Ltd,512975,104142,29/03/2019,2268,378,TRCHIL,Integrated Transport Children,2201,Contract Hire,Community & Env Services
1110202,Preston Bus Ltd,512976,104141,29/03/2019,2268,378,TRCHIL,Integrated Transport Children,2201,Contract Hire,Community & Env Services
1012902,Bramblethorpe Ltd,512977,653,29/03/2019,1170,195,OPAREA,Opportunity Areas,4515,Contract Services,Places
1041219,Abelglass Trade Supplies Ltd,3908911,INV-0743,06/03/2019,988.8,164.8,CXB71,Hra Capital Programme 2018/19,6501,Contract Payments,Capital - Chief Executive
1088102,Whistl Uk Limited,3954944,IN18US18007268,18/03/2019,5080.79,846.8,FCADA,Customer Services,3511,Postages,Resources
1040140,Scottish Power,3994684,1604 4882 533,01/03/2019,308.42,14.69,FL1308,Blackpool Housing Company,1202,Electricity,Resources
1022793,Scottish Hydro Electric,4001027,11727931/0014,07/03/2019,1292.68,215.44,FL1305,Winter Gardens (Recharge Accou,1202,Electricity,Resources
1022793,Scottish Hydro Electric,4001029,11727931/0012,07/03/2019,1417.02,236.17,FL1305,Winter Gardens (Recharge Accou,1202,Electricity,Resources
1007814,Water Plus Limited,4001894,INV04033390-7,20/03/2019,288,0,FL1302,A&E - Academies Hold A/C,1401,Water Charges-Metered,Resources
1007814,Water Plus Limited,4001903,INV04033390-11,20/03/2019,8570.41,0,FL1302,A&E - Academies Hold A/C,1401,Water Charges-Metered,Resources
1007814,Water Plus Limited,4001905,INV04033390-12,20/03/2019,356.88,0,FL1302,A&E - Academies Hold A/C,1401,Water Charges-Metered,Resources
1007814,Water Plus Limited,4001908,INV04033390-19,20/03/2019,433.24,0,FL1302,A&E - Academies Hold A/C,1401,Water Charges-Metered,Resources
1007814,Water Plus Limited,4001910,INV04033390-20,20/03/2019,805.35,0,FL1302,A&E - Academies Hold A/C,1401,Water Charges-Metered,Resources
1007814,Water Plus Limited,4001915,INV04033390-22,20/03/2019,488.95,0,FL1302,A&E - Academies Hold A/C,1401,Water Charges-Metered,Resources
1007814,Water Plus Limited,4001923,INV04033390-16,20/03/2019,304.31,0,FL1302,A&E - Academies Hold A/C,1401,Water Charges-Metered,Resources
1007814,Water Plus Limited,4001925,INV04033390-17,20/03/2019,588.26,0,FL1302,A&E - Academies Hold A/C,1401,Water Charges-Metered,Resources
1105240,Hanzak Ltd T/A Dr Rashad Nazir,4005552,20557RN,08/03/2019,1629,0,JDEAAA,Safeguarding Adults,4501,Private Contractors,Adult & Families
1112920,Keys Group Progressive Care & Education Ltd,4008999,0000006056,28/03/2019,3060,0,CWAN,Children With Additional Needs,2211,Casual Hire,Children'S Services
1112920,Keys Group Progressive Care & Education Ltd,4009000,0000006057,06/03/2019,9855,0,CWAN,Children With Additional Needs,2211,Casual Hire,Children'S Services
1066073,Blackpool Coastal Housing,4014366,30001537,06/03/2019,24426.83,4071.14,CXAAA,Local Authority Dwellings,6501,Contract Payments,Capital - Chief Executive
1007516,Phoenix Commercial Collections Ltd,4017798,105447,01/03/2019,10867.74,1811.28,FBBEA,"Income, Recovery & Debtors",3807,Legal & Court Costs,Resources
1109886,Livewire Systems Ltd,4018206,1977,01/03/2019,737.92,122.99,LEISUR,Leisure Management,1012,Premises Maint-Priv.Contractor,Community & Env Services
1022793,Scottish Hydro Electric,4019076,341765020/0001,07/03/2019,922.47,153.74,FL1308,Blackpool Housing Company,1202,Electricity,Resources
1113801,REDACTED PERSONAL DATA,4019514,220168,01/03/2019,520,0,JEA,Senior Management,4809,Special Guardianship,Children'S Services
1029067,Johnston Sweepers Limited,4021693,61702989,01/03/2019,485.24,80.87,CVMU,Cvmu,3041,Other Materials,Community & Env Services
1029067,Johnston Sweepers Limited,4021695,61703733,01/03/2019,757.99,126.33,CVMU,Cvmu,3041,Other Materials,Community & Env Services
1080720,Shb Hire Ltd,4021702,11053838,01/03/2019,1622.88,270.48,CVMU,Cvmu,2211,Casual Hire,Community & Env Services
1024235,Adoption Matters,4021779,190898,01/03/2019,499.35,0,JBR,Lac - Placements,3420,Adoption Agency Fees,Children'S Services
1007516,Phoenix Commercial Collections Ltd,4021838,105598,01/03/2019,11070.43,1845.1,FBBEA,"Income, Recovery & Debtors",3807,Legal & Court Costs,Resources
1007516,Phoenix Commercial Collections Ltd,4021840,105599,01/03/2019,1030.89,171.82,FBBEA,"Income, Recovery & Debtors",3807,Legal & Court Costs,Resources
1105443,The Coroners' Courts Support Service,4022004,2102/BKP,01/03/2019,1463,0,LIFEVE,Life Events Reg & Care,3801,Other Expenses,Governance & Partnerships
1007516,Phoenix Commercial Collections Ltd,4022091,105600,01/03/2019,744,124,FV6705,Phoenix Commercial Collection,7366,Car Parking Fees,Budgets Outside Cash Limits
1084496,Acorn Treatment & Housing,4022179,SINV80/00000642,01/03/2019,2192.14,0,MPA,18-64,4563,Priv-Stc Carers-Residential,Adult & Families
1084496,Acorn Treatment & Housing,4022180,SINV80/00000643,01/03/2019,2192.14,0,MPA,18-64,4563,Priv-Stc Carers-Residential,Adult & Families
1084496,Acorn Treatment & Housing,4022182,SINV80/00000644,01/03/2019,2192.14,0,MPA,18-64,4563,Priv-Stc Carers-Residential,Adult & Families
1088102,Whistl Uk Limited,4022203,IN18US19000925,04/03/2019,4190.04,698.34,FCADA,Customer Services,3511,Postages,Resources
1103360,Complete Background Screening Ltd,4022204,INV-13113,08/03/2019,288,48,FK1005,Dbs Recharging,6207,Personnel Services,Chief Executive
1106288,Blackpool Housing Company Ltd,4022396,2379,05/03/2019,8094.32,974.66,CXB71,Hra Capital Programme 2018/19,6501,Contract Payments,Capital - Chief Executive
1117457,Wrps Ltd,4022406,3052,06/03/2019,2503.44,417.24,CXB71,Hra Capital Programme 2018/19,6501,Contract Payments,Capital - Chief Executive
1104767,North Star Environmental Ltd,4022454,INV-14457,01/03/2019,1218,203,CXB71,Hra Capital Programme 2018/19,6501,Contract Payments,Capital - Chief Executive
1040140,Scottish Power,4022456,1602 8623 075,01/03/2019,315.32,15.02,FL1308,Blackpool Housing Company,1202,Electricity,Resources
1073045,Bradley Environmental Consultants Ltd (Fac042,4022503,30647,07/03/2019,300,50,FL1306,Project Recharges Holding A/C,1012,Premises Maint-Priv.Contractor,Resources
1073324,Dale Power Solutions Plc,4022504,SI148986,01/03/2019,688.8,114.8,AER,Dual Use Properties,1012,Premises Maint-Priv.Contractor,Resources
1111328,Hadley Fraser Ltd,4022936,BLA082,08/03/2019,5746.32,957.72,JDEAAA,Safeguarding Adults,4501,Private Contractors,Adult & Families
1058510,Lifeline Language Services Ltd,4023084,0419071,01/03/2019,756,126,JEA,Senior Management,4403,Special Needs - Children,Children'S Services
1116015,REDACTED PERSONAL DATA,4023097,255165,01/03/2019,480,80,JEA,Senior Management,3807,Legal & Court Costs,Children'S Services
1113165,Target Psychology Ltd,4023107,1/19/1807,01/03/2019,1987.44,331.24,JEA,Senior Management,3807,Legal & Court Costs,Children'S Services
1069882,Highwire Ltd,4023871,I13488,08/03/2019,690,115,PTA,Economic Development,1012,Premises Maint-Priv.Contractor,Places
1010104,Canon (Uk ) Ltd,4024091,402062069,01/03/2019,828.34,138.06,PRINTS,Corporate Print Services,3001,Office Equipment Purchase,Places
1053480,Gj Plastics Limited,4024107,29209,01/03/2019,3825,637.5,PRINTS,Corporate Print Services,3408,Services To Clients,Places
1006238,Walton Summit Truck Centre Ltd,4024179,35081371,06/03/2019,3531.51,588.59,CVMU,Cvmu,4501,Private Contractors,Community & Env Services
1007753,Probrush T/A Northern Municipal Spares Ltd,4024182,19242,08/03/2019,1212.12,202.02,CVMU,Cvmu,3041,Other Materials,Community & Env Services
1013690,Enterprise Rent-A-Car Uk Ltd,4024206,850029647854,08/03/2019,335.42,55.9,CVMU,Cvmu,2211,Casual Hire,Community & Env Services
1013690,Enterprise Rent-A-Car Uk Ltd,4024207,850029647099,07/03/2019,293.5,48.92,CVMU,Cvmu,2211,Casual Hire,Community & Env Services
1085392,Enterprise Rent-A-Car Uk Ltd,4024218,HAY9124667,01/03/2019,552,92,CVMU,Cvmu,2211,Casual Hire,Community & Env Services
1085392,Enterprise Rent-A-Car Uk Ltd,4024219,HAY9124658,01/03/2019,1536,256,CVMU,Cvmu,2211,Casual Hire,Community & Env Services
1085392,Enterprise Rent-A-Car Uk Ltd,4024220,HAY9124656,01/03/2019,1536,256,CVMU,Cvmu,2211,Casual Hire,Community & Env Services
1085392,Enterprise Rent-A-Car Uk Ltd,4024222,HAY9124664,01/03/2019,2732.4,455.4,CVMU,Cvmu,2211,Casual Hire,Community & Env Services
1085392,Enterprise Rent-A-Car Uk Ltd,4024224,HAY9124663,01/03/2019,262.8,43.8,CVMU,Cvmu,2211,Casual Hire,Community & Env Services
1085392,Enterprise Rent-A-Car Uk Ltd,4024225,HAY9124666,01/03/2019,410.4,68.4,CVMU,Cvmu,2211,Casual Hire,Community & Env Services
1085392,Enterprise Rent-A-Car Uk Ltd,4024226,HAY9124660,01/03/2019,283.2,47.2,CVMU,Cvmu,2211,Casual Hire,Community & Env Services
1085392,Enterprise Rent-A-Car Uk Ltd,4024227,HAY9124661,01/03/2019,1536,256,CVMU,Cvmu,2211,Casual Hire,Community & Env Services
1085392,Enterprise Rent-A-Car Uk Ltd,4024228,HAY9124659,01/03/2019,571.2,95.2,CVMU,Cvmu,2211,Casual Hire,Community & Env Services
1085392,Enterprise Rent-A-Car Uk Ltd,4024229,HAY9124662,01/03/2019,1536,256,CVMU,Cvmu,2211,Casual Hire,Community & Env Services
1085392,Enterprise Rent-A-Car Uk Ltd,4024230,HAY9124657,01/03/2019,1536,256,CVMU,Cvmu,2211,Casual Hire,Community & Env Services
1007516,Phoenix Commercial Collections Ltd,4024532,105765,08/03/2019,14566.04,2427.68,FBBEA,"Income, Recovery & Debtors",3807,Legal & Court Costs,Resources
1007612,REDACTED PERSONAL DATA,4024729,255494,07/03/2019,1200,200,JEA,Senior Management,3807,Legal & Court Costs,Children'S Services
1104767,North Star Environmental Ltd,4024751,INV-14573,08/03/2019,1260,210,CXB71,Hra Capital Programme 2018/19,6501,Contract Payments,Capital - Chief Executive
1106677,REDACTED PERSONAL DATA,4024754,415383,01/03/2019,840,140,JEA,Senior Management,3807,Legal & Court Costs,Children'S Services
1086620,REDACTED PERSONAL DATA,4024756,416194,01/03/2019,1080,180,JEA,Senior Management,3807,Legal & Court Costs,Children'S Services
1087367,REDACTED PERSONAL DATA,4024783,255833,01/03/2019,660,110,JEA,Senior Management,3807,Legal & Court Costs,Children'S Services
1022793,Scottish Hydro Electric,4024829,91770163/0001,07/03/2019,409.41,19.49,FL1308,Blackpool Housing Company,1202,Electricity,Resources
1007516,Phoenix Commercial Collections Ltd,4024836,105766,08/03/2019,952.16,158.71,FBBEA,"Income, Recovery & Debtors",3807,Legal & Court Costs,Resources
1099411,Lgg Legal Training,4024837,05766,08/03/2019,258,43,BAAA,Legal Services,0911,Training Expenses,Governance & Partnerships
1099411,Lgg Legal Training,4024838,05767,08/03/2019,258,43,BAAA,Legal Services,0911,Training Expenses,Governance & Partnerships
1099411,Lgg Legal Training,4024866,05765,08/03/2019,258,43,BAAA,Legal Services,0911,Training Expenses,Governance & Partnerships
1066073,Blackpool Coastal Housing,4025073,30001544,05/03/2019,18210,3035,HEA,Housing Needs / Allocation,3801,Other Expenses,Net Cost Of Services
1044867,Jay Law Ltd,4025074,INV-L5123,13/03/2019,2100,0,CX4024,Winter Warmth Grant,6502,Grants & Advances,Capital - Adult Social Care
1011702,J & J Decorating Services,4026124,7841,08/03/2019,714,119,AEB,Buildings,1012,Premises Maint-Priv.Contractor,Resources
1069882,Highwire Ltd,4026167,I13487,08/03/2019,420,70,AEB,Buildings,1012,Premises Maint-Priv.Contractor,Resources
1093853,Crest Scaffolding Ltd,4026189,10901,01/03/2019,2826,471,FMAK,Acquisitions 9/10,1012,Premises Maint-Priv.Contractor,Places
1093853,Crest Scaffolding Ltd,4026190,10902,01/03/2019,848.4,141.4,FMAK,Acquisitions 9/10,1012,Premises Maint-Priv.Contractor,Places
1008454,Police & Crime Commissioner For Lancashire,4026340,23443877 NNDR,05/03/2019,875.34,0,TAAAA,Business Improvement Districts,7151,Bid Income,Business Improvement Districts
1066073,Blackpool Coastal Housing,4026671,30001545,20/03/2019,12086.87,2014.48,CXB71,Hra Capital Programme 2018/19,6501,Contract Payments,Capital - Chief Executive
1015654,Horton Automatics Ltd,4026679,4083787,29/03/2019,1027.2,171.2,CXB71,Hra Capital Programme 2018/19,6501,Contract Payments,Capital - Chief Executive
1108549,J G Redford Ltd,4026688,19233,13/03/2019,27992.4,4665.4,CXB71,Hra Capital Programme 2018/19,6501,Contract Payments,Capital - Chief Executive
1104767,North Star Environmental Ltd,4026689,INV-14656,15/03/2019,630,105,CXB71,Hra Capital Programme 2018/19,6501,Contract Payments,Capital - Chief Executive
1002210,Read & Errington,4026690,MRC0127/R2,13/03/2019,12883.88,2147.31,CXB71,Hra Capital Programme 2018/19,6501,Contract Payments,Capital - Chief Executive
1020179,The James Mercer Group Ltd,4026977,118753,01/03/2019,422.3,70.38,PRKOP1,Parks Operational Manager  1,1121,Heating & Ventilation,Community & Env Services
1112757,Corona Contracts Ltd,4027020,2704,06/03/2019,1662,277,AER,Dual Use Properties,1012,Premises Maint-Priv.Contractor,Resources
1006385,University Of Central Lancashire,4027048,TUI227200163,08/03/2019,725,0,LM0420,Adults Training,7310,Training Courses - No Orders,Adult & Families
1006385,University Of Central Lancashire,4027049,TUI227200162,08/03/2019,725,0,LM0420,Adults Training,7310,Training Courses - No Orders,Adult & Families
1006385,University Of Central Lancashire,4027050,TUI227200161,08/03/2019,725,0,LM0420,Adults Training,7310,Training Courses - No Orders,Adult & Families
1006385,University Of Central Lancashire,4027051,TUI227200160,08/03/2019,725,0,LM0420,Adults Training,7310,Training Courses - No Orders,Adult & Families
1006385,University Of Central Lancashire,4027052,TUI227200159,08/03/2019,725,0,LM0420,Adults Training,7310,Training Courses - No Orders,Adult & Families
1006385,University Of Central Lancashire,4027053,TUI227200158,08/03/2019,725,0,LM0420,Adults Training,7310,Training Courses - No Orders,Adult & Families
1006385,University Of Central Lancashire,4027054,TUI227200157,08/03/2019,725,0,LM0420,Adults Training,7310,Training Courses - No Orders,Adult & Families
1006385,University Of Central Lancashire,4027055,TUI227200156,08/03/2019,725,0,LM0420,Adults Training,7310,Training Courses - No Orders,Adult & Families
1099262,Nhs Blackpool Ccg,4027627,7011212015,05/03/2019,403.56,0,MGA,Adults Under 65 With Mh Needs,4201,Joint Authorities,Adult & Families
1099262,Nhs Blackpool Ccg,4027628,7011212034,05/03/2019,444.74,0,MGA,Adults Under 65 With Mh Needs,4201,Joint Authorities,Adult & Families
1099262,Nhs Blackpool Ccg,4027629,7011211951,05/03/2019,974.4,0,MFB,65-74,4201,Joint Authorities,Adult & Families
1099262,Nhs Blackpool Ccg,4027630,7011211935,05/03/2019,5621.9,0,MHA,Older People ( U65) With Ld,4201,Joint Authorities,Adult & Families
1099262,Nhs Blackpool Ccg,4027631,7011211937,05/03/2019,1045.5,0,MVC,75-84,4201,Joint Authorities,Adult & Families
1099262,Nhs Blackpool Ccg,4027632,7011211939,05/03/2019,561.75,0,MFA,Adults Under 65 With Mh,4201,Joint Authorities,Adult & Families
1099262,Nhs Blackpool Ccg,4027634,7011211945,05/03/2019,4177.78,0,MFA,Adults Under 65 With Mh,4201,Joint Authorities,Adult & Families
1099262,Nhs Blackpool Ccg,4027635,7011211949,05/03/2019,1440,0,MFB,65-74,4201,Joint Authorities,Adult & Families
1099262,Nhs Blackpool Ccg,4027636,7011211954,05/03/2019,1680,0,MFA,Adults Under 65 With Mh,4201,Joint Authorities,Adult & Families
1099262,Nhs Blackpool Ccg,4027637,7011211955,05/03/2019,391.84,0,MFA,Adults Under 65 With Mh,4201,Joint Authorities,Adult & Families
1099262,Nhs Blackpool Ccg,4027638,7011211956,05/03/2019,1320,0,MFA,Adults Under 65 With Mh,4201,Joint Authorities,Adult & Families
1099262,Nhs Blackpool Ccg,4027639,7011211957,05/03/2019,1200,0,MFA,Adults Under 65 With Mh,4201,Joint Authorities,Adult & Families
1099262,Nhs Blackpool Ccg,4027640,7011211958,05/03/2019,1320,0,MFA,Adults Under 65 With Mh,4201,Joint Authorities,Adult & Families
1099262,Nhs Blackpool Ccg,4027641,7011211959,05/03/2019,1200,0,MFA,Adults Under 65 With Mh,4201,Joint Authorities,Adult & Families
1099262,Nhs Blackpool Ccg,4027642,7011211965,05/03/2019,1560.7,0,MFB,65-74,4201,Joint Authorities,Adult & Families
1099262,Nhs Blackpool Ccg,4027643,7011211969,05/03/2019,2590.4,0,MVB,65-74,4201,Joint Authorities,Adult & Families
1099262,Nhs Blackpool Ccg,4027644,7011211976,05/03/2019,2590.4,0,MVB,65-74,4201,Joint Authorities,Adult & Families
1099262,Nhs Blackpool Ccg,4027645,7011211980,05/03/2019,3090.2,0,MGC,75-84,4201,Joint Authorities,Adult & Families
1099262,Nhs Blackpool Ccg,4027646,7011211982,05/03/2019,1815.7,0,MFA,Adults Under 65 With Mh,4201,Joint Authorities,Adult & Families
1099262,Nhs Blackpool Ccg,4027647,7011211984,05/03/2019,1560.7,0,MFC,75-84,4201,Joint Authorities,Adult & Families
1099262,Nhs Blackpool Ccg,4027648,7011211988,05/03/2019,1560.7,0,MFA,Adults Under 65 With Mh,4201,Joint Authorities,Adult & Families
1099262,Nhs Blackpool Ccg,4027649,7011211994,05/03/2019,1560.7,0,MFC,75-84,4201,Joint Authorities,Adult & Families
1099262,Nhs Blackpool Ccg,4027650,7011212000,05/03/2019,1560.7,0,MGC,75-84,4201,Joint Authorities,Adult & Families
1099262,Nhs Blackpool Ccg,4027651,7011212006,05/03/2019,1815.7,0,MFB,65-74,4201,Joint Authorities,Adult & Families
1099262,Nhs Blackpool Ccg,4027652,7011212013,05/03/2019,964.4,0,MVD,85+,4201,Joint Authorities,Adult & Families
1099262,Nhs Blackpool Ccg,4027653,7011212026,05/03/2019,814.4,0,MVB,65-74,4201,Joint Authorities,Adult & Families
1099262,Nhs Blackpool Ccg,4027654,7011212029,05/03/2019,1425.56,0,MFA,Adults Under 65 With Mh,4201,Joint Authorities,Adult & Families
1099262,Nhs Blackpool Ccg,4027655,7011212030,05/03/2019,1590,0,MFA,Adults Under 65 With Mh,4201,Joint Authorities,Adult & Families
1099262,Nhs Blackpool Ccg,4027656,7011212033,05/03/2019,1357.14,0,MFA,Adults Under 65 With Mh,4201,Joint Authorities,Adult & Families
1099262,Nhs Blackpool Ccg,4027657,7011212040,05/03/2019,1224,0,MFA,Adults Under 65 With Mh,4201,Joint Authorities,Adult & Families
1099262,Nhs Blackpool Ccg,4027658,7011212041,05/03/2019,1837.5,0,MFA,Adults Under 65 With Mh,4201,Joint Authorities,Adult & Families
1099262,Nhs Blackpool Ccg,4027659,7011212042,05/03/2019,2100,0,MFA,Adults Under 65 With Mh,4201,Joint Authorities,Adult & Families
1099262,Nhs Blackpool Ccg,4027660,7011212043,05/03/2019,1643.52,0,MFA,Adults Under 65 With Mh,4201,Joint Authorities,Adult & Families
1099262,Nhs Blackpool Ccg,4027661,7011212044,05/03/2019,1759.02,0,MFA,Adults Under 65 With Mh,4201,Joint Authorities,Adult & Families
1099262,Nhs Blackpool Ccg,4027662,7011212045,05/03/2019,1977.5,0,MFA,Adults Under 65 With Mh,4201,Joint Authorities,Adult & Families
1099262,Nhs Blackpool Ccg,4027663,7011212056,05/03/2019,1528.02,0,MFA,Adults Under 65 With Mh,4201,Joint Authorities,Adult & Families
1099262,Nhs Blackpool Ccg,4027664,7011212057,05/03/2019,1528.02,0,MFB,65-74,4201,Joint Authorities,Adult & Families
1099262,Nhs Blackpool Ccg,4027665,7011212058,05/03/2019,1528.02,0,MFA,Adults Under 65 With Mh,4201,Joint Authorities,Adult & Families
1099262,Nhs Blackpool Ccg,4027666,7011211963,05/03/2019,1252.96,0,MFA,Adults Under 65 With Mh,4201,Joint Authorities,Adult & Families
1099262,Nhs Blackpool Ccg,4027667,7011211978,05/03/2019,1306.8,0,MGD,85+,4201,Joint Authorities,Adult & Families
1099262,Nhs Blackpool Ccg,4027668,7011211930,05/03/2019,1528.02,0,MFA,Adults Under 65 With Mh,4201,Joint Authorities,Adult & Families
1099262,Nhs Blackpool Ccg,4027669,7011211931,05/03/2019,1528.02,0,MFB,65-74,4201,Joint Authorities,Adult & Families
1099262,Nhs Blackpool Ccg,4027670,7011211932,05/03/2019,1528.02,0,MFA,Adults Under 65 With Mh,4201,Joint Authorities,Adult & Families
1099262,Nhs Blackpool Ccg,4027671,7011211933,05/03/2019,2082.5,0,MFA,Adults Under 65 With Mh,4201,Joint Authorities,Adult & Families
1099262,Nhs Blackpool Ccg,4027672,7011211953,05/03/2019,2088.89,0,MFA,Adults Under 65 With Mh,4201,Joint Authorities,Adult & Families
1099262,Nhs Blackpool Ccg,4027673,7011211967,05/03/2019,1561.8,0,MFB,65-74,4201,Joint Authorities,Adult & Families
1099262,Nhs Blackpool Ccg,4027674,7011211971,05/03/2019,1304.4,0,MFA,Adults Under 65 With Mh,4201,Joint Authorities,Adult & Families
1099262,Nhs Blackpool Ccg,4027675,7011211974,05/03/2019,1560.7,0,MFA,Adults Under 65 With Mh,4201,Joint Authorities,Adult & Families
1099262,Nhs Blackpool Ccg,4027676,7011211986,05/03/2019,1560.7,0,MGD,85+,4201,Joint Authorities,Adult & Families
1099262,Nhs Blackpool Ccg,4027677,7011211990,05/03/2019,2581.8,0,MFC,75-84,4201,Joint Authorities,Adult & Families
1099262,Nhs Blackpool Ccg,4027678,7011211992,05/03/2019,4366.8,0,MGB,65-74,4201,Joint Authorities,Adult & Families
1099262,Nhs Blackpool Ccg,4027679,7011211996,05/03/2019,2071.8,0,MGC,75-84,4201,Joint Authorities,Adult & Families
1099262,Nhs Blackpool Ccg,4027680,7011211998,05/03/2019,2850,0,MGB,65-74,4201,Joint Authorities,Adult & Families
1099262,Nhs Blackpool Ccg,4027681,7011212002,05/03/2019,2071.8,0,MFB,65-74,4201,Joint Authorities,Adult & Families
1099262,Nhs Blackpool Ccg,4027682,7011212004,05/03/2019,2836.4,0,MGB,65-74,4201,Joint Authorities,Adult & Families
1099262,Nhs Blackpool Ccg,4027683,7011212010,05/03/2019,1560.7,0,MFB,65-74,4201,Joint Authorities,Adult & Families
1099262,Nhs Blackpool Ccg,4027684,7011212014,05/03/2019,1252.96,0,MFA,Adults Under 65 With Mh,4201,Joint Authorities,Adult & Families
1099262,Nhs Blackpool Ccg,4027685,7011212019,05/03/2019,2247,0,MFA,Adults Under 65 With Mh,4201,Joint Authorities,Adult & Families
1099262,Nhs Blackpool Ccg,4027686,7011211929,05/03/2019,444.74,0,MGA,Adults Under 65 With Mh Needs,4201,Joint Authorities,Adult & Families
1099262,Nhs Blackpool Ccg,4027687,7011211944,05/03/2019,403.56,0,MGA,Adults Under 65 With Mh Needs,4201,Joint Authorities,Adult & Families
1099262,Nhs Blackpool Ccg,4027688,7011211960,05/03/2019,444.74,0,MGA,Adults Under 65 With Mh Needs,4201,Joint Authorities,Adult & Families
1040208,Water Cost Savers Ltd,4027756,1011,08/03/2019,758.4,126.4,FL1309,Blackpool Airport Utilities,1401,Water Charges-Metered,Resources
1006385,University Of Central Lancashire,4027916,TUI227800051,08/03/2019,725,0,LM0420,Adults Training,7310,Training Courses - No Orders,Adult & Families
1007516,Phoenix Commercial Collections Ltd,4027920,105767,08/03/2019,740.01,123.34,FV6705,Phoenix Commercial Collection,7366,Car Parking Fees,Budgets Outside Cash Limits
1112460,Network Healthcare Professionals Ltd (Fac089),4028111,564V107857,08/03/2019,420,70,CWAN,Children With Additional Needs,4403,Special Needs - Children,Children'S Services
1085488,John Larking Verbatim Reporters,4028122,56126,13/03/2019,335.09,55.85,JEA,Senior Management,3807,Legal & Court Costs,Children'S Services
1103450,Blackpool Entertainment Company Limited,4028124,INV004148,01/03/2019,345.3,57.55,FMAK,Acquisitions 9/10,1301,Rent & Hire Of Premises,Places
1009825,Crown Gymnastics Equipment Ltd,4028127,143780,08/03/2019,381.6,63.6,AEB,Buildings,1012,Premises Maint-Priv.Contractor,Resources
1020179,The James Mercer Group Ltd,4028135,118894,07/03/2019,377.52,62.92,AEB,Buildings,1121,Heating & Ventilation,Resources
1011995,Technical & Electrical Services Ltd,4028191,M 18006,13/03/2019,279.36,46.56,CXB71,Hra Capital Programme 2018/19,6501,Contract Payments,Capital - Chief Executive
1011995,Technical & Electrical Services Ltd,4028192,M 18007,13/03/2019,279.36,46.56,CXB71,Hra Capital Programme 2018/19,6501,Contract Payments,Capital - Chief Executive
1011995,Technical & Electrical Services Ltd,4028194,M 18008,06/03/2019,1632.34,272.06,CXB71,Hra Capital Programme 2018/19,6501,Contract Payments,Capital - Chief Executive
1011995,Technical & Electrical Services Ltd,4028197,M 18009,06/03/2019,452.03,75.34,CXB71,Hra Capital Programme 2018/19,6501,Contract Payments,Capital - Chief Executive
1041219,Abelglass Trade Supplies Ltd,4028199,INV-2397,06/03/2019,651.6,108.6,CXB71,Hra Capital Programme 2018/19,6501,Contract Payments,Capital - Chief Executive
1007516,Phoenix Commercial Collections Ltd,4028203,105875,15/03/2019,3559.86,593.31,FBBEA,"Income, Recovery & Debtors",3807,Legal & Court Costs,Resources
1051833,Tmr Executive Agency Ltd,4028204,60588,15/03/2019,262.55,43.76,FCADA,Customer Services,3801,Other Expenses,Resources
1051833,Tmr Executive Agency Ltd,4028205,60589,29/03/2019,262.55,43.76,BGA,Electoral Services,3401,General Services,Governance & Partnerships
1051833,Tmr Executive Agency Ltd,4028206,60590,29/03/2019,262.55,43.76,BGA,Electoral Services,3401,General Services,Governance & Partnerships
1051833,Tmr Executive Agency Ltd,4028207,60591,29/03/2019,262.55,43.76,BGA,Electoral Services,3401,General Services,Governance & Partnerships
1103450,Blackpool Entertainment Company Limited,4028208,INV004157,01/03/2019,555,92.5,FMAK,Acquisitions 9/10,6273,Miscellaneous,Places
1116244,Linda Clegg Consulting Ltd,4028241,005,01/03/2019,5400,900,JEA,Senior Management,3401,General Services,Children'S Services
1091610,Communicate Slt Cic,4028284,321,06/03/2019,17824,0,EP8002,Speech And Language,3801,Other Expenses,Children'S Services
1091610,Communicate Slt Cic,4028285,319,06/03/2019,17726,0,EP8002,Speech And Language,3801,Other Expenses,Children'S Services
1105240,Hanzak Ltd T/A Dr Rashad Nazir,4028296,20588RN,15/03/2019,955.1,0,JDEAAA,Safeguarding Adults,4501,Private Contractors,Adult & Families
1075307,Team Netsol Limited,4028297,101641,15/03/2019,1200,200,FCACA,Benefits - Admin,3532,Comp-Running & License Costs,Resources
1105240,Hanzak Ltd T/A Dr Rashad Nazir,4028298,20587RN,15/03/2019,1901.9,0,JDEAAA,Safeguarding Adults,4501,Private Contractors,Adult & Families
1112992,Key To Independence Ltd,4028317,BW130219/DH/HOR,06/03/2019,301.8,0,CXAAA,Local Authority Dwellings,6501,Contract Payments,Capital - Chief Executive
1112992,Key To Independence Ltd,4028318,EJA130219/DH/TY,06/03/2019,301.8,0,CX4002,Disabled Facilities Grants,6501,Contract Payments,Capital - Adult Social Care
1011995,Technical & Electrical Services Ltd,4028320,CAP18019,13/03/2019,321.36,53.56,CXB71,Hra Capital Programme 2018/19,6501,Contract Payments,Capital - Chief Executive
1011995,Technical & Electrical Services Ltd,4028321,CAP18020,13/03/2019,321.36,53.56,CXB71,Hra Capital Programme 2018/19,6501,Contract Payments,Capital - Chief Executive
1011675,Bambers Remedial Contractors Limited,4028324,15566,19/03/2019,3900,650,CXXXX,Hra Non Specific Contingency,6501,Contract Payments,Capital - Chief Executive
1117705,Rhea Projects Ltd,4028326,RP-0046,06/03/2019,1000,0,CX4024,Winter Warmth Grant,6502,Grants & Advances,Capital - Adult Social Care
1017722,Terrys Carpets,4028328,153,06/03/2019,274.8,45.8,CXC11,Site Development,6518,Miscellaneous - Capital,Capital - Chief Executive
1074768,Thompsons Solicitors (No 1 Office Account),4028429,1331602,01/03/2019,420,70,APCBBE,Extra Support,0917,Other Exps,Adult & Families
1094988,Maxmedia Communications Ltd,4028431,6748,05/03/2019,411.6,68.6,HEA,Housing Needs / Allocation,3801,Other Expenses,Net Cost Of Services
1007516,Phoenix Commercial Collections Ltd,4028434,105874,15/03/2019,15100.12,2516.69,FBBEA,"Income, Recovery & Debtors",3807,Legal & Court Costs,Resources
1061221,Tradition (Uk) Ltd,4028441,L/DEPOT/01/2019,01/03/2019,3482.2,0,FH0001,Treasury Management,3401,General Services,Budgets Outside Cash Limits
1077392,Reed Specialist Recruitment Ltd,4028457,E020784682M,04/03/2019,989.55,164.92,HOPB,Housing Options,0791,Temp/Relief (Bureau Staff),Chief Executive
1077392,Reed Specialist Recruitment Ltd,4028457,E020784682M,04/03/2019,5744.34,957.4,JA1531,Independent Reviewing Officers,0791,Temp/Relief (Bureau Staff),Children'S Services
1077392,Reed Specialist Recruitment Ltd,4028457,E020784682M,04/03/2019,11734.13,1955.7,JAB,Locality,0791,Temp/Relief (Bureau Staff),Children'S Services
1077392,Reed Specialist Recruitment Ltd,4028457,E020784682M,04/03/2019,2842.26,473.71,JBT,Looked After Children,0791,Temp/Relief (Bureau Staff),Children'S Services
1077392,Reed Specialist Recruitment Ltd,4028457,E020784682M,04/03/2019,1167.19,194.54,JEA,Senior Management,0791,Temp/Relief (Bureau Staff),Children'S Services
1114000,Dac Beachcroft Claims Limited,4028460,450024221,01/03/2019,4003,0,RK6008,Gallagher Bassett Sensitive,4705,Solicitors Fees,Internal Insurance
1114000,Dac Beachcroft Claims Limited,4028461,450024221,01/03/2019,4803.6,800.6,RK6008,Gallagher Bassett Sensitive,4705,Solicitors Fees,Internal Insurance
1114000,Dac Beachcroft Claims Limited,4028462,450024018,01/03/2019,940.8,156.8,RK6008,Gallagher Bassett Sensitive,4705,Solicitors Fees,Internal Insurance
1114000,Dac Beachcroft Claims Limited,4028463,430025903,01/03/2019,924.6,154.1,RK6007,Davies Group Sensitive,4705,Solicitors Fees,Internal Insurance
1114000,Dac Beachcroft Claims Limited,4028464,430025902,01/03/2019,1206,201,RK6007,Davies Group Sensitive,4705,Solicitors Fees,Internal Insurance
1088102,Whistl Uk Limited,4028465,IN18US19001107,11/03/2019,5158.91,859.82,FCADA,Customer Services,3511,Postages,Resources
1006238,Walton Summit Truck Centre Ltd,4028477,30215003,15/03/2019,277.56,46.26,CVMU,Cvmu,3041,Other Materials,Community & Env Services
1049733,Calibration And Consultancy Services (Uk) Ltd,4028507,28002,01/03/2019,1096.56,182.76,CVMU,Cvmu,3001,Office Equipment Purchase,Community & Env Services
1118110,K P Rayner Ltd,4028560,6474,11/03/2019,7192.8,1198.8,PRINTS,Corporate Print Services,3001,Office Equipment Purchase,Places
1117341,Little Blossoms Nursery Ltd,4028811,0219 11126 3102,06/03/2019,355.25,0,EYT,Early Years Team,3701,Grants,Children'S Services
1117341,Little Blossoms Nursery Ltd,4028812,0219 11126 3106,06/03/2019,435.95,0,EYT,Early Years Team,3701,Grants,Children'S Services
1021840,Systemslink 2000 Ltd,4029353,18410,05/03/2019,450,75,FB0004,Energy & Sustainability,1401,Water Charges-Metered,Resources
1077392,Reed Specialist Recruitment Ltd,4029363,E020786068M,06/03/2019,6276.01,1046,JA1531,Independent Reviewing Officers,0791,Temp/Relief (Bureau Staff),Children'S Services
1077392,Reed Specialist Recruitment Ltd,4029363,E020786068M,06/03/2019,22992.43,3832.07,JAB,Locality,0791,Temp/Relief (Bureau Staff),Children'S Services
1077392,Reed Specialist Recruitment Ltd,4029363,E020786068M,06/03/2019,1887.37,314.57,JAH,Duty And Assessment,0791,Temp/Relief (Bureau Staff),Children'S Services
1077392,Reed Specialist Recruitment Ltd,4029363,E020786068M,06/03/2019,1532.1,255.35,JBT,Looked After Children,0791,Temp/Relief (Bureau Staff),Children'S Services
1077392,Reed Specialist Recruitment Ltd,4029363,E020786068M,06/03/2019,2376.42,396.07,JEA,Senior Management,0791,Temp/Relief (Bureau Staff),Children'S Services
1077392,Reed Specialist Recruitment Ltd,4029363,E020786068M,06/03/2019,2155,359.16,SSDA,Social Services Direct,0791,Temp/Relief (Bureau Staff),Adult & Families
1088102,Whistl Uk Limited,4029366,IN18US19001312,18/03/2019,4681.85,780.31,FCADA,Customer Services,3511,Postages,Resources
1087549,Merlin Entertainments (Blackpool) Ltd,4029379,BC-S06586,05/03/2019,1039.38,173.23,ZX0501,"Tourism,Promotions & Conferen.",9687,Tourism Sale Of Tickets,Place Directorate
1093618,Energy Assets Limited,4029380,EAL2019/1036,06/03/2019,554.92,92.49,FL1305,Winter Gardens (Recharge Accou,1203,Gas,Resources
1020179,The James Mercer Group Ltd,4029842,119086,15/03/2019,302.4,50.4,AEB,Buildings,1121,Heating & Ventilation,Resources
1073045,Bradley Environmental Consultants Ltd (Fac042,4029860,30971,21/03/2019,360,60,FMAA,Retail Units,1012,Premises Maint-Priv.Contractor,Resources
1114862,Bancroft Amenities Ltd,4029878,20881,05/03/2019,672,112,AEB,Buildings,1012,Premises Maint-Priv.Contractor,Resources
1116042,Streetspace Ltd,4029883,3831,06/03/2019,5100,850,CXB71,Hra Capital Programme 2018/19,6501,Contract Payments,Capital - Chief Executive
1116042,Streetspace Ltd,4029884,3830,06/03/2019,3723.6,620.6,CXXXX,Hra Non Specific Contingency,6501,Contract Payments,Capital - Chief Executive
1041157,5-Am Contact Contract Cleaning Ltd,4029886,2238,20/03/2019,6308.4,1051.4,CXC11,Site Development,6518,Miscellaneous - Capital,Capital - Chief Executive
1109609,Westheads Extractions Uk Limited,4029887,000174,06/03/2019,2047,0,CXB71,Hra Capital Programme 2018/19,6501,Contract Payments,Capital - Chief Executive
1032673,Eversheds Sutherland (International) Llp,4030219,91788866,01/03/2019,10140.6,1690.1,CXC11,Site Development,6506,Consultants Fees,Capital - Chief Executive
1117349,Dr Sotonte Bobmanuel,4030221,00004,21/03/2019,572.7,0,JDEAAA,Safeguarding Adults,4501,Private Contractors,Adult & Families
1090543,Jonathan Easton,4030222,414324,20/03/2019,1080,180,PKAAA,Head Of Planning & Trans,3413,Consultants,Places
1114360,Dan Slee C2 Ltd,4030230,INV-4408,25/03/2019,468,78,PBF,Communications,7310,Training Courses - No Orders,Chief Executive
1113460,Sureline Installations,4030237,131,01/03/2019,460,0,CXAAA,Local Authority Dwellings,6501,Contract Payments,Capital - Chief Executive
1041219,Abelglass Trade Supplies Ltd,4030239,INV-2416,06/03/2019,2203.2,367.2,CXB71,Hra Capital Programme 2018/19,6501,Contract Payments,Capital - Chief Executive
1109609,Westheads Extractions Uk Limited,4030240,000176,06/03/2019,5925,0,CXB71,Hra Capital Programme 2018/19,6501,Contract Payments,Capital - Chief Executive
1109609,Westheads Extractions Uk Limited,4030243,000175,06/03/2019,4635,0,CXB71,Hra Capital Programme 2018/19,6501,Contract Payments,Capital - Chief Executive
1104767,North Star Environmental Ltd,4030244,INV-14746,22/03/2019,2616,436,CXB71,Hra Capital Programme 2018/19,6501,Contract Payments,Capital - Chief Executive
1011973,Automatic Alarms Ltd,4030264,322026,20/03/2019,490.43,81.74,AEB,Buildings,1171,Alarms,Resources
1117705,Rhea Projects Ltd,4030300,RP-0042,06/03/2019,283.5,0,CX4024,Winter Warmth Grant,6502,Grants & Advances,Capital - Adult Social Care
1011518,Tw Joinery & Fencing Contractors,4030454,3033,06/03/2019,4218,703,CXB71,Hra Capital Programme 2018/19,6501,Contract Payments,Capital - Chief Executive
1011518,Tw Joinery & Fencing Contractors,4030455,3035,13/03/2019,336,56,CXC11,Site Development,6507,Materials,Capital - Chief Executive
1115557,Tracey Carysforth,4030457,13,05/03/2019,6068.85,0,CX4002,Disabled Facilities Grants,6506,Consultants Fees,Capital - Adult Social Care
1117705,Rhea Projects Ltd,4030459,RP-0048,13/03/2019,1000,0,CX4024,Winter Warmth Grant,6502,Grants & Advances,Capital - Adult Social Care
1075327,REDACTED PERSONAL DATA,4030513,PA/LA18-220219,07/03/2019,279,0,JEA,Senior Management,5507,Personal,Children'S Services
1025883,REDACTED PERSONAL DATA,4030515,W/JF2101-150219,07/03/2019,559.04,0,JEA,Senior Management,5507,Personal,Children'S Services
1011779,Northern Security National Limited,4030517,24411,01/03/2019,516.6,86.1,SECURE,Security Services,3401,General Services,Community & Env Services
1011779,Northern Security National Limited,4030518,24410,01/03/2019,984,164,SECURE,Security Services,3401,General Services,Community & Env Services
1011779,Northern Security National Limited,4030519,24409,01/03/2019,738,123,SECURE,Security Services,3401,General Services,Community & Env Services
1106924,His Provision Cic,4030521,501,18/03/2019,2085,0,BSTPRJ,Better Start Projects,3401,General Services,Better Start Projects
1098376,The Disabilities Trust,4030523,CES022396,11/03/2019,4202.8,0,MVA,18-64,4507,Domiciliary Care,Adult & Families
1098376,The Disabilities Trust,4030524,CES022395,11/03/2019,3791.2,0,MFA,Adults Under 65 With Mh,4507,Domiciliary Care,Adult & Families
1025883,REDACTED PERSONAL DATA,4030525,WF241218-180119,07/03/2019,343.2,0,JEA,Senior Management,5507,Personal,Children'S Services
1109293,East Cheshire Nhs Trust,4030526,17508998,04/03/2019,262,0,PU2022,Specialist Sexual Health Serv,4501,Private Contractors,Public Health
1066073,Blackpool Coastal Housing,4030527,30001528,04/03/2019,31680,5280,LH2073,Energy Efficiency,4501,Private Contractors,Public Health
1058510,Lifeline Language Services Ltd,4030534,0419168,15/03/2019,648,108,JEA,Senior Management,3419,Interpreters Fees,Children'S Services
1112460,Network Healthcare Professionals Ltd (Fac089),4030536,564V107877,15/03/2019,420,70,CWAN,Children With Additional Needs,4403,Special Needs - Children,Children'S Services
1108229,West Lancashire Community High School(08137),4030540,18-015,19/03/2019,741.75,0,CWAN,Children With Additional Needs,4101,Other Local Authorities,Children'S Services
1058510,Lifeline Language Services Ltd,4030542,0519035,20/03/2019,432,72,JEA,Senior Management,3419,Interpreters Fees,Children'S Services
1104800,My Life Legacy,4030544,1520051,19/03/2019,7665.33,0,CWAN,Children With Additional Needs,4501,Private Contractors,Children'S Services
1033987,Berrymans Lace Mawer Llp,4030551,2458420,01/03/2019,1412.5,0,RK6008,Gallagher Bassett Sensitive,4705,Solicitors Fees,Internal Insurance
1010300,Blacktax Radio Taxis T/A Blackpool Courier,4030556,12778,01/03/2019,382,0,JEA,Senior Management,3807,Legal & Court Costs,Children'S Services
1085488,John Larking Verbatim Reporters,4030558,56130,15/03/2019,264.6,44.1,JEA,Senior Management,3807,Legal & Court Costs,Children'S Services
1024640,REDACTED PERSONAL DATA,4030565,409849,08/03/2019,5400,900,JEA,Senior Management,3807,Legal & Court Costs,Children'S Services
1014404,REDACTED PERSONAL DATA,4030569,253026,08/03/2019,1200,200,JEA,Senior Management,3807,Legal & Court Costs,Children'S Services
1024077,REDACTED PERSONAL DATA,4030571,419053,13/03/2019,1440,240,JEA,Senior Management,3807,Legal & Court Costs,Children'S Services
1117444,REDACTED PERSONAL DATA,4030588,FAID19,08/03/2019,382.5,0,JEA,Senior Management,3807,Legal & Court Costs,Children'S Services
1099262,Nhs Blackpool Ccg,4030904,7011211833,12/03/2019,3207.12,0,MFA,Adults Under 65 With Mh,4201,Joint Authorities,Adult & Families
1099262,Nhs Blackpool Ccg,4030905,7011212028,12/03/2019,1127.56,0,MFA,Adults Under 65 With Mh,4201,Joint Authorities,Adult & Families
1099262,Nhs Blackpool Ccg,4030906,7011211835,12/03/2019,4360.12,0,MFA,Adults Under 65 With Mh,4201,Joint Authorities,Adult & Families
1099262,Nhs Blackpool Ccg,4030907,7011211920,12/03/2019,1500,0,MFA,Adults Under 65 With Mh,4201,Joint Authorities,Adult & Families
1099262,Nhs Blackpool Ccg,4030908,7011211921,12/03/2019,1500,0,MFA,Adults Under 65 With Mh,4201,Joint Authorities,Adult & Families
1099262,Nhs Blackpool Ccg,4030909,7011211922,12/03/2019,1500,0,MFA,Adults Under 65 With Mh,4201,Joint Authorities,Adult & Families
1099262,Nhs Blackpool Ccg,4030910,7011211923,12/03/2019,1500,0,MGC,75-84,4201,Joint Authorities,Adult & Families
1099262,Nhs Blackpool Ccg,4030911,7011211924,12/03/2019,1500,0,MFA,Adults Under 65 With Mh,4201,Joint Authorities,Adult & Families
1099262,Nhs Blackpool Ccg,4030912,7011211925,12/03/2019,1500,0,MFA,Adults Under 65 With Mh,4201,Joint Authorities,Adult & Families
1099262,Nhs Blackpool Ccg,4030913,7011211926,12/03/2019,1642,0,MVB,65-74,4201,Joint Authorities,Adult & Families
1099262,Nhs Blackpool Ccg,4030914,7011211943,12/03/2019,281.89,0,MFA,Adults Under 65 With Mh,4201,Joint Authorities,Adult & Families
1099262,Nhs Blackpool Ccg,4030915,7011211946,12/03/2019,1770,0,MGA,Adults Under 65 With Mh Needs,4201,Joint Authorities,Adult & Families
1099262,Nhs Blackpool Ccg,4030916,7011211947,12/03/2019,1303.04,0,MGD,85+,4201,Joint Authorities,Adult & Families
1099262,Nhs Blackpool Ccg,4030917,7011212018,12/03/2019,2500,0,MFB,65-74,4201,Joint Authorities,Adult & Families
1099262,Nhs Blackpool Ccg,4030918,7011212046,12/03/2019,2186.6,0,MFB,65-74,4201,Joint Authorities,Adult & Families
1099262,Nhs Blackpool Ccg,4030919,7011212047,12/03/2019,1826.24,0,MFA,Adults Under 65 With Mh,4201,Joint Authorities,Adult & Families
1099262,Nhs Blackpool Ccg,4030920,7011212049,12/03/2019,3614.6,0,MFC,75-84,4201,Joint Authorities,Adult & Families
1099262,Nhs Blackpool Ccg,4030921,7011212050,12/03/2019,6113.6,0,MGB,65-74,4201,Joint Authorities,Adult & Families
1099262,Nhs Blackpool Ccg,4030922,7011212051,12/03/2019,2900.64,0,MGC,75-84,4201,Joint Authorities,Adult & Families
1099262,Nhs Blackpool Ccg,4030923,7011212052,12/03/2019,3990,0,MGB,65-74,4201,Joint Authorities,Adult & Families
1099262,Nhs Blackpool Ccg,4030924,7011212053,12/03/2019,2900.6,0,MFB,65-74,4201,Joint Authorities,Adult & Families
1099262,Nhs Blackpool Ccg,4030925,7011212054,12/03/2019,3971,0,MGB,65-74,4201,Joint Authorities,Adult & Families
1099262,Nhs Blackpool Ccg,4030926,7011212059,12/03/2019,2185.12,0,MGD,85+,4201,Joint Authorities,Adult & Families
1099262,Nhs Blackpool Ccg,4030927,7011212061,12/03/2019,2185.08,0,MFA,Adults Under 65 With Mh,4201,Joint Authorities,Adult & Families
1099262,Nhs Blackpool Ccg,4030928,7011212062,12/03/2019,2185.12,0,MFB,65-74,4201,Joint Authorities,Adult & Families
1099262,Nhs Blackpool Ccg,4030929,7011212063,12/03/2019,1570.72,0,MFA,Adults Under 65 With Mh,4201,Joint Authorities,Adult & Families
1099262,Nhs Blackpool Ccg,4030930,7011211834,12/03/2019,4035,0,MFA,Adults Under 65 With Mh,4201,Joint Authorities,Adult & Families
1087253,Routes Healthcare North Limited,4030944,63261,04/03/2019,1732.22,0,JEA,Senior Management,4403,Special Needs - Children,Children'S Services
1087253,Routes Healthcare North Limited,4030946,62720,04/03/2019,2464.63,0,JEA,Senior Management,4403,Special Needs - Children,Children'S Services
1087253,Routes Healthcare North Limited,4030947,61699,04/03/2019,2441.79,0,JEA,Senior Management,4403,Special Needs - Children,Children'S Services
1073709,Delphi Medical Limited,4030948,SINV86/00000216,04/03/2019,1917,0,PU2037,Inpatient Detox,4501,Private Contractors,Public Health
1073709,Delphi Medical Limited,4030965,SINV86/00000214,04/03/2019,2982,0,PU2037,Inpatient Detox,4501,Private Contractors,Public Health
1073709,Delphi Medical Limited,4030966,SINV86/00000215,04/03/2019,2130,0,PU2037,Inpatient Detox,4501,Private Contractors,Public Health
1069397,REDACTED PERSONAL DATA,4030973,412697,08/03/2019,1500,250,JEA,Senior Management,3807,Legal & Court Costs,Children'S Services
1012034,REDACTED PERSONAL DATA,4030974,254793,06/03/2019,1170,195,JEA,Senior Management,3807,Legal & Court Costs,Children'S Services
1093061,REDACTED PERSONAL DATA,4030975,419763,15/03/2019,750,125,JEA,Senior Management,3807,Legal & Court Costs,Children'S Services
1013733,Centre For Assessment Ltd,4030976,6039166,13/03/2019,1388.88,231.48,BAAA,Legal Services,3413,Consultants,Governance & Partnerships
1019175,Guardian News & Media Ltd,4030977,1170470,08/03/2019,1080,180,HS0001,Headstart Central Expenditure,0921,Advertising (Staff Vac.),Children'S Services
1092657,Carter Towler Llp,4030981,E14/0195/MRF,21/03/2019,1270.15,211.69,PAROPE,Parking Operational,3801,Other Expenses,Budgets Outside Cash Limits
1052479,Kids,4030982,7740,07/03/2019,425,0,CWAN,Children With Additional Needs,4403,Special Needs - Children,Children'S Services
1087953,Blackpool Local Education Partnership Ltd,4031005,SI10034,05/03/2019,67545.96,11257.66,CE9401,Former Langdale - Lotus Sch,6501,Contract Payments,Capital - Childrens
1010554,Cidari Education Ltd,4031144,HNFAUTUMN2018,07/03/2019,8372,0,CWAN,Children With Additional Needs,4403,Special Needs - Children,Children'S Services
1021388,Cidari Education Ltd T/A St Georges School,4031145,HNFAUTUMN2018,07/03/2019,6697,0,CWAN,Children With Additional Needs,4403,Special Needs - Children,Children'S Services
1096806,Thames Primary Academy,4031148,HNFAUTUMN2018,07/03/2019,9708,0,CWAN,Children With Additional Needs,4403,Special Needs - Children,Children'S Services
1094002,Waterloo Primary Academy,4031150,HNFAUTUMN2018,07/03/2019,4710,0,CWAN,Children With Additional Needs,4403,Special Needs - Children,Children'S Services
1099703,Anchorsholme Academy,4031152,HNFAUTUMN2018,07/03/2019,1162,0,CWAN,Children With Additional Needs,4403,Special Needs - Children,Children'S Services
1099749,Devonshire Primary Academy,4031156,HNFAUTUMN2018,07/03/2019,20792,0,CWAN,Children With Additional Needs,4403,Special Needs - Children,Children'S Services
1110952,Mereside Primary Academy,4031157,HNFAUTUMN2018,07/03/2019,2325,0,CWAN,Children With Additional Needs,4403,Special Needs - Children,Children'S Services
1007345,Mobile Mini Uk Limited,4031164,7001153656,20/03/2019,336.48,56.08,CEMCRE,Cems Crems Etc,1012,Premises Maint-Priv.Contractor,Governance & Partnerships
1011817,Jack Cunliffe Blackpool Ltd,4031173,SI-20206,01/03/2019,824.39,137.4,CLPRUD,Prudential Funding (Leisure),6501,Contract Payments,Capital - Comm & Environ
1011973,Automatic Alarms Ltd,4031177,322023,20/03/2019,1079.9,179.98,AEB,Buildings,1012,Premises Maint-Priv.Contractor,Resources
1011973,Automatic Alarms Ltd,4031178,322024,20/03/2019,1355.47,225.91,AEB,Buildings,1012,Premises Maint-Priv.Contractor,Resources
1011973,Automatic Alarms Ltd,4031179,322111,25/03/2019,323.75,53.96,AEB,Buildings,1171,Alarms,Resources
1020179,The James Mercer Group Ltd,4031184,119322,22/03/2019,852.77,142.13,FMAB,Commercial Propereties,1012,Premises Maint-Priv.Contractor,Resources
1020179,The James Mercer Group Ltd,4031186,119324,22/03/2019,467.42,77.9,AEB,Buildings,1012,Premises Maint-Priv.Contractor,Resources
1020179,The James Mercer Group Ltd,4031187,119326,22/03/2019,263.99,44,AEB,Buildings,1012,Premises Maint-Priv.Contractor,Resources
1042515,Geze Uk Ltd,4031202,904435800,01/03/2019,2154,359,AER,Dual Use Properties,1012,Premises Maint-Priv.Contractor,Resources
1071214,Premier Of Lytham Ltd (Fac039),4031218,15945,06/03/2019,397.2,66.2,PTA,Economic Development,1012,Premises Maint-Priv.Contractor,Places
1087305,Ellis & York Ltd,4031222,5427,01/03/2019,530.24,88.37,AEB,Buildings,1012,Premises Maint-Priv.Contractor,Resources
1087305,Ellis & York Ltd,4031223,5432,01/03/2019,259.32,43.22,AER,Dual Use Properties,1012,Premises Maint-Priv.Contractor,Resources
1090042,Sbg Contracts Ltd T/A Blackpool Fylde Glass,4031234,12506,01/03/2019,1158,193,AER,Dual Use Properties,1012,Premises Maint-Priv.Contractor,Resources
1109886,Livewire Systems Ltd,4031239,1981,13/03/2019,1052.52,175.42,AEB,Buildings,1012,Premises Maint-Priv.Contractor,Resources
1038738,Layton Primary School,4031242,HNFAUTUMN2018,07/03/2019,3511,0,CWAN,Children With Additional Needs,4403,Special Needs - Children,Children'S Services
1095986,Hawes Side Academy,4031244,HNFAUTUMN2018,07/03/2019,9453,0,CWAN,Children With Additional Needs,4403,Special Needs - Children,Children'S Services
1096150,Norbreck Primary Academy,4031246,HNFAUTUMN2018,07/03/2019,13557,0,CWAN,Children With Additional Needs,4403,Special Needs - Children,Children'S Services
1101124,South Shore Academy,4031252,HNFAUTUMN2018,07/03/2019,5309,0,CWAN,Children With Additional Needs,4403,Special Needs - Children,Children'S Services
1012096,St Mary'S Catholic Academy,4031255,HNFAUTUMN2018,07/03/2019,1511,0,CWAN,Children With Additional Needs,4403,Special Needs - Children,Children'S Services
1099746,Unity Academy,4031259,HNFAUTUMN2018,07/03/2019,24040,0,CWAN,Children With Additional Needs,4403,Special Needs - Children,Children'S Services
1098193,Westminster Primary Academy,4031261,HNFAUTUMN2018,07/03/2019,3392,0,CWAN,Children With Additional Needs,4403,Special Needs - Children,Children'S Services
1104384,Blackpool Aspire Academy & Highfurlong School,4031264,HNFAUTUMN2018,07/03/2019,11699,0,CWAN,Children With Additional Needs,4403,Special Needs - Children,Children'S Services
1010372,Christ The King Catholic Academy,4031266,HNFAUTUMN2018,07/03/2019,6719,0,CWAN,Children With Additional Needs,4403,Special Needs - Children,Children'S Services
1099469,Blackpool Gateway Academy,4031268,HNFAUTUMN2018,07/03/2019,530,0,CWAN,Children With Additional Needs,4403,Special Needs - Children,Children'S Services
1023478,Highfield Leadership Academy,4031269,HNFAUTUMN2018,07/03/2019,18242,0,CWAN,Children With Additional Needs,4403,Special Needs - Children,Children'S Services
1010386,Montgomery Academy,4031270,HNFAUTUMN2018,07/03/2019,7799,0,CWAN,Children With Additional Needs,4403,Special Needs - Children,Children'S Services
1102328,Revoe Learning Academy,4031271,HNFAUTUMN2018,07/03/2019,5676,0,CWAN,Children With Additional Needs,4403,Special Needs - Children,Children'S Services
1071918,St Cuthberts Catholic Academy,4031272,HNFAUTUMN2018,07/03/2019,6309,0,CWAN,Children With Additional Needs,4403,Special Needs - Children,Children'S Services
1035614,Marton Academy,4031273,HNFAUTUMN2018,07/03/2019,15967,0,CWAN,Children With Additional Needs,4403,Special Needs - Children,Children'S Services
1118214,REDACTED PERSONAL DATA,4031274,001,01/03/2019,550,0,HOPB,Housing Options,1301,Rent & Hire Of Premises,Chief Executive
1010667,Argos Business Solutions Ltd,4031287,01738098,01/03/2019,568.62,94.77,FC1802,Social Fund - Client,5210,Community Care Support,Resources
1010667,Argos Business Solutions Ltd,4031288,01740274,08/03/2019,1655.53,275.93,FC1802,Social Fund - Client,5210,Community Care Support,Resources
1011675,Bambers Remedial Contractors Limited,4031290,15477,13/03/2019,6416.45,0,CX4002,Disabled Facilities Grants,6501,Contract Payments,Capital - Adult Social Care
1099262,Nhs Blackpool Ccg,4031314,7011211829,12/03/2019,2088.89,0,MFA,Adults Under 65 With Mh,4201,Joint Authorities,Adult & Families
1108351,Helping Kids Learn Ltd,4031315,1902,14/03/2019,420,0,CWAN,Children With Additional Needs,3408,Services To Clients,Children'S Services
1019175,Guardian News & Media Ltd,4031318,1170640,08/03/2019,1080,180,HS0001,Headstart Central Expenditure,0921,Advertising (Staff Vac.),Children'S Services
1099262,Nhs Blackpool Ccg,4031321,7011211915,08/03/2019,18250,0,MRE,Undefined Age Group,4512,Other Care Block Payments,Adult & Families
1099262,Nhs Blackpool Ccg,4031321,7011211915,08/03/2019,15750,0,ER3209,Young Carers,4701,Other Contracted Services,Children'S Services
1007516,Phoenix Commercial Collections Ltd,4031322,105989,22/03/2019,1553.84,258.99,FBBEA,"Income, Recovery & Debtors",3807,Legal & Court Costs,Resources
1032062,REDACTED PERSONAL DATA,4031323,230,05/03/2019,924,0,HOPB,Housing Options,1704,Bed & Breakfast Accomm.,Chief Executive
1032062,REDACTED PERSONAL DATA,4031324,229,05/03/2019,2650,0,HOPB,Housing Options,1704,Bed & Breakfast Accomm.,Chief Executive
1007516,Phoenix Commercial Collections Ltd,4031327,105988,22/03/2019,17209.2,2868.2,FBBEA,"Income, Recovery & Debtors",3807,Legal & Court Costs,Resources
1094872,West Park Kindergarten (Nursery Grants Only),4031328,010WELSH,06/03/2019,511.8,0,CWAN,Children With Additional Needs,4403,Special Needs - Children,Children'S Services
1094872,West Park Kindergarten (Nursery Grants Only),4031376,009WELSH,06/03/2019,511.8,0,CWAN,Children With Additional Needs,4403,Special Needs - Children,Children'S Services
1011779,Northern Security National Limited,4031381,24477,18/03/2019,516.6,86.1,SECURE,Security Services,3401,General Services,Community & Env Services
1011779,Northern Security National Limited,4031385,24475,18/03/2019,984,164,SECURE,Security Services,3401,General Services,Community & Env Services
1105003,Socal Healthcare Ltd,4032796,0219-104-106,18/03/2019,534.27,0,JDEAAA,Safeguarding Adults,4501,Private Contractors,Adult & Families
1008454,Police & Crime Commissioner For Lancashire,4032804,7500010794,04/03/2019,300,0,COMSAF,Community Safety,4501,Private Contractors,Public Health
1042797,Lux Occ Medical Ltd,4032806,BBC/39,07/03/2019,1800,0,FK0013,Corporate Health,0992,Medical Fees (Employee),Chief Executive
1088102,Whistl Uk Limited,4032808,IN18US19001461,25/03/2019,5542.33,923.72,FCADA,Customer Services,3511,Postages,Resources
1106127,Mishcon De Reya Llp,4032980,5133378,05/03/2019,1200,200,AD0301,Contingencies,3401,General Services,Contingencies
1048844,Edf Energy,4032986,000005321466,11/03/2019,1697.14,80.82,FL1302,A&E - Academies Hold A/C,1202,Electricity,Resources
1048844,Edf Energy,4032987,000005358532,11/03/2019,2018.33,96.11,FL1302,A&E - Academies Hold A/C,1202,Electricity,Resources
1048844,Edf Energy,4032989,000005321162,11/03/2019,1982.16,94.39,FL1302,A&E - Academies Hold A/C,1202,Electricity,Resources
1048844,Edf Energy,4032995,000005357180,11/03/2019,28311.29,4718.55,FL1303,Recharge Account - Sandcastle,1202,Electricity,Resources
1048844,Edf Energy,4032998,000005357136,11/03/2019,2300.8,109.56,FL1302,A&E - Academies Hold A/C,1202,Electricity,Resources
1048844,Edf Energy,4033001,000005356083,11/03/2019,8002.8,381.09,FL1302,A&E - Academies Hold A/C,1202,Electricity,Resources
1048844,Edf Energy,4033005,000005356760,11/03/2019,1941.2,92.44,FL1302,A&E - Academies Hold A/C,1202,Electricity,Resources
1048844,Edf Energy,4033007,000005368022,11/03/2019,10119.51,1686.59,FL1302,A&E - Academies Hold A/C,1202,Electricity,Resources
1048844,Edf Energy,4033017,000005321994,11/03/2019,9114.07,1519.01,AER,Dual Use Properties,1202,Electricity,Resources
1048844,Edf Energy,4033026,000005321338,11/03/2019,2317.35,386.22,FL1302,A&E - Academies Hold A/C,1202,Electricity,Resources
1048844,Edf Energy,4033027,000005359171,11/03/2019,2630.82,438.47,FL1302,A&E - Academies Hold A/C,1202,Electricity,Resources
1048844,Edf Energy,4033030,000005321078,11/03/2019,2559.76,426.62,FL1302,A&E - Academies Hold A/C,1202,Electricity,Resources
1048844,Edf Energy,4033031,000005355296,11/03/2019,2838.58,473.1,FL1302,A&E - Academies Hold A/C,1202,Electricity,Resources
1048844,Edf Energy,4033033,000005322138,11/03/2019,7640.17,363.82,FL1302,A&E - Academies Hold A/C,1202,Electricity,Resources
1048844,Edf Energy,4033034,000005362682,11/03/2019,8828.4,420.4,FL1302,A&E - Academies Hold A/C,1202,Electricity,Resources
1048844,Edf Energy,4033037,000005186255,11/03/2019,5995.07,999.18,FL1305,Winter Gardens (Recharge Accou,1202,Electricity,Resources
1048844,Edf Energy,4033039,000005311647,11/03/2019,26232.74,4372.13,FL1305,Winter Gardens (Recharge Accou,1202,Electricity,Resources
1048844,Edf Energy,4033040,000005050561,11/03/2019,7881.7,1313.62,FL1305,Winter Gardens (Recharge Accou,1202,Electricity,Resources
1073709,Delphi Medical Limited,4033042,SINV86/00000219,07/03/2019,2982,0,PU2037,Inpatient Detox,4501,Private Contractors,Public Health
1073709,Delphi Medical Limited,4033043,SINV86/00000224,07/03/2019,1491,0,PU2037,Inpatient Detox,4501,Private Contractors,Public Health
1073709,Delphi Medical Limited,4033044,SINV86/00000223,07/03/2019,1491,0,PU2037,Inpatient Detox,4501,Private Contractors,Public Health
1073709,Delphi Medical Limited,4033045,SINV86/00000222,07/03/2019,1065,0,PU2037,Inpatient Detox,4501,Private Contractors,Public Health
1073709,Delphi Medical Limited,4033046,SINV86/00000221,07/03/2019,5964,0,PU2037,Inpatient Detox,4501,Private Contractors,Public Health
1073709,Delphi Medical Limited,4033047,SINV86/00000220,07/03/2019,4260,0,PU2037,Inpatient Detox,4501,Private Contractors,Public Health
1118238,Keskin Tencon Limited,4033406,1819068,05/03/2019,420,70,CXB71,Hra Capital Programme 2018/19,6501,Contract Payments,Capital - Chief Executive
1048456,R T C,4033407,7678,20/03/2019,2382,397,CXB71,Hra Capital Programme 2018/19,6501,Contract Payments,Capital - Chief Executive
1118245,REDACTED PERSONAL DATA,4033420,110219-240219,01/03/2019,1223.82,0,MVB,65-74,5604,Direct Payments,Adult & Families
1115748,REDACTED PERSONAL DATA,4033424,010219,08/03/2019,1131.25,0,JEA,Senior Management,4820,Theraoy,Children'S Services
1048844,Edf Energy,4033486,000005436237,11/03/2019,540.64,90.11,PARADE,Parades & Seawall,1202,Electricity,Community & Env Services
1087253,Routes Healthcare North Limited,4033498,56507,04/03/2019,2445.5,0,JEA,Senior Management,4403,Special Needs - Children,Children'S Services
1087253,Routes Healthcare North Limited,4033499,58076,04/03/2019,2437.75,0,JEA,Senior Management,4403,Special Needs - Children,Children'S Services
1087253,Routes Healthcare North Limited,4033500,60155,04/03/2019,2852.39,0,JEA,Senior Management,4403,Special Needs - Children,Children'S Services
1087253,Routes Healthcare North Limited,4033501,61195,04/03/2019,2650.87,0,JEA,Senior Management,4403,Special Needs - Children,Children'S Services
1092393,Strange Strange & Gardner,4033502,35164M,05/03/2019,1752,292,RK6006,Gallagher Bassett Plh,4706,Disbursements,Internal Insurance
1011121,Fylde Coast Gate Ltd,4033510,28251,01/03/2019,715.2,119.2,APDBBB,Arc,1012,Premises Maint-Priv.Contractor,Adult & Families
1117349,Dr Sotonte Bobmanuel,4033547,00005,28/03/2019,576.3,0,JDEAAA,Safeguarding Adults,4501,Private Contractors,Adult & Families
1115868,Aspire Behaviour Management Ltd,4033549,1393,12/03/2019,16830,2805,CWAN,Children With Additional Needs,4403,Special Needs - Children,Children'S Services
1011369,Lancashire County Council,4033570,5200179854,06/03/2019,6588.52,0,CWAN,Children With Additional Needs,4101,Other Local Authorities,Children'S Services
1011369,Lancashire County Council,4033571,5200179853,06/03/2019,6588.52,0,CWAN,Children With Additional Needs,4101,Other Local Authorities,Children'S Services
1011369,Lancashire County Council,4033572,5200179851,06/03/2019,6588.52,0,CWAN,Children With Additional Needs,4101,Other Local Authorities,Children'S Services
1004636,Carleton Green Community Primary School,4033578,02/003/080,07/03/2019,1255,0,CWAN,Children With Additional Needs,4101,Other Local Authorities,Children'S Services
1007535,Pip (Play Inclusion Project),4033593,BAC177,13/03/2019,3877.55,0,CWAN,Children With Additional Needs,3801,Other Expenses,Children'S Services
1032438,Electoral Reform Services,4033611,ERS19_275,05/03/2019,1256.64,209.44,BGA,Electoral Services,3401,General Services,Governance & Partnerships
1114709,Acies Process Servers Ltd,4033613,00549,08/03/2019,295,0,JEA,Senior Management,3807,Legal & Court Costs,Children'S Services
1027109,Poulton Van And Car Sales Ltd,4033834,1042,01/03/2019,8700,1450,CVMU,Cvmu,3041,Other Materials,Community & Env Services
1087126,Micheldever Tyre Services Ltd,4033843,63I24231,01/03/2019,493.44,82.24,CVMU,Cvmu,4501,Private Contractors,Community & Env Services
1002210,Read & Errington,4033867,BCH 101875/8-2,08/03/2019,530.46,88.41,CXXXX,Hra Non Specific Contingency,6501,Contract Payments,Capital - Chief Executive
1002210,Read & Errington,4033868,BCH 103623/3,08/03/2019,393.9,65.65,CXB71,Hra Capital Programme 2018/19,6501,Contract Payments,Capital - Chief Executive
1009009,Hermolle Associates Ltd,4033870,9661,08/03/2019,396,66,CXB71,Hra Capital Programme 2018/19,6501,Contract Payments,Capital - Chief Executive
1006529,The New Westmere Day Nursery,4033872,011,04/03/2019,376.5,0,JEA,Senior Management,5510,Nursery,Children'S Services
1006529,The New Westmere Day Nursery,4033876,012,04/03/2019,614.83,0,JEA,Senior Management,5510,Nursery,Children'S Services
1002210,Read & Errington,4033878,MRC106/21WESTFI,06/03/2019,1000,0,CX4024,Winter Warmth Grant,6502,Grants & Advances,Capital - Adult Social Care
1011675,Bambers Remedial Contractors Limited,4033879,15591,19/03/2019,2880,480,CXB71,Hra Capital Programme 2018/19,6501,Contract Payments,Capital - Chief Executive
1011675,Bambers Remedial Contractors Limited,4033880,15590,20/03/2019,3574.8,595.8,CXXXX,Hra Non Specific Contingency,6501,Contract Payments,Capital - Chief Executive
1066073,Blackpool Coastal Housing,4033882,30001549,05/03/2019,919.62,153.27,CXB71,Hra Capital Programme 2018/19,6501,Contract Payments,Capital - Chief Executive
1066073,Blackpool Coastal Housing,4033883,30001548,20/03/2019,18550.69,3091.78,CX4002,Disabled Facilities Grants,6501,Contract Payments,Capital - Adult Social Care
1006196,Prism Medical Uk,4033885,5318481,28/03/2019,3343.84,557.29,MVB,65-74,5401,Aids To Daily Living,Adult & Families
1006196,Prism Medical Uk,4033886,5318483,28/03/2019,697.16,116.19,CXAAA,Local Authority Dwellings,6501,Contract Payments,Capital - Chief Executive
1006196,Prism Medical Uk,4033887,5318482,28/03/2019,4921.85,820.31,MVB,65-74,5401,Aids To Daily Living,Adult & Families
1006196,Prism Medical Uk,4033888,5318484,28/03/2019,964.22,160.7,CXAAA,Local Authority Dwellings,6501,Contract Payments,Capital - Chief Executive
1005266,REDACTED PERSONAL DATA,4033917,224658,01/03/2019,633.29,0,JEA,Senior Management,4809,Special Guardianship,Children'S Services
1005947,REDACTED PERSONAL DATA,4033918,224770,01/03/2019,845.86,0,JEA,Senior Management,4809,Special Guardianship,Children'S Services
1005947,REDACTED PERSONAL DATA,4033919,224851,01/03/2019,726.29,0,JEA,Senior Management,4809,Special Guardianship,Children'S Services
1005947,REDACTED PERSONAL DATA,4033920,224771,01/03/2019,633.29,0,JEA,Senior Management,4809,Special Guardianship,Children'S Services
1005947,REDACTED PERSONAL DATA,4033921,224769,01/03/2019,726.29,0,JEA,Senior Management,4809,Special Guardianship,Children'S Services
1005947,REDACTED PERSONAL DATA,4033922,224850,01/03/2019,726.29,0,JEA,Senior Management,4809,Special Guardianship,Children'S Services
1006685,REDACTED PERSONAL DATA,4033923,224772,01/03/2019,766.5,0,JEA,Senior Management,4809,Special Guardianship,Children'S Services
1006685,REDACTED PERSONAL DATA,4033924,224855,01/03/2019,766.5,0,JEA,Senior Management,4809,Special Guardianship,Children'S Services
1006685,REDACTED PERSONAL DATA,4033925,224856,01/03/2019,766.5,0,JEA,Senior Management,4809,Special Guardianship,Children'S Services
1007093,REDACTED PERSONAL DATA,4033926,224764,01/03/2019,1209,0,JEA,Senior Management,4809,Special Guardianship,Children'S Services
1007093,REDACTED PERSONAL DATA,4033927,224848,01/03/2019,1209,0,JEA,Senior Management,4809,Special Guardianship,Children'S Services
1007093,REDACTED PERSONAL DATA,4033928,224765,01/03/2019,1302,0,JEA,Senior Management,4809,Special Guardianship,Children'S Services
1007513,REDACTED PERSONAL DATA,4033929,224767,01/03/2019,715.92,0,JBR,Lac - Placements,4814,Adoption Allowances,Children'S Services
1010522,REDACTED PERSONAL DATA,4033930,224705,01/03/2019,726.29,0,JEA,Senior Management,4809,Special Guardianship,Children'S Services
1010522,REDACTED PERSONAL DATA,4033931,224660,01/03/2019,726.29,0,JEA,Senior Management,4809,Special Guardianship,Children'S Services
1018980,REDACTED PERSONAL DATA,4033932,224799,01/03/2019,1302,0,JBR,Lac - Placements,4814,Adoption Allowances,Children'S Services
1023504,REDACTED PERSONAL DATA,4033933,224594,01/03/2019,726.29,0,JEA,Senior Management,4809,Special Guardianship,Children'S Services
1023636,REDACTED PERSONAL DATA,4033934,224783,01/03/2019,633.29,0,JEA,Senior Management,4809,Special Guardianship,Children'S Services
1025390,REDACTED PERSONAL DATA,4033935,224648,01/03/2019,726.29,0,JEA,Senior Management,4811,Residence Orders,Children'S Services
1029378,REDACTED PERSONAL DATA,4033936,224650,01/03/2019,845.86,0,JEA,Senior Management,4811,Residence Orders,Children'S Services
1029378,REDACTED PERSONAL DATA,4033937,224879,01/03/2019,845.86,0,JEA,Senior Management,4811,Residence Orders,Children'S Services
1032584,REDACTED PERSONAL DATA,4033938,224576,01/03/2019,726.29,0,JBR,Lac - Placements,4814,Adoption Allowances,Children'S Services
1038672,REDACTED PERSONAL DATA,4033939,224869,01/03/2019,562.43,0,JBR,Lac - Placements,4814,Adoption Allowances,Children'S Services
1038672,REDACTED PERSONAL DATA,4033940,224573,01/03/2019,562.43,0,JBR,Lac - Placements,4814,Adoption Allowances,Children'S Services
1039147,REDACTED PERSONAL DATA,4033941,224649,01/03/2019,845.86,0,JEA,Senior Management,4811,Residence Orders,Children'S Services
1042600,REDACTED PERSONAL DATA,4033942,224700,01/03/2019,726.29,0,JEA,Senior Management,4811,Residence Orders,Children'S Services
1043459,REDACTED PERSONAL DATA,4033943,224578,01/03/2019,952.14,0,JBR,Lac - Placements,4814,Adoption Allowances,Children'S Services
1043651,REDACTED PERSONAL DATA,4033944,224574,01/03/2019,562.43,0,JBR,Lac - Placements,4814,Adoption Allowances,Children'S Services
1043651,REDACTED PERSONAL DATA,4033945,224737,01/03/2019,562.43,0,JBR,Lac - Placements,4814,Adoption Allowances,Children'S Services
1043651,REDACTED PERSONAL DATA,4033946,224642,01/03/2019,633.29,0,JBR,Lac - Placements,4814,Adoption Allowances,Children'S Services
1043955,REDACTED PERSONAL DATA,4033947,224915,01/03/2019,845.86,0,JEA,Senior Management,4809,Special Guardianship,Children'S Services
1043955,REDACTED PERSONAL DATA,4033948,224730,01/03/2019,726.29,0,JEA,Senior Management,4809,Special Guardianship,Children'S Services
1044018,REDACTED PERSONAL DATA,4033949,224691,01/03/2019,562.43,0,JBR,Lac - Placements,4814,Adoption Allowances,Children'S Services
1048741,REDACTED PERSONAL DATA,4033950,224952,01/03/2019,726.29,0,JEA,Senior Management,4809,Special Guardianship,Children'S Services
1048947,REDACTED PERSONAL DATA,4033951,224582,01/03/2019,726.29,0,JEA,Senior Management,4811,Residence Orders,Children'S Services
1049626,REDACTED PERSONAL DATA,4033952,224797,01/03/2019,726.29,0,JEA,Senior Management,4809,Special Guardianship,Children'S Services
1049626,REDACTED PERSONAL DATA,4033953,224798,01/03/2019,726.29,0,JEA,Senior Management,4809,Special Guardianship,Children'S Services
1049626,REDACTED PERSONAL DATA,4033954,224939,01/03/2019,633.29,0,JEA,Senior Management,4809,Special Guardianship,Children'S Services
1049626,REDACTED PERSONAL DATA,4033955,224911,01/03/2019,633.29,0,JEA,Senior Management,4809,Special Guardianship,Children'S Services
1052328,REDACTED PERSONAL DATA,4033956,224880,01/03/2019,726.29,0,JEA,Senior Management,4811,Residence Orders,Children'S Services
1052960,REDACTED PERSONAL DATA,4033957,224957,01/03/2019,575.71,0,JEA,Senior Management,4809,Special Guardianship,Children'S Services
1052960,REDACTED PERSONAL DATA,4033958,224958,01/03/2019,575.71,0,JEA,Senior Management,4809,Special Guardianship,Children'S Services
1054536,REDACTED PERSONAL DATA,4033959,224926,01/03/2019,726.29,0,JEA,Senior Management,4811,Residence Orders,Children'S Services
1054614,REDACTED PERSONAL DATA,4033960,224821,01/03/2019,726.29,0,JEA,Senior Management,4809,Special Guardianship,Children'S Services
1055795,REDACTED PERSONAL DATA,4033961,224583,01/03/2019,845.86,0,JEA,Senior Management,4811,Residence Orders,Children'S Services
1057277,REDACTED PERSONAL DATA,4033962,224639,01/03/2019,633.29,0,JBR,Lac - Placements,4814,Adoption Allowances,Children'S Services
1058573,REDACTED PERSONAL DATA,4033963,224809,01/03/2019,726.29,0,JEA,Senior Management,4809,Special Guardianship,Children'S Services
1059285,REDACTED PERSONAL DATA,4033964,224579,01/03/2019,1009.72,0,JBR,Lac - Placements,4814,Adoption Allowances,Children'S Services
1059285,REDACTED PERSONAL DATA,4033965,224697,01/03/2019,1058.43,0,JBR,Lac - Placements,4814,Adoption Allowances,Children'S Services
1059285,REDACTED PERSONAL DATA,4033966,224806,01/03/2019,1058.43,0,JBR,Lac - Placements,4814,Adoption Allowances,Children'S Services
1062123,REDACTED PERSONAL DATA,4033967,224876,01/03/2019,726.29,0,JBR,Lac - Placements,4814,Adoption Allowances,Children'S Services
1063757,REDACTED PERSONAL DATA,4033968,224665,01/03/2019,726.29,0,JEA,Senior Management,4809,Special Guardianship,Children'S Services
1064011,REDACTED PERSONAL DATA,4033969,224653,01/03/2019,562.43,0,JEA,Senior Management,4809,Special Guardianship,Children'S Services
1066475,REDACTED PERSONAL DATA,4033970,224870,01/03/2019,562.43,0,JBR,Lac - Placements,4814,Adoption Allowances,Children'S Services
1068480,REDACTED PERSONAL DATA,4033971,224881,01/03/2019,562.43,0,JEA,Senior Management,4809,Special Guardianship,Children'S Services
1068524,REDACTED PERSONAL DATA,4033972,224654,01/03/2019,562.43,0,JEA,Senior Management,4809,Special Guardianship,Children'S Services
1068906,REDACTED PERSONAL DATA,4033973,224634,01/03/2019,562.43,0,JBR,Lac - Placements,4814,Adoption Allowances,Children'S Services
1068906,REDACTED PERSONAL DATA,4033974,224632,01/03/2019,562.43,0,JBR,Lac - Placements,4814,Adoption Allowances,Children'S Services
1068906,REDACTED PERSONAL DATA,4033975,224633,01/03/2019,562.43,0,JBR,Lac - Placements,4814,Adoption Allowances,Children'S Services
1069176,REDACTED PERSONAL DATA,4033976,224652,01/03/2019,562.43,0,JEA,Senior Management,4809,Special Guardianship,Children'S Services
1070512,REDACTED PERSONAL DATA,4033977,224678,01/03/2019,633.29,0,JEA,Senior Management,4809,Special Guardianship,Children'S Services
1070602,REDACTED PERSONAL DATA,4033978,224882,01/03/2019,562.43,0,JEA,Senior Management,4809,Special Guardianship,Children'S Services
1071018,REDACTED PERSONAL DATA,4033979,224871,01/03/2019,562.43,0,JBR,Lac - Placements,4814,Adoption Allowances,Children'S Services
1071018,REDACTED PERSONAL DATA,4033980,224635,01/03/2019,562.43,0,JBR,Lac - Placements,4814,Adoption Allowances,Children'S Services
1071018,REDACTED PERSONAL DATA,4033981,224692,01/03/2019,562.43,0,JBR,Lac - Placements,4814,Adoption Allowances,Children'S Services
1071683,REDACTED PERSONAL DATA,4033982,224885,01/03/2019,562.43,0,JEA,Senior Management,4809,Special Guardianship,Children'S Services
1071683,REDACTED PERSONAL DATA,4033983,224586,01/03/2019,562.43,0,JEA,Senior Management,4809,Special Guardianship,Children'S Services
1072770,REDACTED PERSONAL DATA,4033984,224883,01/03/2019,562.43,0,JEA,Senior Management,4809,Special Guardianship,Children'S Services
1074231,REDACTED PERSONAL DATA,4033985,224927,01/03/2019,562.43,0,JEA,Senior Management,4811,Residence Orders,Children'S Services
1076446,REDACTED PERSONAL DATA,4033986,224701,01/03/2019,562.43,0,JEA,Senior Management,4811,Residence Orders,Children'S Services
1076446,REDACTED PERSONAL DATA,4033987,224584,01/03/2019,562.43,0,JEA,Senior Management,4811,Residence Orders,Children'S Services
1077446,REDACTED PERSONAL DATA,4033988,224872,01/03/2019,562.43,0,JBR,Lac - Placements,4814,Adoption Allowances,Children'S Services
1077610,REDACTED PERSONAL DATA,4033989,224585,01/03/2019,562.43,0,JEA,Senior Management,4809,Special Guardianship,Children'S Services
1078284,REDACTED PERSONAL DATA,4033990,224703,01/03/2019,562.43,0,JEA,Senior Management,4809,Special Guardianship,Children'S Services
1078667,REDACTED PERSONAL DATA,4033991,224816,01/03/2019,562.43,0,JEA,Senior Management,4809,Special Guardianship,Children'S Services
